Workbook

Sheet Display
A1: Crude Light (Globex) Dashboard | F1: Symbol | G1: Month | H1: =MOD(RTD("cqg.rtd", ,"SystemInfo", "Linetime"),1) -> 14:30:57
F2: CLE | G2: Dec
A3: Symbol | B3: Month | C3: Last | D3: NC Last | E3: NC Settle | F3: Trade or Set | G3: Open | H3: High | I3: Low | J3: Volume | K3: Vol NC | L3: Open Interest | M3: NC OI
A4: =Data!B1 -> CLE?1 | B4: =Data!F1 -> Jun 26 | C4: =RTD("cqg.rtd", ,"ContractData",A4, "LastTrade",, "T") -> 105.13 | D4: =RTD("cqg.rtd", ,"ContractData",A4, "NetLastTrade",, "T") -> 3.19 | E4: =RTD("cqg.rtd", ,"ContractData",A4, "NetSettlement",, "T") -> 4.48 | F4: =RTD("cqg.rtd", ,"ContractData",A4, "TradeorTodaySettlement",, "T") -> 105.13 | G4: =RTD("cqg.rtd", ,"ContractData",A4, "Open",, "T") -> 99.73 | H4: =RTD("cqg.rtd", ,"ContractData",A4, "High",, "T") -> 107.46 | I4: =RTD("cqg.rtd", ,"ContractData",A4, "Low",, "T") -> 99.11 | J4: =RTD("cqg.rtd", ,"ContractData",A4, "T_CVol",, "T") -> 311790 | K4: =J4-RTD("cqg.rtd", ,"ContractData",A4, "Y_CVol",, "T") -> 43083 | L4: =RTD("cqg.rtd",,"StudyData",A4, "Bar",, "ContractOI", "D", "-1",,,,,"T") -> 271096 | M4: =L4-RTD("cqg.rtd",,"StudyData",A4, "Bar",, "ContractOI", "D", "-2",,,,,"T") -> -8206
A5: =Data!B2 -> CLE?2 | B5: =Data!F2 -> Jul 26 | C5: =RTD("cqg.rtd", ,"ContractData",A5, "LastTrade",, "T") -> 100.56 | D5: =RTD("cqg.rtd", ,"ContractData",A5, "NetLastTrade",, "T") -> 4.02 | E5: =RTD("cqg.rtd", ,"ContractData",A5, "NetSettlement",, "T") -> 4.97 | F5: =RTD("cqg.rtd", ,"ContractData",A5, "TradeorTodaySettlement",, "T") -> 100.56 | G5: =RTD("cqg.rtd", ,"ContractData",A5, "Open",, "T") -> 94.78 | H5: =RTD("cqg.rtd", ,"ContractData",A5, "High",, "T") -> 101.8 | I5: =RTD("cqg.rtd", ,"ContractData",A5, "Low",, "T") -> 94.34 | J5: =RTD("cqg.rtd", ,"ContractData",A5, "T_CVol",, "T") -> 176466 | K5: =J5-RTD("cqg.rtd", ,"ContractData",A5, "Y_CVol",, "T") -> 39065 | L5: =RTD("cqg.rtd",,"StudyData",A5, "Bar",, "ContractOI", "D", "-1",,,,,"T") -> 178786 | M5: =L5-RTD("cqg.rtd",,"StudyData",A5, "Bar",, "ContractOI", "D", "-2",,,,,"T") -> 4534
A6: =Data!B3 -> CLE?3 | B6: =Data!F3 -> Aug 26 | C6: =RTD("cqg.rtd", ,"ContractData",A6, "LastTrade",, "T") -> 95.72 | D6: =RTD("cqg.rtd", ,"ContractData",A6, "NetLastTrade",, "T") -> 4.16 | E6: =RTD("cqg.rtd", ,"ContractData",A6, "NetSettlement",, "T") -> 4.96 | F6: =RTD("cqg.rtd", ,"ContractData",A6, "TradeorTodaySettlement",, "T") -> 95.72 | G6: =RTD("cqg.rtd", ,"ContractData",A6, "Open",, "T") -> 90 | H6: =RTD("cqg.rtd", ,"ContractData",A6, "High",, "T") -> 96.77 | I6: =RTD("cqg.rtd", ,"ContractData",A6, "Low",, "T") -> 89.89 | J6: =RTD("cqg.rtd", ,"ContractData",A6, "T_CVol",, "T") -> 108323 | K6: =J6-RTD("cqg.rtd", ,"ContractData",A6, "Y_CVol",, "T") -> 19090 | L6: =RTD("cqg.rtd",,"StudyData",A6, "Bar",, "ContractOI", "D", "-1",,,,,"T") -> 101678 | M6: =L6-RTD("cqg.rtd",,"StudyData",A6, "Bar",, "ContractOI", "D", "-2",,,,,"T") -> -1212
A7: =Data!B4 -> CLE?4 | B7: =Data!F4 -> Sep 26 | C7: =RTD("cqg.rtd", ,"ContractData",A7, "LastTrade",, "T") -> 91.62 | D7: =RTD("cqg.rtd", ,"ContractData",A7, "NetLastTrade",, "T") -> 4.23 | E7: =RTD("cqg.rtd", ,"ContractData",A7, "NetSettlement",, "T") -> 4.87 | F7: =RTD("cqg.rtd", ,"ContractData",A7, "TradeorTodaySettlement",, "T") -> 91.62 | G7: =RTD("cqg.rtd", ,"ContractData",A7, "Open",, "T") -> 86.78 | H7: =RTD("cqg.rtd", ,"ContractData",A7, "High",, "T") -> 92.51 | I7: =RTD("cqg.rtd", ,"ContractData",A7, "Low",, "T") -> 85.93 | J7: =RTD("cqg.rtd", ,"ContractData",A7, "T_CVol",, "T") -> 100532 | K7: =J7-RTD("cqg.rtd", ,"ContractData",A7, "Y_CVol",, "T") -> 16459 | L7: =RTD("cqg.rtd",,"StudyData",A7, "Bar",, "ContractOI", "D", "-1",,,,,"T") -> 132360 | M7: =L7-RTD("cqg.rtd",,"StudyData",A7, "Bar",, "ContractOI", "D", "-2",,,,,"T") -> 1118
A8: =Data!B5 -> CLE?5 | B8: =Data!F5 -> Oct 26 | C8: =RTD("cqg.rtd", ,"ContractData",A8, "LastTrade",, "T") -> 88.13 | D8: =RTD("cqg.rtd", ,"ContractData",A8, "NetLastTrade",, "T") -> 4.21 | E8: =RTD("cqg.rtd", ,"ContractData",A8, "NetSettlement",, "T") -> 4.74 | F8: =RTD("cqg.rtd", ,"ContractData",A8, "TradeorTodaySettlement",, "T") -> 88.13 | G8: =RTD("cqg.rtd", ,"ContractData",A8, "Open",, "T") -> 82.89 | H8: =RTD("cqg.rtd", ,"ContractData",A8, "High",, "T") -> 88.85 | I8: =RTD("cqg.rtd", ,"ContractData",A8, "Low",, "T") -> 82.64 | J8: =RTD("cqg.rtd", ,"ContractData",A8, "T_CVol",, "T") -> 63690 | K8: =J8-RTD("cqg.rtd", ,"ContractData",A8, "Y_CVol",, "T") -> 18436 | L8: =RTD("cqg.rtd",,"StudyData",A8, "Bar",, "ContractOI", "D", "-1",,,,,"T") -> 85644 | M8: =L8-RTD("cqg.rtd",,"StudyData",A8, "Bar",, "ContractOI", "D", "-2",,,,,"T") -> -700
A9: =Data!B6 -> CLE?6 | B9: =Data!F6 -> Nov 26 | C9: =RTD("cqg.rtd", ,"ContractData",A9, "LastTrade",, "T") -> 85.51 | D9: =RTD("cqg.rtd", ,"ContractData",A9, "NetLastTrade",, "T") -> 4.09 | E9: =RTD("cqg.rtd", ,"ContractData",A9, "NetSettlement",, "T") -> 4.52 | F9: =RTD("cqg.rtd", ,"ContractData",A9, "TradeorTodaySettlement",, "T") -> 85.51 | G9: =RTD("cqg.rtd", ,"ContractData",A9, "Open",, "T") -> 81 | H9: =RTD("cqg.rtd", ,"ContractData",A9, "High",, "T") -> 86.12 | I9: =RTD("cqg.rtd", ,"ContractData",A9, "Low",, "T") -> 80.26 | J9: =RTD("cqg.rtd", ,"ContractData",A9, "T_CVol",, "T") -> 52765 | K9: =J9-RTD("cqg.rtd", ,"ContractData",A9, "Y_CVol",, "T") -> 16467 | L9: =RTD("cqg.rtd",,"StudyData",A9, "Bar",, "ContractOI", "D", "-1",,,,,"T") -> 72203 | M9: =L9-RTD("cqg.rtd",,"StudyData",A9, "Bar",, "ContractOI", "D", "-2",,,,,"T") -> -563
A10: =Data!B7 -> CLE?7 | B10: =Data!F7 -> Dec 26 | C10: =RTD("cqg.rtd", ,"ContractData",A10, "LastTrade",, "T") -> 83.37 | D10: =RTD("cqg.rtd", ,"ContractData",A10, "NetLastTrade",, "T") -> 3.84 | E10: =RTD("cqg.rtd", ,"ContractData",A10, "NetSettlement",, "T") -> 4.19 | F10: =RTD("cqg.rtd", ,"ContractData",A10, "TradeorTodaySettlement",, "T") -> 83.37 | G10: =RTD("cqg.rtd", ,"ContractData",A10, "Open",, "T") -> 79.19 | H10: =RTD("cqg.rtd", ,"ContractData",A10, "High",, "T") -> 83.89 | I10: =RTD("cqg.rtd", ,"ContractData",A10, "Low",, "T") -> 78.29 | J10: =RTD("cqg.rtd", ,"ContractData",A10, "T_CVol",, "T") -> 158152 | K10: =J10-RTD("cqg.rtd", ,"ContractData",A10, "Y_CVol",, "T") -> 61268 | L10: =RTD("cqg.rtd",,"StudyData",A10, "Bar",, "ContractOI", "D", "-1",,,,,"T") -> 257106 | M10: =L10-RTD("cqg.rtd",,"StudyData",A10, "Bar",, "ContractOI", "D", "-2",,,,,"T") -> 1071
A11: =Data!B8 -> CLE?8 | B11: =Data!F8 -> Jan 27 | C11: =RTD("cqg.rtd", ,"ContractData",A11, "LastTrade",, "T") -> 81.58 | D11: =RTD("cqg.rtd", ,"ContractData",A11, "NetLastTrade",, "T") -> 3.59 | E11: =RTD("cqg.rtd", ,"ContractData",A11, "NetSettlement",, "T") -> 3.89 | F11: =RTD("cqg.rtd", ,"ContractData",A11, "TradeorTodaySettlement",, "T") -> 81.58 | G11: =RTD("cqg.rtd", ,"ContractData",A11, "Open",, "T") -> 77.59 | H11: =RTD("cqg.rtd", ,"ContractData",A11, "High",, "T") -> 82.04 | I11: =RTD("cqg.rtd", ,"ContractData",A11, "Low",, "T") -> 77.59 | J11: =RTD("cqg.rtd", ,"ContractData",A11, "T_CVol",, "T") -> 26701 | K11: =J11-RTD("cqg.rtd", ,"ContractData",A11, "Y_CVol",, "T") -> 12675 | L11: =RTD("cqg.rtd",,"StudyData",A11, "Bar",, "ContractOI", "D", "-1",,,,,"T") -> 57971 | M11: =L11-RTD("cqg.rtd",,"StudyData",A11, "Bar",, "ContractOI", "D", "-2",,,,,"T") -> 77
A12: =Data!B9 -> CLE?9 | B12: =Data!F9 -> Feb 27 | C12: =RTD("cqg.rtd", ,"ContractData",A12, "LastTrade",, "T") -> 80.03 | D12: =RTD("cqg.rtd", ,"ContractData",A12, "NetLastTrade",, "T") -> 3.28 | E12: =RTD("cqg.rtd", ,"ContractData",A12, "NetSettlement",, "T") -> 3.61 | F12: =RTD("cqg.rtd", ,"ContractData",A12, "TradeorTodaySettlement",, "T") -> 80.03 | G12: =RTD("cqg.rtd", ,"ContractData",A12, "Open",, "T") -> 77.06 | H12: =RTD("cqg.rtd", ,"ContractData",A12, "High",, "T") -> 80.46 | I12: =RTD("cqg.rtd", ,"ContractData",A12, "Low",, "T") -> 77.06 | J12: =RTD("cqg.rtd", ,"ContractData",A12, "T_CVol",, "T") -> 15862 | K12: =J12-RTD("cqg.rtd", ,"ContractData",A12, "Y_CVol",, "T") -> 8552 | L12: =RTD("cqg.rtd",,"StudyData",A12, "Bar",, "ContractOI", "D", "-1",,,,,"T") -> 42669 | M12: =L12-RTD("cqg.rtd",,"StudyData",A12, "Bar",, "ContractOI", "D", "-2",,,,,"T") -> 362
A13: =Data!B10 -> CLE?10 | B13: =Data!F10 -> Mar 27 | C13: =RTD("cqg.rtd", ,"ContractData",A13, "LastTrade",, "T") -> 78.95 | D13: =RTD("cqg.rtd", ,"ContractData",A13, "NetLastTrade",, "T") -> 3.17 | E13: =RTD("cqg.rtd", ,"ContractData",A13, "NetSettlement",, "T") -> 3.33 | F13: =RTD("cqg.rtd", ,"ContractData",A13, "TradeorTodaySettlement",, "T") -> 78.95 | G13: =RTD("cqg.rtd", ,"ContractData",A13, "Open",, "T") -> 75 | H13: =RTD("cqg.rtd", ,"ContractData",A13, "High",, "T") -> 79.26 | I13: =RTD("cqg.rtd", ,"ContractData",A13, "Low",, "T") -> 74.72 | J13: =RTD("cqg.rtd", ,"ContractData",A13, "T_CVol",, "T") -> 23379 | K13: =J13-RTD("cqg.rtd", ,"ContractData",A13, "Y_CVol",, "T") -> 12394 | L13: =RTD("cqg.rtd",,"StudyData",A13, "Bar",, "ContractOI", "D", "-1",,,,,"T") -> 57398 | M13: =L13-RTD("cqg.rtd",,"StudyData",A13, "Bar",, "ContractOI", "D", "-2",,,,,"T") -> 104
A14: =Data!B11 -> CLE?11 | B14: =Data!F11 -> Apr 27 | C14: =RTD("cqg.rtd", ,"ContractData",A14, "LastTrade",, "T") -> 78.09 | D14: =RTD("cqg.rtd", ,"ContractData",A14, "NetLastTrade",, "T") -> 3.09 | E14: =RTD("cqg.rtd", ,"ContractData",A14, "NetSettlement",, "T") -> 3.12 | F14: =RTD("cqg.rtd", ,"ContractData",A14, "TradeorTodaySettlement",, "T") -> 78.09 | G14: =RTD("cqg.rtd", ,"ContractData",A14, "Open",, "T") -> 75.99 | H14: =RTD("cqg.rtd", ,"ContractData",A14, "High",, "T") -> 78.26 | I14: =RTD("cqg.rtd", ,"ContractData",A14, "Low",, "T") -> 75.99 | J14: =RTD("cqg.rtd", ,"ContractData",A14, "T_CVol",, "T") -> 5767 | K14: =J14-RTD("cqg.rtd", ,"ContractData",A14, "Y_CVol",, "T") -> 2525 | L14: =RTD("cqg.rtd",,"StudyData",A14, "Bar",, "ContractOI", "D", "-1",,,,,"T") -> 43506 | M14: =L14-RTD("cqg.rtd",,"StudyData",A14, "Bar",, "ContractOI", "D", "-2",,,,,"T") -> -274
A15: =Data!B12 -> CLE?12 | B15: =Data!F12 -> May 27 | C15: =RTD("cqg.rtd", ,"ContractData",A15, "LastTrade",, "T") -> 77.23 | D15: =RTD("cqg.rtd", ,"ContractData",A15, "NetLastTrade",, "T") -> 2.85 | E15: =RTD("cqg.rtd", ,"ContractData",A15, "NetSettlement",, "T") -> 2.94 | F15: =RTD("cqg.rtd", ,"ContractData",A15, "TradeorTodaySettlement",, "T") -> 77.23 | G15: =RTD("cqg.rtd", ,"ContractData",A15, "Open",, "T") -> 74.32 | H15: =RTD("cqg.rtd", ,"ContractData",A15, "High",, "T") -> 77.46 | I15: =RTD("cqg.rtd", ,"ContractData",A15, "Low",, "T") -> 74.32 | J15: =RTD("cqg.rtd", ,"ContractData",A15, "T_CVol",, "T") -> 3355 | K15: =J15-RTD("cqg.rtd", ,"ContractData",A15, "Y_CVol",, "T") -> 1127 | L15: =RTD("cqg.rtd",,"StudyData",A15, "Bar",, "ContractOI", "D", "-1",,,,,"T") -> 27352 | M15: =L15-RTD("cqg.rtd",,"StudyData",A15, "Bar",, "ContractOI", "D", "-2",,,,,"T") -> -24
A16: =Data!B13 -> CLE?13 | B16: =Data!F13 -> Jun 27 | C16: =RTD("cqg.rtd", ,"ContractData",A16, "LastTrade",, "T") -> 76.62 | D16: =RTD("cqg.rtd", ,"ContractData",A16, "NetLastTrade",, "T") -> 2.76 | E16: =RTD("cqg.rtd", ,"ContractData",A16, "NetSettlement",, "T") -> 2.8 | F16: =RTD("cqg.rtd", ,"ContractData",A16, "TradeorTodaySettlement",, "T") -> 76.62 | G16: =RTD("cqg.rtd", ,"ContractData",A16, "Open",, "T") -> 73.5 | H16: =RTD("cqg.rtd", ,"ContractData",A16, "High",, "T") -> 76.86 | I16: =RTD("cqg.rtd", ,"ContractData",A16, "Low",, "T") -> 72.93 | J16: =RTD("cqg.rtd", ,"ContractData",A16, "T_CVol",, "T") -> 40595 | K16: =J16-RTD("cqg.rtd", ,"ContractData",A16, "Y_CVol",, "T") -> 19112 | L16: =RTD("cqg.rtd",,"StudyData",A16, "Bar",, "ContractOI", "D", "-1",,,,,"T") -> 128041 | M16: =L16-RTD("cqg.rtd",,"StudyData",A16, "Bar",, "ContractOI", "D", "-2",,,,,"T") -> 340
A17: =Data!B14 -> CLE?14 | B17: =Data!F14 -> Jul 27 | C17: =RTD("cqg.rtd", ,"ContractData",A17, "LastTrade",, "T") -> 76.09 | D17: =RTD("cqg.rtd", ,"ContractData",A17, "NetLastTrade",, "T") -> 2.72 | E17: =RTD("cqg.rtd", ,"ContractData",A17, "NetSettlement",, "T") -> 2.69 | F17: =RTD("cqg.rtd", ,"ContractData",A17, "TradeorTodaySettlement",, "T") -> 76.09 | G17: =RTD("cqg.rtd", ,"ContractData",A17, "Open",, "T") -> 74.63 | H17: =RTD("cqg.rtd", ,"ContractData",A17, "High",, "T") -> 76.09 | I17: =RTD("cqg.rtd", ,"ContractData",A17, "Low",, "T") -> 74.63 | J17: =RTD("cqg.rtd", ,"ContractData",A17, "T_CVol",, "T") -> 2797 | K17: =J17-RTD("cqg.rtd", ,"ContractData",A17, "Y_CVol",, "T") -> 1721 | L17: =RTD("cqg.rtd",,"StudyData",A17, "Bar",, "ContractOI", "D", "-1",,,,,"T") -> 29075 | M17: =L17-RTD("cqg.rtd",,"StudyData",A17, "Bar",, "ContractOI", "D", "-2",,,,,"T") -> -145
A18: =Data!B15 -> CLE?15 | B18: =Data!F15 -> Aug 27 | C18: =RTD("cqg.rtd", ,"ContractData",A18, "LastTrade",, "T") -> 75.48 | D18: =RTD("cqg.rtd", ,"ContractData",A18, "NetLastTrade",, "T") -> 2.57 | E18: =RTD("cqg.rtd", ,"ContractData",A18, "NetSettlement",, "T") -> 2.6 | F18: =RTD("cqg.rtd", ,"ContractData",A18, "TradeorTodaySettlement",, "T") -> 75.48 | G18: =RTD("cqg.rtd", ,"ContractData",A18, "Open",, "T") -> 74.85 | H18: =RTD("cqg.rtd", ,"ContractData",A18, "High",, "T") -> 75.52 | I18: =RTD("cqg.rtd", ,"ContractData",A18, "Low",, "T") -> 74.85 | J18: =RTD("cqg.rtd", ,"ContractData",A18, "T_CVol",, "T") -> 1974 | K18: =J18-RTD("cqg.rtd", ,"ContractData",A18, "Y_CVol",, "T") -> 819 | L18: =RTD("cqg.rtd",,"StudyData",A18, "Bar",, "ContractOI", "D", "-1",,,,,"T") -> 20665 | M18: =L18-RTD("cqg.rtd",,"StudyData",A18, "Bar",, "ContractOI", "D", "-2",,,,,"T") -> 61
A19: =Data!B16 -> CLE?16 | B19: =Data!F16 -> Sep 27 | C19: =RTD("cqg.rtd", ,"ContractData",A19, "LastTrade",, "T") -> 75.04 | D19: =RTD("cqg.rtd", ,"ContractData",A19, "NetLastTrade",, "T") -> 2.54 | E19: =RTD("cqg.rtd", ,"ContractData",A19, "NetSettlement",, "T") -> 2.51 | F19: =RTD("cqg.rtd", ,"ContractData",A19, "TradeorTodaySettlement",, "T") -> 75.04 | G19: =RTD("cqg.rtd", ,"ContractData",A19, "Open",, "T") -> 74.06 | H19: =RTD("cqg.rtd", ,"ContractData",A19, "High",, "T") -> 75.05 | I19: =RTD("cqg.rtd", ,"ContractData",A19, "Low",, "T") -> 73.93 | J19: =RTD("cqg.rtd", ,"ContractData",A19, "T_CVol",, "T") -> 3332 | K19: =J19-RTD("cqg.rtd", ,"ContractData",A19, "Y_CVol",, "T") -> 1757 | L19: =RTD("cqg.rtd",,"StudyData",A19, "Bar",, "ContractOI", "D", "-1",,,,,"T") -> 35254 | M19: =L19-RTD("cqg.rtd",,"StudyData",A19, "Bar",, "ContractOI", "D", "-2",,,,,"T") -> -6
A20: =Data!B17 -> CLE?17 | B20: =Data!F17 -> Oct 27 | C20: =RTD("cqg.rtd", ,"ContractData",A20, "LastTrade",, "T") -> 74.45 | D20: =RTD("cqg.rtd", ,"ContractData",A20, "NetLastTrade",, "T") -> 2.31 | E20: =RTD("cqg.rtd", ,"ContractData",A20, "NetSettlement",, "T") -> 2.43 | F20: =RTD("cqg.rtd", ,"ContractData",A20, "TradeorTodaySettlement",, "T") -> 74.45 | G20: =RTD("cqg.rtd", ,"ContractData",A20, "Open",, "T") -> 73.82 | H20: =RTD("cqg.rtd", ,"ContractData",A20, "High",, "T") -> 74.57 | I20: =RTD("cqg.rtd", ,"ContractData",A20, "Low",, "T") -> 73.82 | J20: =RTD("cqg.rtd", ,"ContractData",A20, "T_CVol",, "T") -> 1522 | K20: =J20-RTD("cqg.rtd", ,"ContractData",A20, "Y_CVol",, "T") -> 1126 | L20: =RTD("cqg.rtd",,"StudyData",A20, "Bar",, "ContractOI", "D", "-1",,,,,"T") -> 24352 | M20: =L20-RTD("cqg.rtd",,"StudyData",A20, "Bar",, "ContractOI", "D", "-2",,,,,"T") -> 103
A21: =Data!B18 -> CLE?18 | B21: =Data!F18 -> Nov 27 | C21: =RTD("cqg.rtd", ,"ContractData",A21, "LastTrade",, "T") -> 74.27 | D21: =RTD("cqg.rtd", ,"ContractData",A21, "NetLastTrade",, "T") -> 2.46 | E21: =RTD("cqg.rtd", ,"ContractData",A21, "NetSettlement",, "T") -> 2.37 | F21: =RTD("cqg.rtd", ,"ContractData",A21, "TradeorTodaySettlement",, "T") -> 74.27 | G21: =RTD("cqg.rtd", ,"ContractData",A21, "Open",, "T") -> 73.58 | H21: =RTD("cqg.rtd", ,"ContractData",A21, "High",, "T") -> 74.27 | I21: =RTD("cqg.rtd", ,"ContractData",A21, "Low",, "T") -> 73.58 | J21: =RTD("cqg.rtd", ,"ContractData",A21, "T_CVol",, "T") -> 1694 | K21: =J21-RTD("cqg.rtd", ,"ContractData",A21, "Y_CVol",, "T") -> 1055 | L21: =RTD("cqg.rtd",,"StudyData",A21, "Bar",, "ContractOI", "D", "-1",,,,,"T") -> 34562 | M21: =L21-RTD("cqg.rtd",,"StudyData",A21, "Bar",, "ContractOI", "D", "-2",,,,,"T") -> -7
A22: =Data!B19 -> CLE?19 | B22: =Data!F19 -> Dec 27 | C22: =RTD("cqg.rtd", ,"ContractData",A22, "LastTrade",, "T") -> 73.97 | D22: =RTD("cqg.rtd", ,"ContractData",A22, "NetLastTrade",, "T") -> 2.48 | E22: =RTD("cqg.rtd", ,"ContractData",A22, "NetSettlement",, "T") -> 2.31 | F22: =RTD("cqg.rtd", ,"ContractData",A22, "TradeorTodaySettlement",, "T") -> 73.97 | G22: =RTD("cqg.rtd", ,"ContractData",A22, "Open",, "T") -> 71.49 | H22: =RTD("cqg.rtd", ,"ContractData",A22, "High",, "T") -> 74.16 | I22: =RTD("cqg.rtd", ,"ContractData",A22, "Low",, "T") -> 70.79 | J22: =RTD("cqg.rtd", ,"ContractData",A22, "T_CVol",, "T") -> 71691 | K22: =J22-RTD("cqg.rtd", ,"ContractData",A22, "Y_CVol",, "T") -> 44195 | L22: =RTD("cqg.rtd",,"StudyData",A22, "Bar",, "ContractOI", "D", "-1",,,,,"T") -> 153896 | M22: =L22-RTD("cqg.rtd",,"StudyData",A22, "Bar",, "ContractOI", "D", "-2",,,,,"T") -> 2509
A23: =Data!B20 -> CLE?20 | B23: =Data!F20 -> Jan 28 | C23: =RTD("cqg.rtd", ,"ContractData",A23, "LastTrade",, "T") -> 73.37 | D23: =RTD("cqg.rtd", ,"ContractData",A23, "NetLastTrade",, "T") -> 2.25 | E23: =RTD("cqg.rtd", ,"ContractData",A23, "NetSettlement",, "T") -> 2.25 | F23: =RTD("cqg.rtd", ,"ContractData",A23, "TradeorTodaySettlement",, "T") -> 73.37 | G23: =RTD("cqg.rtd", ,"ContractData",A23, "Open",, "T") -> 72.88 | H23: =RTD("cqg.rtd", ,"ContractData",A23, "High",, "T") -> 73.37 | I23: =RTD("cqg.rtd", ,"ContractData",A23, "Low",, "T") -> 72.88 | J23: =RTD("cqg.rtd", ,"ContractData",A23, "T_CVol",, "T") -> 764 | K23: =J23-RTD("cqg.rtd", ,"ContractData",A23, "Y_CVol",, "T") -> -60 | L23: =RTD("cqg.rtd",,"StudyData",A23, "Bar",, "ContractOI", "D", "-1",,,,,"T") -> 25135 | M23: =L23-RTD("cqg.rtd",,"StudyData",A23, "Bar",, "ContractOI", "D", "-2",,,,,"T") -> 116
A24: =Data!B21 -> CLE?21 | B24: =Data!F21 -> Feb 28 | C24: =RTD("cqg.rtd", ,"ContractData",A24, "LastTrade",, "T") -> 70.53 | D24: =RTD("cqg.rtd", ,"ContractData",A24, "NetLastTrade",, "T") -> -0.23 | E24: =RTD("cqg.rtd", ,"ContractData",A24, "NetSettlement",, "T") -> 2.21 | F24: =RTD("cqg.rtd", ,"ContractData",A24, "TradeorTodaySettlement",, "T") -> 72.97 | G24: =RTD("cqg.rtd", ,"ContractData",A24, "Open",, "T") -> 72.97 | H24: =RTD("cqg.rtd", ,"ContractData",A24, "High",, "T") -> 72.97 | I24: =RTD("cqg.rtd", ,"ContractData",A24, "Low",, "T") -> 72.97 | J24: =RTD("cqg.rtd", ,"ContractData",A24, "T_CVol",, "T") -> 848 | K24: =J24-RTD("cqg.rtd", ,"ContractData",A24, "Y_CVol",, "T") -> 84 | L24: =RTD("cqg.rtd",,"StudyData",A24, "Bar",, "ContractOI", "D", "-1",,,,,"T") -> 9634 | M24: =L24-RTD("cqg.rtd",,"StudyData",A24, "Bar",, "ContractOI", "D", "-2",,,,,"T") -> 454
A25: =Data!B22 -> CLE?22 | B25: =Data!F22 -> Mar 28 | C25: =RTD("cqg.rtd", ,"ContractData",A25, "LastTrade",, "T") -> 72.59 | D25: =RTD("cqg.rtd", ,"ContractData",A25, "NetLastTrade",, "T") -> 2.14 | E25: =RTD("cqg.rtd", ,"ContractData",A25, "NetSettlement",, "T") -> 2.17 | F25: =RTD("cqg.rtd", ,"ContractData",A25, "TradeorTodaySettlement",, "T") -> 72.59 | G25: =RTD("cqg.rtd", ,"ContractData",A25, "Open",, "T") -> 72.25 | H25: =RTD("cqg.rtd", ,"ContractData",A25, "High",, "T") -> 72.66 | I25: =RTD("cqg.rtd", ,"ContractData",A25, "Low",, "T") -> 72.25 | J25: =RTD("cqg.rtd", ,"ContractData",A25, "T_CVol",, "T") -> 2670 | K25: =J25-RTD("cqg.rtd", ,"ContractData",A25, "Y_CVol",, "T") -> 951 | L25: =RTD("cqg.rtd",,"StudyData",A25, "Bar",, "ContractOI", "D", "-1",,,,,"T") -> 12105 | M25: =L25-RTD("cqg.rtd",,"StudyData",A25, "Bar",, "ContractOI", "D", "-2",,,,,"T") -> -87
A26: =Data!B23 -> CLE?23 | B26: =Data!F23 -> Apr 28 | C26: =RTD("cqg.rtd", ,"ContractData",A26, "LastTrade",, "T") ->  | D26: =RTD("cqg.rtd", ,"ContractData",A26, "NetLastTrade",, "T") ->  | E26: =RTD("cqg.rtd", ,"ContractData",A26, "NetSettlement",, "T") -> 2.11 | F26: =RTD("cqg.rtd", ,"ContractData",A26, "TradeorTodaySettlement",, "T") -> 72.3 | G26: =RTD("cqg.rtd", ,"ContractData",A26, "Open",, "T") -> 72.3 | H26: =RTD("cqg.rtd", ,"ContractData",A26, "High",, "T") -> 72.3 | I26: =RTD("cqg.rtd", ,"ContractData",A26, "Low",, "T") -> 72.3 | J26: =RTD("cqg.rtd", ,"ContractData",A26, "T_CVol",, "T") -> 169 | K26: =J26-RTD("cqg.rtd", ,"ContractData",A26, "Y_CVol",, "T") -> -690 | L26: =RTD("cqg.rtd",,"StudyData",A26, "Bar",, "ContractOI", "D", "-1",,,,,"T") -> 7145 | M26: =L26-RTD("cqg.rtd",,"StudyData",A26, "Bar",, "ContractOI", "D", "-2",,,,,"T") -> 564
A27: =Data!B24 -> CLE?24 | B27: =Data!F24 -> May 28 | C27: =RTD("cqg.rtd", ,"ContractData",A27, "LastTrade",, "T") ->  | D27: =RTD("cqg.rtd", ,"ContractData",A27, "NetLastTrade",, "T") ->  | E27: =RTD("cqg.rtd", ,"ContractData",A27, "NetSettlement",, "T") -> 2.06 | F27: =RTD("cqg.rtd", ,"ContractData",A27, "TradeorTodaySettlement",, "T") -> 72.02 | G27: =RTD("cqg.rtd", ,"ContractData",A27, "Open",, "T") -> 72.02 | H27: =RTD("cqg.rtd", ,"ContractData",A27, "High",, "T") -> 72.02 | I27: =RTD("cqg.rtd", ,"ContractData",A27, "Low",, "T") -> 72.02 | J27: =RTD("cqg.rtd", ,"ContractData",A27, "T_CVol",, "T") -> 115 | K27: =J27-RTD("cqg.rtd", ,"ContractData",A27, "Y_CVol",, "T") -> 35 | L27: =RTD("cqg.rtd",,"StudyData",A27, "Bar",, "ContractOI", "D", "-1",,,,,"T") -> 4866 | M27: =L27-RTD("cqg.rtd",,"StudyData",A27, "Bar",, "ContractOI", "D", "-2",,,,,"T") -> 53
A28: =Data!B25 -> CLE?25 | B28: =Data!F25 -> Jun 28 | C28: =RTD("cqg.rtd", ,"ContractData",A28, "LastTrade",, "T") -> 71.96 | D28: =RTD("cqg.rtd", ,"ContractData",A28, "NetLastTrade",, "T") -> 2.23 | E28: =RTD("cqg.rtd", ,"ContractData",A28, "NetSettlement",, "T") -> 2.04 | F28: =RTD("cqg.rtd", ,"ContractData",A28, "TradeorTodaySettlement",, "T") -> 71.96 | G28: =RTD("cqg.rtd", ,"ContractData",A28, "Open",, "T") -> 69.74 | H28: =RTD("cqg.rtd", ,"ContractData",A28, "High",, "T") -> 72.16 | I28: =RTD("cqg.rtd", ,"ContractData",A28, "Low",, "T") -> 69.74 | J28: =RTD("cqg.rtd", ,"ContractData",A28, "T_CVol",, "T") -> 14393 | K28: =J28-RTD("cqg.rtd", ,"ContractData",A28, "Y_CVol",, "T") -> 11559 | L28: =RTD("cqg.rtd",,"StudyData",A28, "Bar",, "ContractOI", "D", "-1",,,,,"T") -> 37282 | M28: =L28-RTD("cqg.rtd",,"StudyData",A28, "Bar",, "ContractOI", "D", "-2",,,,,"T") -> 40
A29: =Data!B26 -> CLE?26 | B29: =Data!F26 -> Jul 28 | C29: =RTD("cqg.rtd", ,"ContractData",A29, "LastTrade",, "T") ->  | D29: =RTD("cqg.rtd", ,"ContractData",A29, "NetLastTrade",, "T") ->  | E29: =RTD("cqg.rtd", ,"ContractData",A29, "NetSettlement",, "T") -> 2 | F29: =RTD("cqg.rtd", ,"ContractData",A29, "TradeorTodaySettlement",, "T") -> 71.47 | G29: =RTD("cqg.rtd", ,"ContractData",A29, "Open",, "T") -> 71.47 | H29: =RTD("cqg.rtd", ,"ContractData",A29, "High",, "T") -> 71.47 | I29: =RTD("cqg.rtd", ,"ContractData",A29, "Low",, "T") -> 71.47 | J29: =RTD("cqg.rtd", ,"ContractData",A29, "T_CVol",, "T") -> 43 | K29: =J29-RTD("cqg.rtd", ,"ContractData",A29, "Y_CVol",, "T") -> 10 | L29: =RTD("cqg.rtd",,"StudyData",A29, "Bar",, "ContractOI", "D", "-1",,,,,"T") -> 3846 | M29: =L29-RTD("cqg.rtd",,"StudyData",A29, "Bar",, "ContractOI", "D", "-2",,,,,"T") -> 33
A30: =Data!B27 -> CLE?27 | B30: =Data!F27 -> Aug 28 | C30: =RTD("cqg.rtd", ,"ContractData",A30, "LastTrade",, "T") ->  | D30: =RTD("cqg.rtd", ,"ContractData",A30, "NetLastTrade",, "T") ->  | E30: =RTD("cqg.rtd", ,"ContractData",A30, "NetSettlement",, "T") -> 1.96 | F30: =RTD("cqg.rtd", ,"ContractData",A30, "TradeorTodaySettlement",, "T") -> 71.16 | G30: =RTD("cqg.rtd", ,"ContractData",A30, "Open",, "T") -> 71.16 | H30: =RTD("cqg.rtd", ,"ContractData",A30, "High",, "T") -> 71.16 | I30: =RTD("cqg.rtd", ,"ContractData",A30, "Low",, "T") -> 71.16 | J30: =RTD("cqg.rtd", ,"ContractData",A30, "T_CVol",, "T") -> 62 | K30: =J30-RTD("cqg.rtd", ,"ContractData",A30, "Y_CVol",, "T") -> -6 | L30: =RTD("cqg.rtd",,"StudyData",A30, "Bar",, "ContractOI", "D", "-1",,,,,"T") -> 3365 | M30: =L30-RTD("cqg.rtd",,"StudyData",A30, "Bar",, "ContractOI", "D", "-2",,,,,"T") -> 35
A31: =Data!B28 -> CLE?28 | B31: =Data!F28 -> Sep 28 | C31: =RTD("cqg.rtd", ,"ContractData",A31, "LastTrade",, "T") -> 70.05 | D31: =RTD("cqg.rtd", ,"ContractData",A31, "NetLastTrade",, "T") -> 1.1 | E31: =RTD("cqg.rtd", ,"ContractData",A31, "NetSettlement",, "T") -> 1.92 | F31: =RTD("cqg.rtd", ,"ContractData",A31, "TradeorTodaySettlement",, "T") -> 70.05 | G31: =RTD("cqg.rtd", ,"ContractData",A31, "Open",, "T") -> 70.05 | H31: =RTD("cqg.rtd", ,"ContractData",A31, "High",, "T") -> 70.87 | I31: =RTD("cqg.rtd", ,"ContractData",A31, "Low",, "T") -> 70.05 | J31: =RTD("cqg.rtd", ,"ContractData",A31, "T_CVol",, "T") -> 106 | K31: =J31-RTD("cqg.rtd", ,"ContractData",A31, "Y_CVol",, "T") -> 106 | L31: =RTD("cqg.rtd",,"StudyData",A31, "Bar",, "ContractOI", "D", "-1",,,,,"T") -> 8030 | M31: =L31-RTD("cqg.rtd",,"StudyData",A31, "Bar",, "ContractOI", "D", "-2",,,,,"T") -> 0
A32: =Data!B29 -> CLE?29 | B32: =Data!F29 -> Oct 28 | C32: =RTD("cqg.rtd", ,"ContractData",A32, "LastTrade",, "T") ->  | D32: =RTD("cqg.rtd", ,"ContractData",A32, "NetLastTrade",, "T") ->  | E32: =RTD("cqg.rtd", ,"ContractData",A32, "NetSettlement",, "T") -> 1.89 | F32: =RTD("cqg.rtd", ,"ContractData",A32, "TradeorTodaySettlement",, "T") -> 70.61 | G32: =RTD("cqg.rtd", ,"ContractData",A32, "Open",, "T") -> 70.61 | H32: =RTD("cqg.rtd", ,"ContractData",A32, "High",, "T") -> 70.61 | I32: =RTD("cqg.rtd", ,"ContractData",A32, "Low",, "T") -> 70.61 | J32: =RTD("cqg.rtd", ,"ContractData",A32, "T_CVol",, "T") -> 51 | K32: =J32-RTD("cqg.rtd", ,"ContractData",A32, "Y_CVol",, "T") -> 51 | L32: =RTD("cqg.rtd",,"StudyData",A32, "Bar",, "ContractOI", "D", "-1",,,,,"T") -> 2355 | M32: =L32-RTD("cqg.rtd",,"StudyData",A32, "Bar",, "ContractOI", "D", "-2",,,,,"T") -> 0
A33: =Data!B30 -> CLE?30 | B33: =Data!F30 -> Nov 28 | C33: =RTD("cqg.rtd", ,"ContractData",A33, "LastTrade",, "T") ->  | D33: =RTD("cqg.rtd", ,"ContractData",A33, "NetLastTrade",, "T") ->  | E33: =RTD("cqg.rtd", ,"ContractData",A33, "NetSettlement",, "T") -> 1.85 | F33: =RTD("cqg.rtd", ,"ContractData",A33, "TradeorTodaySettlement",, "T") -> 70.37 | G33: =RTD("cqg.rtd", ,"ContractData",A33, "Open",, "T") -> 70.37 | H33: =RTD("cqg.rtd", ,"ContractData",A33, "High",, "T") -> 70.37 | I33: =RTD("cqg.rtd", ,"ContractData",A33, "Low",, "T") -> 70.37 | J33: =RTD("cqg.rtd", ,"ContractData",A33, "T_CVol",, "T") -> 17 | K33: =J33-RTD("cqg.rtd", ,"ContractData",A33, "Y_CVol",, "T") -> 1 | L33: =RTD("cqg.rtd",,"StudyData",A33, "Bar",, "ContractOI", "D", "-1",,,,,"T") -> 5094 | M33: =L33-RTD("cqg.rtd",,"StudyData",A33, "Bar",, "ContractOI", "D", "-2",,,,,"T") -> 1
A34: =Data!B31 -> CLE?31 | B34: =Data!F31 -> Dec 28 | C34: =RTD("cqg.rtd", ,"ContractData",A34, "LastTrade",, "T") -> 70.41 | D34: =RTD("cqg.rtd", ,"ContractData",A34, "NetLastTrade",, "T") -> 2.11 | E34: =RTD("cqg.rtd", ,"ContractData",A34, "NetSettlement",, "T") -> 1.82 | F34: =RTD("cqg.rtd", ,"ContractData",A34, "TradeorTodaySettlement",, "T") -> 70.41 | G34: =RTD("cqg.rtd", ,"ContractData",A34, "Open",, "T") -> 68.46 | H34: =RTD("cqg.rtd", ,"ContractData",A34, "High",, "T") -> 70.68 | I34: =RTD("cqg.rtd", ,"ContractData",A34, "Low",, "T") -> 68 | J34: =RTD("cqg.rtd", ,"ContractData",A34, "T_CVol",, "T") -> 25662 | K34: =J34-RTD("cqg.rtd", ,"ContractData",A34, "Y_CVol",, "T") -> 18366 | L34: =RTD("cqg.rtd",,"StudyData",A34, "Bar",, "ContractOI", "D", "-1",,,,,"T") -> 64016 | M34: =L34-RTD("cqg.rtd",,"StudyData",A34, "Bar",, "ContractOI", "D", "-2",,,,,"T") -> 428
A35: =Data!B32 -> CLE?32 | B35: =Data!F32 -> Jan 29 | C35: =RTD("cqg.rtd", ,"ContractData",A35, "LastTrade",, "T") ->  | D35: =RTD("cqg.rtd", ,"ContractData",A35, "NetLastTrade",, "T") ->  | E35: =RTD("cqg.rtd", ,"ContractData",A35, "NetSettlement",, "T") -> 1.8 | F35: =RTD("cqg.rtd", ,"ContractData",A35, "TradeorTodaySettlement",, "T") -> 69.83 | G35: =RTD("cqg.rtd", ,"ContractData",A35, "Open",, "T") -> 69.83 | H35: =RTD("cqg.rtd", ,"ContractData",A35, "High",, "T") -> 69.83 | I35: =RTD("cqg.rtd", ,"ContractData",A35, "Low",, "T") -> 69.83 | J35: =RTD("cqg.rtd", ,"ContractData",A35, "T_CVol",, "T") -> 14 | K35: =J35-RTD("cqg.rtd", ,"ContractData",A35, "Y_CVol",, "T") -> -2 | L35: =RTD("cqg.rtd",,"StudyData",A35, "Bar",, "ContractOI", "D", "-1",,,,,"T") -> 2610 | M35: =L35-RTD("cqg.rtd",,"StudyData",A35, "Bar",, "ContractOI", "D", "-2",,,,,"T") -> 0
A36: =Data!B33 -> CLE?33 | B36: =Data!F33 -> Feb 29 | C36: =RTD("cqg.rtd", ,"ContractData",A36, "LastTrade",, "T") ->  | D36: =RTD("cqg.rtd", ,"ContractData",A36, "NetLastTrade",, "T") ->  | E36: =RTD("cqg.rtd", ,"ContractData",A36, "NetSettlement",, "T") -> 1.76 | F36: =RTD("cqg.rtd", ,"ContractData",A36, "TradeorTodaySettlement",, "T") -> 69.54 | G36: =RTD("cqg.rtd", ,"ContractData",A36, "Open",, "T") -> 69.54 | H36: =RTD("cqg.rtd", ,"ContractData",A36, "High",, "T") -> 69.54 | I36: =RTD("cqg.rtd", ,"ContractData",A36, "Low",, "T") -> 69.54 | J36: =RTD("cqg.rtd", ,"ContractData",A36, "T_CVol",, "T") -> 3 | K36: =J36-RTD("cqg.rtd", ,"ContractData",A36, "Y_CVol",, "T") -> -9 | L36: =RTD("cqg.rtd",,"StudyData",A36, "Bar",, "ContractOI", "D", "-1",,,,,"T") -> 1572 | M36: =L36-RTD("cqg.rtd",,"StudyData",A36, "Bar",, "ContractOI", "D", "-2",,,,,"T") -> 12
A37: =Data!B34 -> CLE?34 | B37: =Data!F34 -> Mar 29 | C37: =RTD("cqg.rtd", ,"ContractData",A37, "LastTrade",, "T") ->  | D37: =RTD("cqg.rtd", ,"ContractData",A37, "NetLastTrade",, "T") ->  | E37: =RTD("cqg.rtd", ,"ContractData",A37, "NetSettlement",, "T") -> 1.72 | F37: =RTD("cqg.rtd", ,"ContractData",A37, "TradeorTodaySettlement",, "T") -> 69.28 | G37: =RTD("cqg.rtd", ,"ContractData",A37, "Open",, "T") -> 69.28 | H37: =RTD("cqg.rtd", ,"ContractData",A37, "High",, "T") -> 69.28 | I37: =RTD("cqg.rtd", ,"ContractData",A37, "Low",, "T") -> 69.28 | J37: =RTD("cqg.rtd", ,"ContractData",A37, "T_CVol",, "T") -> 5 | K37: =J37-RTD("cqg.rtd", ,"ContractData",A37, "Y_CVol",, "T") -> -15 | L37: =RTD("cqg.rtd",,"StudyData",A37, "Bar",, "ContractOI", "D", "-1",,,,,"T") -> 2469 | M37: =L37-RTD("cqg.rtd",,"StudyData",A37, "Bar",, "ContractOI", "D", "-2",,,,,"T") -> 12
A38: =Data!B35 -> CLE?35 | B38: =Data!F35 -> Apr 29 | C38: =RTD("cqg.rtd", ,"ContractData",A38, "LastTrade",, "T") ->  | D38: =RTD("cqg.rtd", ,"ContractData",A38, "NetLastTrade",, "T") ->  | E38: =RTD("cqg.rtd", ,"ContractData",A38, "NetSettlement",, "T") -> 1.7 | F38: =RTD("cqg.rtd", ,"ContractData",A38, "TradeorTodaySettlement",, "T") -> 69.04 | G38: =RTD("cqg.rtd", ,"ContractData",A38, "Open",, "T") -> 69.04 | H38: =RTD("cqg.rtd", ,"ContractData",A38, "High",, "T") -> 69.04 | I38: =RTD("cqg.rtd", ,"ContractData",A38, "Low",, "T") -> 69.04 | J38: =RTD("cqg.rtd", ,"ContractData",A38, "T_CVol",, "T") -> 0 | K38: =J38-RTD("cqg.rtd", ,"ContractData",A38, "Y_CVol",, "T") -> 0 | L38: =RTD("cqg.rtd",,"StudyData",A38, "Bar",, "ContractOI", "D", "-1",,,,,"T") -> 263 | M38: =L38-RTD("cqg.rtd",,"StudyData",A38, "Bar",, "ContractOI", "D", "-2",,,,,"T") -> 0
A39: =Data!B36 -> CLE?36 | B39: =Data!F36 -> May 29 | C39: =RTD("cqg.rtd", ,"ContractData",A39, "LastTrade",, "T") ->  | D39: =RTD("cqg.rtd", ,"ContractData",A39, "NetLastTrade",, "T") ->  | E39: =RTD("cqg.rtd", ,"ContractData",A39, "NetSettlement",, "T") -> 1.66 | F39: =RTD("cqg.rtd", ,"ContractData",A39, "TradeorTodaySettlement",, "T") -> 68.82 | G39: =RTD("cqg.rtd", ,"ContractData",A39, "Open",, "T") -> 68.82 | H39: =RTD("cqg.rtd", ,"ContractData",A39, "High",, "T") -> 68.82 | I39: =RTD("cqg.rtd", ,"ContractData",A39, "Low",, "T") -> 68.82 | J39: =RTD("cqg.rtd", ,"ContractData",A39, "T_CVol",, "T") -> 0 | K39: =J39-RTD("cqg.rtd", ,"ContractData",A39, "Y_CVol",, "T") -> 0 | L39: =RTD("cqg.rtd",,"StudyData",A39, "Bar",, "ContractOI", "D", "-1",,,,,"T") -> 424 | M39: =L39-RTD("cqg.rtd",,"StudyData",A39, "Bar",, "ContractOI", "D", "-2",,,,,"T") -> 0
A40: =Data!B37 -> CLE?37 | B40: =Data!F37 -> Jun 29 | C40: =RTD("cqg.rtd", ,"ContractData",A40, "LastTrade",, "T") ->  | D40: =RTD("cqg.rtd", ,"ContractData",A40, "NetLastTrade",, "T") ->  | E40: =RTD("cqg.rtd", ,"ContractData",A40, "NetSettlement",, "T") -> 1.62 | F40: =RTD("cqg.rtd", ,"ContractData",A40, "TradeorTodaySettlement",, "T") -> 68.59 | G40: =RTD("cqg.rtd", ,"ContractData",A40, "Open",, "T") -> 68.59 | H40: =RTD("cqg.rtd", ,"ContractData",A40, "High",, "T") -> 68.59 | I40: =RTD("cqg.rtd", ,"ContractData",A40, "Low",, "T") -> 68.59 | J40: =RTD("cqg.rtd", ,"ContractData",A40, "T_CVol",, "T") -> 349 | K40: =J40-RTD("cqg.rtd", ,"ContractData",A40, "Y_CVol",, "T") -> 282 | L40: =RTD("cqg.rtd",,"StudyData",A40, "Bar",, "ContractOI", "D", "-1",,,,,"T") -> 8812 | M40: =L40-RTD("cqg.rtd",,"StudyData",A40, "Bar",, "ContractOI", "D", "-2",,,,,"T") -> -8

Sheet Data
A1: 1 | B1: =$N$1&"?"&A1 -> CLE?1 | C1: =LEFT(B1,FIND("?",B1)-1) -> CLE | D1: =RTD("cqg.rtd", ,"ContractData",B1, "ContractMonth",, "T") -> JUN | E1: =RTD("cqg.rtd", ,"ContractData",B1, "LongDescription",, "T") -> Crude Light (Globex), Jun 26 | F1: =_xlfn.REGEXEXTRACT(RTD("cqg.rtd", ,"ContractData",B1, "LongDescription",, "T"), "[A-Z][a-z]{2}\s\d{2}") -> Jun 26 | G1: =RTD("cqg.rtd", ,"ContractData",B1, "LastTrade",, "T") -> 105.13 | H1: =IF(RTD("cqg.rtd", ,"ContractData",B1, "NetLastTrade",, "T")="",NA(),RTD("cqg.rtd", ,"ContractData",B1, "NetLastTrade",, "T")) -> 3.19 | I1: =RTD("cqg.rtd", ,"ContractData",B1, "Bid",, "T") -> 105.12 | J1: =RTD("cqg.rtd", ,"ContractData",B1, "Ask",, "T") -> 105.15 | K1: =RTD("cqg.rtd", ,"ContractData",B1, "T_CVol",, "T") -> 311790 | L1: =RTD("cqg.rtd", ,"ContractData",B1, "TradeorTodaySettlement",, "T") -> 105.13 | M1: =RTD("cqg.rtd", ,"ContractData",B1, "NetSettlement",, "T") -> 4.48 | N1: =Display!F2 -> CLE | O1: =ROUNDUP(MAX(G1:G12)+1,0) -> 107 | P1: =ROUNDUP(MAX(S1:S11)+1,0) -> 85 | Q1: =_xlfn._xlws.FILTER(Data!$B$1:$B$130,((Data!$C$1:$C$130=Display!F2)*(Data!$D$1:$D$130=Display!G2))) -> CLE?7 | R1: =IF(RTD("cqg.rtd", ,"ContractData",Q1, "TradeorTodaySettlement",, "T")="",NA(),RTD("cqg.rtd", ,"ContractData",Q1, "TradeorTodaySettlement",, "T")) -> 83.37 | S1: =IFERROR(R1,"") -> 83.37 | T1: =RTD("cqg.rtd", ,"ContractData",Q1, "LongDescription",, "T") -> Crude Light (Globex), Dec 26 | W1: =_xlfn.REGEXEXTRACT(RTD("cqg.rtd", ,"ContractData",Q1, "LongDescription",, "T"), "[A-Z][a-z]{2}\s\d{2}") -> Dec 26 | X1: =IF(Q1="",NA(),RTD("cqg.rtd", ,"ContractData",Q1, "NetSettlement",, "T")) -> 4.19 | Y1: =IFERROR(X1,"") -> 4.19
A2: =A1+1 -> 2 | B2: =$N$1&"?"&A2 -> CLE?2 | C2: =LEFT(B2,FIND("?",B2)-1) -> CLE | D2: =RTD("cqg.rtd", ,"ContractData",B2, "ContractMonth",, "T") -> JUL | E2: =RTD("cqg.rtd", ,"ContractData",B2, "LongDescription",, "T") -> Crude Light (Globex), Jul 26 | F2: =_xlfn.REGEXEXTRACT(RTD("cqg.rtd", ,"ContractData",B2, "LongDescription",, "T"), "[A-Z][a-z]{2}\s\d{2}") -> Jul 26 | G2: =RTD("cqg.rtd", ,"ContractData",B2, "LastTrade",, "T") -> 100.56 | H2: =IF(RTD("cqg.rtd", ,"ContractData",B2, "NetLastTrade",, "T")="",NA(),RTD("cqg.rtd", ,"ContractData",B2, "NetLastTrade",, "T")) -> 4.02 | I2: =RTD("cqg.rtd", ,"ContractData",B2, "Bid",, "T") -> 100.53 | J2: =RTD("cqg.rtd", ,"ContractData",B2, "Ask",, "T") -> 100.56 | K2: =RTD("cqg.rtd", ,"ContractData",B2, "T_CVol",, "T") -> 176466 | L2: =RTD("cqg.rtd", ,"ContractData",B2, "TradeorTodaySettlement",, "T") -> 100.56 | M2: =RTD("cqg.rtd", ,"ContractData",B2, "NetSettlement",, "T") -> 4.97 | O2: =ROUNDDOWN(MIN(G1:G12)-1,0) -> 76 | P2: =ROUNDDOWN(MIN(S1:S11),0) -> 53 | Q2: CLE?19 | R2: =IF(RTD("cqg.rtd", ,"ContractData",Q2, "TradeorTodaySettlement",, "T")="",NA(),RTD("cqg.rtd", ,"ContractData",Q2, "TradeorTodaySettlement",, "T")) -> 73.97 | S2: =IFERROR(R2,"") -> 73.97 | T2: =RTD("cqg.rtd", ,"ContractData",Q2, "LongDescription",, "T") -> Crude Light (Globex), Dec 27 | W2: =_xlfn.REGEXEXTRACT(RTD("cqg.rtd", ,"ContractData",Q2, "LongDescription",, "T"), "[A-Z][a-z]{2}\s\d{2}") -> Dec 27 | X2: =IF(Q2="",NA(),RTD("cqg.rtd", ,"ContractData",Q2, "NetSettlement",, "T")) -> 2.31 | Y2: =IFERROR(X2,"") -> 2.31
A3: =A2+1 -> 3 | B3: =$N$1&"?"&A3 -> CLE?3 | C3: CLE | D3: =RTD("cqg.rtd", ,"ContractData",B3, "ContractMonth",, "T") -> AUG | E3: =RTD("cqg.rtd", ,"ContractData",B3, "LongDescription",, "T") -> Crude Light (Globex), Aug 26 | F3: =_xlfn.REGEXEXTRACT(RTD("cqg.rtd", ,"ContractData",B3, "LongDescription",, "T"), "[A-Z][a-z]{2}\s\d{2}") -> Aug 26 | G3: =RTD("cqg.rtd", ,"ContractData",B3, "LastTrade",, "T") -> 95.72 | H3: =IF(RTD("cqg.rtd", ,"ContractData",B3, "NetLastTrade",, "T")="",NA(),RTD("cqg.rtd", ,"ContractData",B3, "NetLastTrade",, "T")) -> 4.16 | I3: =RTD("cqg.rtd", ,"ContractData",B3, "Bid",, "T") -> 95.7 | J3: =RTD("cqg.rtd", ,"ContractData",B3, "Ask",, "T") -> 95.73 | K3: =RTD("cqg.rtd", ,"ContractData",B3, "T_CVol",, "T") -> 108323 | L3: =RTD("cqg.rtd", ,"ContractData",B3, "TradeorTodaySettlement",, "T") -> 95.72 | M3: =RTD("cqg.rtd", ,"ContractData",B3, "NetSettlement",, "T") -> 4.96 | Q3: CLE?31 | R3: =IF(RTD("cqg.rtd", ,"ContractData",Q3, "TradeorTodaySettlement",, "T")="",NA(),RTD("cqg.rtd", ,"ContractData",Q3, "TradeorTodaySettlement",, "T")) -> 70.41 | S3: 70.41 | T3: =RTD("cqg.rtd", ,"ContractData",Q3, "LongDescription",, "T") -> Crude Light (Globex), Dec 28 | W3: =_xlfn.REGEXEXTRACT(RTD("cqg.rtd", ,"ContractData",Q3, "LongDescription",, "T"), "[A-Z][a-z]{2}\s\d{2}") -> Dec 28 | X3: =IF(Q3="",NA(),RTD("cqg.rtd", ,"ContractData",Q3, "NetSettlement",, "T")) -> 1.82 | Y3: 1.82
A4: 4 | B4: CLE?4 | C4: CLE | D4: =RTD("cqg.rtd", ,"ContractData",B4, "ContractMonth",, "T") -> SEP | E4: =RTD("cqg.rtd", ,"ContractData",B4, "LongDescription",, "T") -> Crude Light (Globex), Sep 26 | F4: =_xlfn.REGEXEXTRACT(RTD("cqg.rtd", ,"ContractData",B4, "LongDescription",, "T"), "[A-Z][a-z]{2}\s\d{2}") -> Sep 26 | G4: =RTD("cqg.rtd", ,"ContractData",B4, "LastTrade",, "T") -> 91.62 | H4: =IF(RTD("cqg.rtd", ,"ContractData",B4, "NetLastTrade",, "T")="",NA(),RTD("cqg.rtd", ,"ContractData",B4, "NetLastTrade",, "T")) -> 4.23 | I4: =RTD("cqg.rtd", ,"ContractData",B4, "Bid",, "T") -> 91.58 | J4: =RTD("cqg.rtd", ,"ContractData",B4, "Ask",, "T") -> 91.62 | K4: =RTD("cqg.rtd", ,"ContractData",B4, "T_CVol",, "T") -> 100532 | L4: =RTD("cqg.rtd", ,"ContractData",B4, "TradeorTodaySettlement",, "T") -> 91.62 | M4: =RTD("cqg.rtd", ,"ContractData",B4, "NetSettlement",, "T") -> 4.87 | O4: =ROUNDUP(MAX(H1:H12)+1,0) -> 6 | P4: =ROUNDUP(MAX(Y1:Y11)+1,0) -> 6 | Q4: CLE?43 | R4: =IF(RTD("cqg.rtd", ,"ContractData",Q4, "TradeorTodaySettlement",, "T")="",NA(),RTD("cqg.rtd", ,"ContractData",Q4, "TradeorTodaySettlement",, "T")) -> 67.57 | S4: 67.57 | T4: =RTD("cqg.rtd", ,"ContractData",Q4, "LongDescription",, "T") -> Crude Light (Globex), Dec 29 | W4: =_xlfn.REGEXEXTRACT(RTD("cqg.rtd", ,"ContractData",Q4, "LongDescription",, "T"), "[A-Z][a-z]{2}\s\d{2}") -> Dec 29 | X4: =IF(Q4="",NA(),RTD("cqg.rtd", ,"ContractData",Q4, "NetSettlement",, "T")) -> 1.4 | Y4: 1.4
A5: 5 | B5: CLE?5 | C5: CLE | D5: =RTD("cqg.rtd", ,"ContractData",B5, "ContractMonth",, "T") -> OCT | E5: =RTD("cqg.rtd", ,"ContractData",B5, "LongDescription",, "T") -> Crude Light (Globex), Oct 26 | F5: =_xlfn.REGEXEXTRACT(RTD("cqg.rtd", ,"ContractData",B5, "LongDescription",, "T"), "[A-Z][a-z]{2}\s\d{2}") -> Oct 26 | G5: =RTD("cqg.rtd", ,"ContractData",B5, "LastTrade",, "T") -> 88.13 | H5: =IF(RTD("cqg.rtd", ,"ContractData",B5, "NetLastTrade",, "T")="",NA(),RTD("cqg.rtd", ,"ContractData",B5, "NetLastTrade",, "T")) -> 4.21 | I5: =RTD("cqg.rtd", ,"ContractData",B5, "Bid",, "T") -> 88.09 | J5: =RTD("cqg.rtd", ,"ContractData",B5, "Ask",, "T") -> 88.13 | K5: =RTD("cqg.rtd", ,"ContractData",B5, "T_CVol",, "T") -> 63690 | L5: =RTD("cqg.rtd", ,"ContractData",B5, "TradeorTodaySettlement",, "T") -> 88.13 | M5: =RTD("cqg.rtd", ,"ContractData",B5, "NetSettlement",, "T") -> 4.74 | O5: =ROUNDDOWN(MIN(H1:H12)-1,0) -> 1 | P5: =ROUNDDOWN(MIN(Y1:Y11)-1,0) -> 0 | Q5: CLE?55 | R5: =IF(RTD("cqg.rtd", ,"ContractData",Q5, "TradeorTodaySettlement",, "T")="",NA(),RTD("cqg.rtd", ,"ContractData",Q5, "TradeorTodaySettlement",, "T")) -> 64.97 | S5: 64.97 | T5: =RTD("cqg.rtd", ,"ContractData",Q5, "LongDescription",, "T") -> Crude Light (Globex), Dec 30 | W5: =_xlfn.REGEXEXTRACT(RTD("cqg.rtd", ,"ContractData",Q5, "LongDescription",, "T"), "[A-Z][a-z]{2}\s\d{2}") -> Dec 30 | X5: =IF(Q5="",NA(),RTD("cqg.rtd", ,"ContractData",Q5, "NetSettlement",, "T")) -> 1.12 | Y5: 1.12
A6: 6 | B6: CLE?6 | C6: CLE | D6: =RTD("cqg.rtd", ,"ContractData",B6, "ContractMonth",, "T") -> NOV | E6: =RTD("cqg.rtd", ,"ContractData",B6, "LongDescription",, "T") -> Crude Light (Globex), Nov 26 | F6: =_xlfn.REGEXEXTRACT(RTD("cqg.rtd", ,"ContractData",B6, "LongDescription",, "T"), "[A-Z][a-z]{2}\s\d{2}") -> Nov 26 | G6: =RTD("cqg.rtd", ,"ContractData",B6, "LastTrade",, "T") -> 85.51 | H6: =IF(RTD("cqg.rtd", ,"ContractData",B6, "NetLastTrade",, "T")="",NA(),RTD("cqg.rtd", ,"ContractData",B6, "NetLastTrade",, "T")) -> 4.09 | I6: =RTD("cqg.rtd", ,"ContractData",B6, "Bid",, "T") -> 85.48 | J6: =RTD("cqg.rtd", ,"ContractData",B6, "Ask",, "T") -> 85.51 | K6: =RTD("cqg.rtd", ,"ContractData",B6, "T_CVol",, "T") -> 52765 | L6: =RTD("cqg.rtd", ,"ContractData",B6, "TradeorTodaySettlement",, "T") -> 85.51 | M6: =RTD("cqg.rtd", ,"ContractData",B6, "NetSettlement",, "T") -> 4.52 | Q6: CLE?67 | R6: =IF(RTD("cqg.rtd", ,"ContractData",Q6, "TradeorTodaySettlement",, "T")="",NA(),RTD("cqg.rtd", ,"ContractData",Q6, "TradeorTodaySettlement",, "T")) -> 62.58 | S6: 62.58 | T6: =RTD("cqg.rtd", ,"ContractData",Q6, "LongDescription",, "T") -> Crude Light (Globex), Dec 31 | W6: =_xlfn.REGEXEXTRACT(RTD("cqg.rtd", ,"ContractData",Q6, "LongDescription",, "T"), "[A-Z][a-z]{2}\s\d{2}") -> Dec 31 | X6: =IF(Q6="",NA(),RTD("cqg.rtd", ,"ContractData",Q6, "NetSettlement",, "T")) -> 0.99 | Y6: 0.99
A7: 7 | B7: CLE?7 | C7: CLE | D7: =RTD("cqg.rtd", ,"ContractData",B7, "ContractMonth",, "T") -> DEC | E7: =RTD("cqg.rtd", ,"ContractData",B7, "LongDescription",, "T") -> Crude Light (Globex), Dec 26 | F7: =_xlfn.REGEXEXTRACT(RTD("cqg.rtd", ,"ContractData",B7, "LongDescription",, "T"), "[A-Z][a-z]{2}\s\d{2}") -> Dec 26 | G7: =RTD("cqg.rtd", ,"ContractData",B7, "LastTrade",, "T") -> 83.37 | H7: =IF(RTD("cqg.rtd", ,"ContractData",B7, "NetLastTrade",, "T")="",NA(),RTD("cqg.rtd", ,"ContractData",B7, "NetLastTrade",, "T")) -> 3.84 | I7: =RTD("cqg.rtd", ,"ContractData",B7, "Bid",, "T") -> 83.36 | J7: =RTD("cqg.rtd", ,"ContractData",B7, "Ask",, "T") -> 83.38 | K7: =RTD("cqg.rtd", ,"ContractData",B7, "T_CVol",, "T") -> 158152 | L7: =RTD("cqg.rtd", ,"ContractData",B7, "TradeorTodaySettlement",, "T") -> 83.37 | M7: =RTD("cqg.rtd", ,"ContractData",B7, "NetSettlement",, "T") -> 4.19 | Q7: CLE?79 | R7: =IF(RTD("cqg.rtd", ,"ContractData",Q7, "TradeorTodaySettlement",, "T")="",NA(),RTD("cqg.rtd", ,"ContractData",Q7, "TradeorTodaySettlement",, "T")) -> 60.75 | S7: 60.75 | T7: =RTD("cqg.rtd", ,"ContractData",Q7, "LongDescription",, "T") -> Crude Light (Globex), Dec 32 | W7: =_xlfn.REGEXEXTRACT(RTD("cqg.rtd", ,"ContractData",Q7, "LongDescription",, "T"), "[A-Z][a-z]{2}\s\d{2}") -> Dec 32 | X7: =IF(Q7="",NA(),RTD("cqg.rtd", ,"ContractData",Q7, "NetSettlement",, "T")) -> 0.88 | Y7: 0.88
A8: 8 | B8: CLE?8 | C8: CLE | D8: =RTD("cqg.rtd", ,"ContractData",B8, "ContractMonth",, "T") -> JAN | E8: =RTD("cqg.rtd", ,"ContractData",B8, "LongDescription",, "T") -> Crude Light (Globex), Jan 27 | F8: =_xlfn.REGEXEXTRACT(RTD("cqg.rtd", ,"ContractData",B8, "LongDescription",, "T"), "[A-Z][a-z]{2}\s\d{2}") -> Jan 27 | G8: =RTD("cqg.rtd", ,"ContractData",B8, "LastTrade",, "T") -> 81.58 | H8: =IF(RTD("cqg.rtd", ,"ContractData",B8, "NetLastTrade",, "T")="",NA(),RTD("cqg.rtd", ,"ContractData",B8, "NetLastTrade",, "T")) -> 3.59 | I8: =RTD("cqg.rtd", ,"ContractData",B8, "Bid",, "T") -> 81.58 | J8: =RTD("cqg.rtd", ,"ContractData",B8, "Ask",, "T") -> 81.62 | K8: =RTD("cqg.rtd", ,"ContractData",B8, "T_CVol",, "T") -> 26701 | L8: =RTD("cqg.rtd", ,"ContractData",B8, "TradeorTodaySettlement",, "T") -> 81.58 | M8: =RTD("cqg.rtd", ,"ContractData",B8, "NetSettlement",, "T") -> 3.89 | Q8: CLE?91 | R8: =IF(RTD("cqg.rtd", ,"ContractData",Q8, "TradeorTodaySettlement",, "T")="",NA(),RTD("cqg.rtd", ,"ContractData",Q8, "TradeorTodaySettlement",, "T")) -> 59.05 | S8: 59.05 | T8: =RTD("cqg.rtd", ,"ContractData",Q8, "LongDescription",, "T") -> Crude Light (Globex), Dec 33 | W8: =_xlfn.REGEXEXTRACT(RTD("cqg.rtd", ,"ContractData",Q8, "LongDescription",, "T"), "[A-Z][a-z]{2}\s\d{2}") -> Dec 33 | X8: =IF(Q8="",NA(),RTD("cqg.rtd", ,"ContractData",Q8, "NetSettlement",, "T")) -> 0.76 | Y8: 0.76
A9: 9 | B9: CLE?9 | C9: CLE | D9: =RTD("cqg.rtd", ,"ContractData",B9, "ContractMonth",, "T") -> FEB | E9: =RTD("cqg.rtd", ,"ContractData",B9, "LongDescription",, "T") -> Crude Light (Globex), Feb 27 | F9: =_xlfn.REGEXEXTRACT(RTD("cqg.rtd", ,"ContractData",B9, "LongDescription",, "T"), "[A-Z][a-z]{2}\s\d{2}") -> Feb 27 | G9: =RTD("cqg.rtd", ,"ContractData",B9, "LastTrade",, "T") -> 80.03 | H9: =IF(RTD("cqg.rtd", ,"ContractData",B9, "NetLastTrade",, "T")="",NA(),RTD("cqg.rtd", ,"ContractData",B9, "NetLastTrade",, "T")) -> 3.28 | I9: =RTD("cqg.rtd", ,"ContractData",B9, "Bid",, "T") -> 80.12 | J9: =RTD("cqg.rtd", ,"ContractData",B9, "Ask",, "T") -> 80.16 | K9: =RTD("cqg.rtd", ,"ContractData",B9, "T_CVol",, "T") -> 15862 | L9: =RTD("cqg.rtd", ,"ContractData",B9, "TradeorTodaySettlement",, "T") -> 80.03 | M9: =RTD("cqg.rtd", ,"ContractData",B9, "NetSettlement",, "T") -> 3.61 | Q9: CLE?103 | R9: =IF(RTD("cqg.rtd", ,"ContractData",Q9, "TradeorTodaySettlement",, "T")="",NA(),RTD("cqg.rtd", ,"ContractData",Q9, "TradeorTodaySettlement",, "T")) -> 56.96 | S9: 56.96 | T9: =RTD("cqg.rtd", ,"ContractData",Q9, "LongDescription",, "T") -> Crude Light (Globex), Dec 34 | W9: =_xlfn.REGEXEXTRACT(RTD("cqg.rtd", ,"ContractData",Q9, "LongDescription",, "T"), "[A-Z][a-z]{2}\s\d{2}") -> Dec 34 | X9: =IF(Q9="",NA(),RTD("cqg.rtd", ,"ContractData",Q9, "NetSettlement",, "T")) -> 0.7 | Y9: 0.7
A10: 10 | B10: CLE?10 | C10: CLE | D10: =RTD("cqg.rtd", ,"ContractData",B10, "ContractMonth",, "T") -> MAR | E10: =RTD("cqg.rtd", ,"ContractData",B10, "LongDescription",, "T") -> Crude Light (Globex), Mar 27 | F10: =_xlfn.REGEXEXTRACT(RTD("cqg.rtd", ,"ContractData",B10, "LongDescription",, "T"), "[A-Z][a-z]{2}\s\d{2}") -> Mar 27 | G10: =RTD("cqg.rtd", ,"ContractData",B10, "LastTrade",, "T") -> 78.95 | H10: =IF(RTD("cqg.rtd", ,"ContractData",B10, "NetLastTrade",, "T")="",NA(),RTD("cqg.rtd", ,"ContractData",B10, "NetLastTrade",, "T")) -> 3.17 | I10: =RTD("cqg.rtd", ,"ContractData",B10, "Bid",, "T") -> 78.94 | J10: =RTD("cqg.rtd", ,"ContractData",B10, "Ask",, "T") -> 78.98 | K10: =RTD("cqg.rtd", ,"ContractData",B10, "T_CVol",, "T") -> 23379 | L10: =RTD("cqg.rtd", ,"ContractData",B10, "TradeorTodaySettlement",, "T") -> 78.95 | M10: =RTD("cqg.rtd", ,"ContractData",B10, "NetSettlement",, "T") -> 3.33 | Q10: CLE?115 | R10: =IF(RTD("cqg.rtd", ,"ContractData",Q10, "TradeorTodaySettlement",, "T")="",NA(),RTD("cqg.rtd", ,"ContractData",Q10, "TradeorTodaySettlement",, "T")) -> 55.12 | S10: 55.12 | T10: =RTD("cqg.rtd", ,"ContractData",Q10, "LongDescription",, "T") -> Crude Light (Globex), Dec 35 | W10: =_xlfn.REGEXEXTRACT(RTD("cqg.rtd", ,"ContractData",Q10, "LongDescription",, "T"), "[A-Z][a-z]{2}\s\d{2}") -> Dec 35 | X10: =IF(Q10="",NA(),RTD("cqg.rtd", ,"ContractData",Q10, "NetSettlement",, "T")) -> 0.7 | Y10: 0.7
A11: 11 | B11: CLE?11 | C11: CLE | D11: =RTD("cqg.rtd", ,"ContractData",B11, "ContractMonth",, "T") -> APR | E11: =RTD("cqg.rtd", ,"ContractData",B11, "LongDescription",, "T") -> Crude Light (Globex), Apr 27 | F11: =_xlfn.REGEXEXTRACT(RTD("cqg.rtd", ,"ContractData",B11, "LongDescription",, "T"), "[A-Z][a-z]{2}\s\d{2}") -> Apr 27 | G11: =RTD("cqg.rtd", ,"ContractData",B11, "LastTrade",, "T") -> 78.09 | H11: =IF(RTD("cqg.rtd", ,"ContractData",B11, "NetLastTrade",, "T")="",NA(),RTD("cqg.rtd", ,"ContractData",B11, "NetLastTrade",, "T")) -> 3.09 | I11: =RTD("cqg.rtd", ,"ContractData",B11, "Bid",, "T") -> 77.99 | J11: =RTD("cqg.rtd", ,"ContractData",B11, "Ask",, "T") -> 78.04 | K11: =RTD("cqg.rtd", ,"ContractData",B11, "T_CVol",, "T") -> 5767 | L11: =RTD("cqg.rtd", ,"ContractData",B11, "TradeorTodaySettlement",, "T") -> 78.09 | M11: =RTD("cqg.rtd", ,"ContractData",B11, "NetSettlement",, "T") -> 3.12 | Q11: CLE?127 | R11: =IF(RTD("cqg.rtd", ,"ContractData",Q11, "TradeorTodaySettlement",, "T")="",NA(),RTD("cqg.rtd", ,"ContractData",Q11, "TradeorTodaySettlement",, "T")) -> 53.22 | S11: 53.22 | T11: =IF(Q11="","",RTD("cqg.rtd", ,"ContractData",Q11, "LongDescription",, "T")) -> Crude Light (Globex), Dec 36 | W11: =IF(Q11="","",_xlfn.REGEXEXTRACT(RTD("cqg.rtd", ,"ContractData",Q11, "LongDescription",, "T"), "[A-Z][a-z]{2}\s\d{2}")) -> Dec 36 | X11: =IF(Q11="",NA(),RTD("cqg.rtd", ,"ContractData",Q11, "NetSettlement",, "T")) -> 0.7 | Y11: 0.7
A12: 12 | B12: CLE?12 | C12: CLE | D12: =RTD("cqg.rtd", ,"ContractData",B12, "ContractMonth",, "T") -> MAY | E12: =RTD("cqg.rtd", ,"ContractData",B12, "LongDescription",, "T") -> Crude Light (Globex), May 27 | F12: =_xlfn.REGEXEXTRACT(RTD("cqg.rtd", ,"ContractData",B12, "LongDescription",, "T"), "[A-Z][a-z]{2}\s\d{2}") -> May 27 | G12: =RTD("cqg.rtd", ,"ContractData",B12, "LastTrade",, "T") -> 77.23 | H12: =IF(RTD("cqg.rtd", ,"ContractData",B12, "NetLastTrade",, "T")="",NA(),RTD("cqg.rtd", ,"ContractData",B12, "NetLastTrade",, "T")) -> 2.85 | I12: =RTD("cqg.rtd", ,"ContractData",B12, "Bid",, "T") -> 77.24 | J12: =RTD("cqg.rtd", ,"ContractData",B12, "Ask",, "T") -> 77.29 | K12: =RTD("cqg.rtd", ,"ContractData",B12, "T_CVol",, "T") -> 3355 | L12: =RTD("cqg.rtd", ,"ContractData",B12, "TradeorTodaySettlement",, "T") -> 77.23 | M12: =RTD("cqg.rtd", ,"ContractData",B12, "NetSettlement",, "T") -> 2.94
A13: 13 | B13: CLE?13 | C13: CLE | D13: =RTD("cqg.rtd", ,"ContractData",B13, "ContractMonth",, "T") -> JUN | E13: =RTD("cqg.rtd", ,"ContractData",B13, "LongDescription",, "T") -> Crude Light (Globex), Jun 27 | F13: =_xlfn.REGEXEXTRACT(RTD("cqg.rtd", ,"ContractData",B13, "LongDescription",, "T"), "[A-Z][a-z]{2}\s\d{2}") -> Jun 27 | G13: =RTD("cqg.rtd", ,"ContractData",B13, "LastTrade",, "T") -> 76.62 | H13: =IF(RTD("cqg.rtd", ,"ContractData",B13, "NetLastTrade",, "T")="",NA(),RTD("cqg.rtd", ,"ContractData",B13, "NetLastTrade",, "T")) -> 2.76 | I13: =RTD("cqg.rtd", ,"ContractData",B13, "Bid",, "T") -> 76.62 | J13: =RTD("cqg.rtd", ,"ContractData",B13, "Ask",, "T") -> 76.65 | K13: =RTD("cqg.rtd", ,"ContractData",B13, "T_CVol",, "T") -> 40595 | L13: =RTD("cqg.rtd", ,"ContractData",B13, "TradeorTodaySettlement",, "T") -> 76.62 | Q13: =Display!A1&" "&Display!G2&" "&"Contracts (available after the close.)" -> Crude Light (Globex) Dashboard Dec Contracts (available after the close.)
A14: 14 | B14: CLE?14 | C14: CLE | D14: =RTD("cqg.rtd", ,"ContractData",B14, "ContractMonth",, "T") -> JUL | E14: =RTD("cqg.rtd", ,"ContractData",B14, "LongDescription",, "T") -> Crude Light (Globex), Jul 27 | F14: =_xlfn.REGEXEXTRACT(RTD("cqg.rtd", ,"ContractData",B14, "LongDescription",, "T"), "[A-Z][a-z]{2}\s\d{2}") -> Jul 27 | G14: =RTD("cqg.rtd", ,"ContractData",B14, "LastTrade",, "T") -> 76.09 | H14: =IF(RTD("cqg.rtd", ,"ContractData",B14, "NetLastTrade",, "T")="",NA(),RTD("cqg.rtd", ,"ContractData",B14, "NetLastTrade",, "T")) -> 2.72 | I14: =RTD("cqg.rtd", ,"ContractData",B14, "Bid",, "T") -> 76.03 | J14: =RTD("cqg.rtd", ,"ContractData",B14, "Ask",, "T") -> 76.1 | K14: =RTD("cqg.rtd", ,"ContractData",B14, "T_CVol",, "T") -> 2797 | L14: =RTD("cqg.rtd", ,"ContractData",B14, "TradeorTodaySettlement",, "T") -> 76.09
A15: 15 | B15: CLE?15 | C15: CLE | D15: =RTD("cqg.rtd", ,"ContractData",B15, "ContractMonth",, "T") -> AUG | E15: =RTD("cqg.rtd", ,"ContractData",B15, "LongDescription",, "T") -> Crude Light (Globex), Aug 27 | F15: =_xlfn.REGEXEXTRACT(RTD("cqg.rtd", ,"ContractData",B15, "LongDescription",, "T"), "[A-Z][a-z]{2}\s\d{2}") -> Aug 27 | G15: =RTD("cqg.rtd", ,"ContractData",B15, "LastTrade",, "T") -> 75.48 | H15: =IF(RTD("cqg.rtd", ,"ContractData",B15, "NetLastTrade",, "T")="",NA(),RTD("cqg.rtd", ,"ContractData",B15, "NetLastTrade",, "T")) -> 2.57 | I15: =RTD("cqg.rtd", ,"ContractData",B15, "Bid",, "T") -> 75.51 | J15: =RTD("cqg.rtd", ,"ContractData",B15, "Ask",, "T") -> 75.59 | K15: =RTD("cqg.rtd", ,"ContractData",B15, "T_CVol",, "T") -> 1974 | L15: =RTD("cqg.rtd", ,"ContractData",B15, "TradeorTodaySettlement",, "T") -> 75.48
A16: 16 | B16: CLE?16 | C16: CLE | D16: =RTD("cqg.rtd", ,"ContractData",B16, "ContractMonth",, "T") -> SEP | E16: =RTD("cqg.rtd", ,"ContractData",B16, "LongDescription",, "T") -> Crude Light (Globex), Sep 27 | F16: =_xlfn.REGEXEXTRACT(RTD("cqg.rtd", ,"ContractData",B16, "LongDescription",, "T"), "[A-Z][a-z]{2}\s\d{2}") -> Sep 27 | G16: =RTD("cqg.rtd", ,"ContractData",B16, "LastTrade",, "T") -> 75.04 | H16: =IF(RTD("cqg.rtd", ,"ContractData",B16, "NetLastTrade",, "T")="",NA(),RTD("cqg.rtd", ,"ContractData",B16, "NetLastTrade",, "T")) -> 2.54 | I16: =RTD("cqg.rtd", ,"ContractData",B16, "Bid",, "T") -> 75.04 | J16: =RTD("cqg.rtd", ,"ContractData",B16, "Ask",, "T") -> 75.14 | K16: =RTD("cqg.rtd", ,"ContractData",B16, "T_CVol",, "T") -> 3332 | L16: =RTD("cqg.rtd", ,"ContractData",B16, "TradeorTodaySettlement",, "T") -> 75.04
A17: 17 | B17: CLE?17 | C17: CLE | D17: =RTD("cqg.rtd", ,"ContractData",B17, "ContractMonth",, "T") -> OCT | E17: =RTD("cqg.rtd", ,"ContractData",B17, "LongDescription",, "T") -> Crude Light (Globex), Oct 27 | F17: =_xlfn.REGEXEXTRACT(RTD("cqg.rtd", ,"ContractData",B17, "LongDescription",, "T"), "[A-Z][a-z]{2}\s\d{2}") -> Oct 27 | G17: =RTD("cqg.rtd", ,"ContractData",B17, "LastTrade",, "T") -> 74.45 | H17: =IF(RTD("cqg.rtd", ,"ContractData",B17, "NetLastTrade",, "T")="",NA(),RTD("cqg.rtd", ,"ContractData",B17, "NetLastTrade",, "T")) -> 2.31 | I17: =RTD("cqg.rtd", ,"ContractData",B17, "Bid",, "T") -> 74.62 | J17: =RTD("cqg.rtd", ,"ContractData",B17, "Ask",, "T") -> 74.74 | K17: =RTD("cqg.rtd", ,"ContractData",B17, "T_CVol",, "T") -> 1522 | L17: =RTD("cqg.rtd", ,"ContractData",B17, "TradeorTodaySettlement",, "T") -> 74.45
A18: 18 | B18: CLE?18 | C18: CLE | D18: =RTD("cqg.rtd", ,"ContractData",B18, "ContractMonth",, "T") -> NOV | E18: =RTD("cqg.rtd", ,"ContractData",B18, "LongDescription",, "T") -> Crude Light (Globex), Nov 27 | F18: =_xlfn.REGEXEXTRACT(RTD("cqg.rtd", ,"ContractData",B18, "LongDescription",, "T"), "[A-Z][a-z]{2}\s\d{2}") -> Nov 27 | G18: =RTD("cqg.rtd", ,"ContractData",B18, "LastTrade",, "T") -> 74.27 | H18: =IF(RTD("cqg.rtd", ,"ContractData",B18, "NetLastTrade",, "T")="",NA(),RTD("cqg.rtd", ,"ContractData",B18, "NetLastTrade",, "T")) -> 2.46 | I18: =RTD("cqg.rtd", ,"ContractData",B18, "Bid",, "T") -> 74.25 | J18: =RTD("cqg.rtd", ,"ContractData",B18, "Ask",, "T") -> 74.36 | K18: =RTD("cqg.rtd", ,"ContractData",B18, "T_CVol",, "T") -> 1694 | L18: =RTD("cqg.rtd", ,"ContractData",B18, "TradeorTodaySettlement",, "T") -> 74.27
A19: 19 | B19: CLE?19 | C19: CLE | D19: =RTD("cqg.rtd", ,"ContractData",B19, "ContractMonth",, "T") -> DEC | E19: =RTD("cqg.rtd", ,"ContractData",B19, "LongDescription",, "T") -> Crude Light (Globex), Dec 27 | F19: =_xlfn.REGEXEXTRACT(RTD("cqg.rtd", ,"ContractData",B19, "LongDescription",, "T"), "[A-Z][a-z]{2}\s\d{2}") -> Dec 27 | G19: =RTD("cqg.rtd", ,"ContractData",B19, "LastTrade",, "T") -> 73.97 | H19: =IF(RTD("cqg.rtd", ,"ContractData",B19, "NetLastTrade",, "T")="",NA(),RTD("cqg.rtd", ,"ContractData",B19, "NetLastTrade",, "T")) -> 2.48 | I19: =RTD("cqg.rtd", ,"ContractData",B19, "Bid",, "T") -> 73.93 | J19: =RTD("cqg.rtd", ,"ContractData",B19, "Ask",, "T") -> 73.96 | K19: =RTD("cqg.rtd", ,"ContractData",B19, "T_CVol",, "T") -> 71691 | L19: =RTD("cqg.rtd", ,"ContractData",B19, "TradeorTodaySettlement",, "T") -> 73.97
A20: 20 | B20: CLE?20 | C20: CLE | D20: =RTD("cqg.rtd", ,"ContractData",B20, "ContractMonth",, "T") -> JAN | E20: =RTD("cqg.rtd", ,"ContractData",B20, "LongDescription",, "T") -> Crude Light (Globex), Jan 28 | F20: =_xlfn.REGEXEXTRACT(RTD("cqg.rtd", ,"ContractData",B20, "LongDescription",, "T"), "[A-Z][a-z]{2}\s\d{2}") -> Jan 28 | G20: =RTD("cqg.rtd", ,"ContractData",B20, "LastTrade",, "T") -> 73.37 | H20: =IF(RTD("cqg.rtd", ,"ContractData",B20, "NetLastTrade",, "T")="",NA(),RTD("cqg.rtd", ,"ContractData",B20, "NetLastTrade",, "T")) -> 2.25 | I20: =RTD("cqg.rtd", ,"ContractData",B20, "Bid",, "T") -> 73.49 | J20: =RTD("cqg.rtd", ,"ContractData",B20, "Ask",, "T") -> 73.58 | K20: =RTD("cqg.rtd", ,"ContractData",B20, "T_CVol",, "T") -> 764 | L20: =RTD("cqg.rtd", ,"ContractData",B20, "TradeorTodaySettlement",, "T") -> 73.37
A21: 21 | B21: CLE?21 | C21: CLE | D21: =RTD("cqg.rtd", ,"ContractData",B21, "ContractMonth",, "T") -> FEB | E21: =RTD("cqg.rtd", ,"ContractData",B21, "LongDescription",, "T") -> Crude Light (Globex), Feb 28 | F21: =_xlfn.REGEXEXTRACT(RTD("cqg.rtd", ,"ContractData",B21, "LongDescription",, "T"), "[A-Z][a-z]{2}\s\d{2}") -> Feb 28 | G21: =RTD("cqg.rtd", ,"ContractData",B21, "LastTrade",, "T") -> 70.53 | H21: =IF(RTD("cqg.rtd", ,"ContractData",B21, "NetLastTrade",, "T")="",NA(),RTD("cqg.rtd", ,"ContractData",B21, "NetLastTrade",, "T")) -> -0.23 | I21: =RTD("cqg.rtd", ,"ContractData",B21, "Bid",, "T") -> 73.1 | J21: =RTD("cqg.rtd", ,"ContractData",B21, "Ask",, "T") -> 73.21 | K21: =RTD("cqg.rtd", ,"ContractData",B21, "T_CVol",, "T") -> 848 | L21: =RTD("cqg.rtd", ,"ContractData",B21, "TradeorTodaySettlement",, "T") -> 72.97
A22: 22 | B22: CLE?22 | C22: =LEFT(B22,FIND("?",B22)-1) -> CLE | D22: =RTD("cqg.rtd", ,"ContractData",B22, "ContractMonth",, "T") -> MAR | E22: =RTD("cqg.rtd", ,"ContractData",B22, "LongDescription",, "T") -> Crude Light (Globex), Mar 28 | F22: =_xlfn.REGEXEXTRACT(RTD("cqg.rtd", ,"ContractData",B22, "LongDescription",, "T"), "[A-Z][a-z]{2}\s\d{2}") -> Mar 28 | G22: =RTD("cqg.rtd", ,"ContractData",B22, "LastTrade",, "T") -> 72.59 | H22: =IF(RTD("cqg.rtd", ,"ContractData",B22, "NetLastTrade",, "T")="",NA(),RTD("cqg.rtd", ,"ContractData",B22, "NetLastTrade",, "T")) -> 2.14 | I22: =RTD("cqg.rtd", ,"ContractData",B22, "Bid",, "T") -> 72.79 | J22: =RTD("cqg.rtd", ,"ContractData",B22, "Ask",, "T") -> 72.88 | K22: =RTD("cqg.rtd", ,"ContractData",B22, "T_CVol",, "T") -> 2670 | L22: =RTD("cqg.rtd", ,"ContractData",B22, "TradeorTodaySettlement",, "T") -> 72.59
A23: 23 | B23: CLE?23 | C23: CLE | D23: =RTD("cqg.rtd", ,"ContractData",B23, "ContractMonth",, "T") -> APR | E23: =RTD("cqg.rtd", ,"ContractData",B23, "LongDescription",, "T") -> Crude Light (Globex), Apr 28 | F23: =_xlfn.REGEXEXTRACT(RTD("cqg.rtd", ,"ContractData",B23, "LongDescription",, "T"), "[A-Z][a-z]{2}\s\d{2}") -> Apr 28 | G23: =RTD("cqg.rtd", ,"ContractData",B23, "LastTrade",, "T") ->  | H23: =IF(RTD("cqg.rtd", ,"ContractData",B23, "NetLastTrade",, "T")="",NA(),RTD("cqg.rtd", ,"ContractData",B23, "NetLastTrade",, "T")) ->  | I23: =RTD("cqg.rtd", ,"ContractData",B23, "Bid",, "T") -> 72.1 | J23: =RTD("cqg.rtd", ,"ContractData",B23, "Ask",, "T") -> 72.9 | K23: =RTD("cqg.rtd", ,"ContractData",B23, "T_CVol",, "T") -> 169 | L23: =RTD("cqg.rtd", ,"ContractData",B23, "TradeorTodaySettlement",, "T") -> 72.3
A24: 24 | B24: CLE?24 | C24: CLE | D24: =RTD("cqg.rtd", ,"ContractData",B24, "ContractMonth",, "T") -> MAY | E24: =RTD("cqg.rtd", ,"ContractData",B24, "LongDescription",, "T") -> Crude Light (Globex), May 28 | F24: =_xlfn.REGEXEXTRACT(RTD("cqg.rtd", ,"ContractData",B24, "LongDescription",, "T"), "[A-Z][a-z]{2}\s\d{2}") -> May 28 | G24: =RTD("cqg.rtd", ,"ContractData",B24, "LastTrade",, "T") ->  | H24: =IF(RTD("cqg.rtd", ,"ContractData",B24, "NetLastTrade",, "T")="",NA(),RTD("cqg.rtd", ,"ContractData",B24, "NetLastTrade",, "T")) ->  | I24: =RTD("cqg.rtd", ,"ContractData",B24, "Bid",, "T") -> 71.82 | J24: =RTD("cqg.rtd", ,"ContractData",B24, "Ask",, "T") -> 72.72 | K24: =RTD("cqg.rtd", ,"ContractData",B24, "T_CVol",, "T") -> 115 | L24: =RTD("cqg.rtd", ,"ContractData",B24, "TradeorTodaySettlement",, "T") -> 72.02
A25: 25 | B25: CLE?25 | C25: CLE | D25: =RTD("cqg.rtd", ,"ContractData",B25, "ContractMonth",, "T") -> JUN | E25: =RTD("cqg.rtd", ,"ContractData",B25, "LongDescription",, "T") -> Crude Light (Globex), Jun 28 | F25: =_xlfn.REGEXEXTRACT(RTD("cqg.rtd", ,"ContractData",B25, "LongDescription",, "T"), "[A-Z][a-z]{2}\s\d{2}") -> Jun 28 | G25: =RTD("cqg.rtd", ,"ContractData",B25, "LastTrade",, "T") -> 71.96 | H25: =IF(RTD("cqg.rtd", ,"ContractData",B25, "NetLastTrade",, "T")="",NA(),RTD("cqg.rtd", ,"ContractData",B25, "NetLastTrade",, "T")) -> 2.23 | I25: =RTD("cqg.rtd", ,"ContractData",B25, "Bid",, "T") -> 72.02 | J25: =RTD("cqg.rtd", ,"ContractData",B25, "Ask",, "T") -> 72.07 | K25: =RTD("cqg.rtd", ,"ContractData",B25, "T_CVol",, "T") -> 14393 | L25: =RTD("cqg.rtd", ,"ContractData",B25, "TradeorTodaySettlement",, "T") -> 71.96
A26: 26 | B26: CLE?26 | C26: CLE | D26: =RTD("cqg.rtd", ,"ContractData",B26, "ContractMonth",, "T") -> JUL | E26: =RTD("cqg.rtd", ,"ContractData",B26, "LongDescription",, "T") -> Crude Light (Globex), Jul 28 | F26: =_xlfn.REGEXEXTRACT(RTD("cqg.rtd", ,"ContractData",B26, "LongDescription",, "T"), "[A-Z][a-z]{2}\s\d{2}") -> Jul 28 | G26: =RTD("cqg.rtd", ,"ContractData",B26, "LastTrade",, "T") ->  | H26: =IF(RTD("cqg.rtd", ,"ContractData",B26, "NetLastTrade",, "T")="",NA(),RTD("cqg.rtd", ,"ContractData",B26, "NetLastTrade",, "T")) ->  | I26: =RTD("cqg.rtd", ,"ContractData",B26, "Bid",, "T") -> 71.25 | J26: =RTD("cqg.rtd", ,"ContractData",B26, "Ask",, "T") -> 72.28 | K26: =RTD("cqg.rtd", ,"ContractData",B26, "T_CVol",, "T") -> 43 | L26: =RTD("cqg.rtd", ,"ContractData",B26, "TradeorTodaySettlement",, "T") -> 71.47
A27: 27 | B27: CLE?27 | C27: CLE | D27: =RTD("cqg.rtd", ,"ContractData",B27, "ContractMonth",, "T") -> AUG | E27: =RTD("cqg.rtd", ,"ContractData",B27, "LongDescription",, "T") -> Crude Light (Globex), Aug 28 | F27: =_xlfn.REGEXEXTRACT(RTD("cqg.rtd", ,"ContractData",B27, "LongDescription",, "T"), "[A-Z][a-z]{2}\s\d{2}") -> Aug 28 | G27: =RTD("cqg.rtd", ,"ContractData",B27, "LastTrade",, "T") ->  | H27: =IF(RTD("cqg.rtd", ,"ContractData",B27, "NetLastTrade",, "T")="",NA(),RTD("cqg.rtd", ,"ContractData",B27, "NetLastTrade",, "T")) ->  | I27: =RTD("cqg.rtd", ,"ContractData",B27, "Bid",, "T") -> 70.91 | J27: =RTD("cqg.rtd", ,"ContractData",B27, "Ask",, "T") -> 72.02 | K27: =RTD("cqg.rtd", ,"ContractData",B27, "T_CVol",, "T") -> 62 | L27: =RTD("cqg.rtd", ,"ContractData",B27, "TradeorTodaySettlement",, "T") -> 71.16
A28: 28 | B28: CLE?28 | C28: CLE | D28: =RTD("cqg.rtd", ,"ContractData",B28, "ContractMonth",, "T") -> SEP | E28: =RTD("cqg.rtd", ,"ContractData",B28, "LongDescription",, "T") -> Crude Light (Globex), Sep 28 | F28: =_xlfn.REGEXEXTRACT(RTD("cqg.rtd", ,"ContractData",B28, "LongDescription",, "T"), "[A-Z][a-z]{2}\s\d{2}") -> Sep 28 | G28: =RTD("cqg.rtd", ,"ContractData",B28, "LastTrade",, "T") -> 70.05 | H28: =IF(RTD("cqg.rtd", ,"ContractData",B28, "NetLastTrade",, "T")="",NA(),RTD("cqg.rtd", ,"ContractData",B28, "NetLastTrade",, "T")) -> 1.1 | I28: =RTD("cqg.rtd", ,"ContractData",B28, "Bid",, "T") -> 70.91 | J28: =RTD("cqg.rtd", ,"ContractData",B28, "Ask",, "T") -> 71.49 | K28: =RTD("cqg.rtd", ,"ContractData",B28, "T_CVol",, "T") -> 106 | L28: =RTD("cqg.rtd", ,"ContractData",B28, "TradeorTodaySettlement",, "T") -> 70.05
A29: 29 | B29: CLE?29 | C29: CLE | D29: =RTD("cqg.rtd", ,"ContractData",B29, "ContractMonth",, "T") -> OCT | E29: =RTD("cqg.rtd", ,"ContractData",B29, "LongDescription",, "T") -> Crude Light (Globex), Oct 28 | F29: =_xlfn.REGEXEXTRACT(RTD("cqg.rtd", ,"ContractData",B29, "LongDescription",, "T"), "[A-Z][a-z]{2}\s\d{2}") -> Oct 28 | G29: =RTD("cqg.rtd", ,"ContractData",B29, "LastTrade",, "T") ->  | H29: =IF(RTD("cqg.rtd", ,"ContractData",B29, "NetLastTrade",, "T")="",NA(),RTD("cqg.rtd", ,"ContractData",B29, "NetLastTrade",, "T")) ->  | I29: =RTD("cqg.rtd", ,"ContractData",B29, "Bid",, "T") -> 70.41 | J29: =RTD("cqg.rtd", ,"ContractData",B29, "Ask",, "T") -> 71.43 | K29: =RTD("cqg.rtd", ,"ContractData",B29, "T_CVol",, "T") -> 51 | L29: =RTD("cqg.rtd", ,"ContractData",B29, "TradeorTodaySettlement",, "T") -> 70.61
A30: 30 | B30: CLE?30 | C30: CLE | D30: =RTD("cqg.rtd", ,"ContractData",B30, "ContractMonth",, "T") -> NOV | E30: =RTD("cqg.rtd", ,"ContractData",B30, "LongDescription",, "T") -> Crude Light (Globex), Nov 28 | F30: =_xlfn.REGEXEXTRACT(RTD("cqg.rtd", ,"ContractData",B30, "LongDescription",, "T"), "[A-Z][a-z]{2}\s\d{2}") -> Nov 28 | G30: =RTD("cqg.rtd", ,"ContractData",B30, "LastTrade",, "T") ->  | H30: =IF(RTD("cqg.rtd", ,"ContractData",B30, "NetLastTrade",, "T")="",NA(),RTD("cqg.rtd", ,"ContractData",B30, "NetLastTrade",, "T")) ->  | I30: =RTD("cqg.rtd", ,"ContractData",B30, "Bid",, "T") -> 70.19 | J30: =RTD("cqg.rtd", ,"ContractData",B30, "Ask",, "T") -> 71.2 | K30: =RTD("cqg.rtd", ,"ContractData",B30, "T_CVol",, "T") -> 17 | L30: =RTD("cqg.rtd", ,"ContractData",B30, "TradeorTodaySettlement",, "T") -> 70.37
A31: 31 | B31: CLE?31 | C31: CLE | D31: =RTD("cqg.rtd", ,"ContractData",B31, "ContractMonth",, "T") -> DEC | E31: =RTD("cqg.rtd", ,"ContractData",B31, "LongDescription",, "T") -> Crude Light (Globex), Dec 28 | F31: =_xlfn.REGEXEXTRACT(RTD("cqg.rtd", ,"ContractData",B31, "LongDescription",, "T"), "[A-Z][a-z]{2}\s\d{2}") -> Dec 28 | G31: =RTD("cqg.rtd", ,"ContractData",B31, "LastTrade",, "T") -> 70.41 | H31: =IF(RTD("cqg.rtd", ,"ContractData",B31, "NetLastTrade",, "T")="",NA(),RTD("cqg.rtd", ,"ContractData",B31, "NetLastTrade",, "T")) -> 2.11 | I31: =RTD("cqg.rtd", ,"ContractData",B31, "Bid",, "T") -> 70.45 | J31: =RTD("cqg.rtd", ,"ContractData",B31, "Ask",, "T") -> 70.5 | K31: =RTD("cqg.rtd", ,"ContractData",B31, "T_CVol",, "T") -> 25662 | L31: =RTD("cqg.rtd", ,"ContractData",B31, "TradeorTodaySettlement",, "T") -> 70.41
A32: 32 | B32: CLE?32 | C32: CLE | D32: =RTD("cqg.rtd", ,"ContractData",B32, "ContractMonth",, "T") -> JAN | E32: =RTD("cqg.rtd", ,"ContractData",B32, "LongDescription",, "T") -> Crude Light (Globex), Jan 29 | F32: =_xlfn.REGEXEXTRACT(RTD("cqg.rtd", ,"ContractData",B32, "LongDescription",, "T"), "[A-Z][a-z]{2}\s\d{2}") -> Jan 29 | G32: =RTD("cqg.rtd", ,"ContractData",B32, "LastTrade",, "T") ->  | H32: =IF(RTD("cqg.rtd", ,"ContractData",B32, "NetLastTrade",, "T")="",NA(),RTD("cqg.rtd", ,"ContractData",B32, "NetLastTrade",, "T")) ->  | I32: =RTD("cqg.rtd", ,"ContractData",B32, "Bid",, "T") -> 69.64 | J32: =RTD("cqg.rtd", ,"ContractData",B32, "Ask",, "T") -> 70.73 | K32: =RTD("cqg.rtd", ,"ContractData",B32, "T_CVol",, "T") -> 14 | L32: =RTD("cqg.rtd", ,"ContractData",B32, "TradeorTodaySettlement",, "T") -> 69.83
A33: 33 | B33: CLE?33 | C33: CLE | D33: =RTD("cqg.rtd", ,"ContractData",B33, "ContractMonth",, "T") -> FEB | E33: =RTD("cqg.rtd", ,"ContractData",B33, "LongDescription",, "T") -> Crude Light (Globex), Feb 29 | F33: =_xlfn.REGEXEXTRACT(RTD("cqg.rtd", ,"ContractData",B33, "LongDescription",, "T"), "[A-Z][a-z]{2}\s\d{2}") -> Feb 29 | G33: =RTD("cqg.rtd", ,"ContractData",B33, "LastTrade",, "T") ->  | H33: =IF(RTD("cqg.rtd", ,"ContractData",B33, "NetLastTrade",, "T")="",NA(),RTD("cqg.rtd", ,"ContractData",B33, "NetLastTrade",, "T")) ->  | I33: =RTD("cqg.rtd", ,"ContractData",B33, "Bid",, "T") -> 69.32 | J33: =RTD("cqg.rtd", ,"ContractData",B33, "Ask",, "T") -> 70.45 | K33: =RTD("cqg.rtd", ,"ContractData",B33, "T_CVol",, "T") -> 3 | L33: =RTD("cqg.rtd", ,"ContractData",B33, "TradeorTodaySettlement",, "T") -> 69.54
A34: 34 | B34: CLE?34 | C34: CLE | D34: =RTD("cqg.rtd", ,"ContractData",B34, "ContractMonth",, "T") -> MAR | E34: =RTD("cqg.rtd", ,"ContractData",B34, "LongDescription",, "T") -> Crude Light (Globex), Mar 29 | F34: =_xlfn.REGEXEXTRACT(RTD("cqg.rtd", ,"ContractData",B34, "LongDescription",, "T"), "[A-Z][a-z]{2}\s\d{2}") -> Mar 29 | G34: =RTD("cqg.rtd", ,"ContractData",B34, "LastTrade",, "T") ->  | H34: =IF(RTD("cqg.rtd", ,"ContractData",B34, "NetLastTrade",, "T")="",NA(),RTD("cqg.rtd", ,"ContractData",B34, "NetLastTrade",, "T")) ->  | I34: =RTD("cqg.rtd", ,"ContractData",B34, "Bid",, "T") -> 69.41 | J34: =RTD("cqg.rtd", ,"ContractData",B34, "Ask",, "T") -> 69.89 | K34: =RTD("cqg.rtd", ,"ContractData",B34, "T_CVol",, "T") -> 5 | L34: =RTD("cqg.rtd", ,"ContractData",B34, "TradeorTodaySettlement",, "T") -> 69.28
A35: 35 | B35: CLE?35 | C35: CLE | D35: =RTD("cqg.rtd", ,"ContractData",B35, "ContractMonth",, "T") -> APR | E35: =RTD("cqg.rtd", ,"ContractData",B35, "LongDescription",, "T") -> Crude Light (Globex), Apr 29 | F35: =_xlfn.REGEXEXTRACT(RTD("cqg.rtd", ,"ContractData",B35, "LongDescription",, "T"), "[A-Z][a-z]{2}\s\d{2}") -> Apr 29 | G35: =RTD("cqg.rtd", ,"ContractData",B35, "LastTrade",, "T") ->  | H35: =IF(RTD("cqg.rtd", ,"ContractData",B35, "NetLastTrade",, "T")="",NA(),RTD("cqg.rtd", ,"ContractData",B35, "NetLastTrade",, "T")) ->  | I35: =RTD("cqg.rtd", ,"ContractData",B35, "Bid",, "T") -> 68.73 | J35: =RTD("cqg.rtd", ,"ContractData",B35, "Ask",, "T") -> 70.03 | K35: =RTD("cqg.rtd", ,"ContractData",B35, "T_CVol",, "T") -> 0 | L35: =RTD("cqg.rtd", ,"ContractData",B35, "TradeorTodaySettlement",, "T") -> 69.04
A36: 36 | B36: CLE?36 | C36: CLE | D36: =RTD("cqg.rtd", ,"ContractData",B36, "ContractMonth",, "T") -> MAY | E36: =RTD("cqg.rtd", ,"ContractData",B36, "LongDescription",, "T") -> Crude Light (Globex), May 29 | F36: =_xlfn.REGEXEXTRACT(RTD("cqg.rtd", ,"ContractData",B36, "LongDescription",, "T"), "[A-Z][a-z]{2}\s\d{2}") -> May 29 | G36: =RTD("cqg.rtd", ,"ContractData",B36, "LastTrade",, "T") ->  | H36: =IF(RTD("cqg.rtd", ,"ContractData",B36, "NetLastTrade",, "T")="",NA(),RTD("cqg.rtd", ,"ContractData",B36, "NetLastTrade",, "T")) ->  | I36: =RTD("cqg.rtd", ,"ContractData",B36, "Bid",, "T") -> 68.47 | J36: =RTD("cqg.rtd", ,"ContractData",B36, "Ask",, "T") -> 69.92 | K36: =RTD("cqg.rtd", ,"ContractData",B36, "T_CVol",, "T") -> 0 | L36: =RTD("cqg.rtd", ,"ContractData",B36, "TradeorTodaySettlement",, "T") -> 68.82
A37: 37 | B37: CLE?37 | C37: CLE | D37: =RTD("cqg.rtd", ,"ContractData",B37, "ContractMonth",, "T") -> JUN | E37: =RTD("cqg.rtd", ,"ContractData",B37, "LongDescription",, "T") -> Crude Light (Globex), Jun 29 | F37: =_xlfn.REGEXEXTRACT(RTD("cqg.rtd", ,"ContractData",B37, "LongDescription",, "T"), "[A-Z][a-z]{2}\s\d{2}") -> Jun 29 | G37: =RTD("cqg.rtd", ,"ContractData",B37, "LastTrade",, "T") ->  | H37: =IF(RTD("cqg.rtd", ,"ContractData",B37, "NetLastTrade",, "T")="",NA(),RTD("cqg.rtd", ,"ContractData",B37, "NetLastTrade",, "T")) ->  | I37: =RTD("cqg.rtd", ,"ContractData",B37, "Bid",, "T") ->  | J37: =RTD("cqg.rtd", ,"ContractData",B37, "Ask",, "T") ->  | K37: =RTD("cqg.rtd", ,"ContractData",B37, "T_CVol",, "T") -> 349 | L37: =RTD("cqg.rtd", ,"ContractData",B37, "TradeorTodaySettlement",, "T") -> 68.59
A38: 38 | B38: CLE?38 | C38: CLE | D38: =RTD("cqg.rtd", ,"ContractData",B38, "ContractMonth",, "T") -> JUL | E38: =RTD("cqg.rtd", ,"ContractData",B38, "LongDescription",, "T") -> Crude Light (Globex), Jul 29 | F38: =_xlfn.REGEXEXTRACT(RTD("cqg.rtd", ,"ContractData",B38, "LongDescription",, "T"), "[A-Z][a-z]{2}\s\d{2}") -> Jul 29 | G38: =RTD("cqg.rtd", ,"ContractData",B38, "LastTrade",, "T") ->  | H38: =IF(RTD("cqg.rtd", ,"ContractData",B38, "NetLastTrade",, "T")="",NA(),RTD("cqg.rtd", ,"ContractData",B38, "NetLastTrade",, "T")) ->  | I38: =RTD("cqg.rtd", ,"ContractData",B38, "Bid",, "T") ->  | J38: =RTD("cqg.rtd", ,"ContractData",B38, "Ask",, "T") ->  | K38: =RTD("cqg.rtd", ,"ContractData",B38, "T_CVol",, "T") -> 0 | L38: =RTD("cqg.rtd", ,"ContractData",B38, "TradeorTodaySettlement",, "T") -> 68.32
A39: 39 | B39: CLE?39 | C39: CLE | D39: =RTD("cqg.rtd", ,"ContractData",B39, "ContractMonth",, "T") -> AUG | E39: =RTD("cqg.rtd", ,"ContractData",B39, "LongDescription",, "T") -> Crude Light (Globex), Aug 29 | F39: =_xlfn.REGEXEXTRACT(RTD("cqg.rtd", ,"ContractData",B39, "LongDescription",, "T"), "[A-Z][a-z]{2}\s\d{2}") -> Aug 29 | G39: =RTD("cqg.rtd", ,"ContractData",B39, "LastTrade",, "T") ->  | H39: =IF(RTD("cqg.rtd", ,"ContractData",B39, "NetLastTrade",, "T")="",NA(),RTD("cqg.rtd", ,"ContractData",B39, "NetLastTrade",, "T")) ->  | I39: =RTD("cqg.rtd", ,"ContractData",B39, "Bid",, "T") ->  | J39: =RTD("cqg.rtd", ,"ContractData",B39, "Ask",, "T") ->  | K39: =RTD("cqg.rtd", ,"ContractData",B39, "T_CVol",, "T") -> 0 | L39: =RTD("cqg.rtd", ,"ContractData",B39, "TradeorTodaySettlement",, "T") -> 68.09
A40: 40 | B40: CLE?40 | C40: CLE | D40: =RTD("cqg.rtd", ,"ContractData",B40, "ContractMonth",, "T") -> SEP | E40: =RTD("cqg.rtd", ,"ContractData",B40, "LongDescription",, "T") -> Crude Light (Globex), Sep 29 | F40: =_xlfn.REGEXEXTRACT(RTD("cqg.rtd", ,"ContractData",B40, "LongDescription",, "T"), "[A-Z][a-z]{2}\s\d{2}") -> Sep 29 | G40: =RTD("cqg.rtd", ,"ContractData",B40, "LastTrade",, "T") ->  | H40: =IF(RTD("cqg.rtd", ,"ContractData",B40, "NetLastTrade",, "T")="",NA(),RTD("cqg.rtd", ,"ContractData",B40, "NetLastTrade",, "T")) ->  | I40: =RTD("cqg.rtd", ,"ContractData",B40, "Bid",, "T") ->  | J40: =RTD("cqg.rtd", ,"ContractData",B40, "Ask",, "T") ->  | K40: =RTD("cqg.rtd", ,"ContractData",B40, "T_CVol",, "T") -> 0 | L40: =RTD("cqg.rtd", ,"ContractData",B40, "TradeorTodaySettlement",, "T") -> 67.84
A41: 41 | B41: CLE?41 | C41: CLE | D41: =RTD("cqg.rtd", ,"ContractData",B41, "ContractMonth",, "T") -> OCT | E41: =RTD("cqg.rtd", ,"ContractData",B41, "LongDescription",, "T") -> Crude Light (Globex), Oct 29 | F41: =_xlfn.REGEXEXTRACT(RTD("cqg.rtd", ,"ContractData",B41, "LongDescription",, "T"), "[A-Z][a-z]{2}\s\d{2}") -> Oct 29 | G41: =RTD("cqg.rtd", ,"ContractData",B41, "LastTrade",, "T") ->  | H41: =IF(RTD("cqg.rtd", ,"ContractData",B41, "NetLastTrade",, "T")="",NA(),RTD("cqg.rtd", ,"ContractData",B41, "NetLastTrade",, "T")) ->  | I41: =RTD("cqg.rtd", ,"ContractData",B41, "Bid",, "T") ->  | J41: =RTD("cqg.rtd", ,"ContractData",B41, "Ask",, "T") ->  | K41: =RTD("cqg.rtd", ,"ContractData",B41, "T_CVol",, "T") -> 0 | L41: =RTD("cqg.rtd", ,"ContractData",B41, "TradeorTodaySettlement",, "T") -> 67.59
A42: 42 | B42: CLE?42 | C42: CLE | D42: =RTD("cqg.rtd", ,"ContractData",B42, "ContractMonth",, "T") -> NOV | E42: =RTD("cqg.rtd", ,"ContractData",B42, "LongDescription",, "T") -> Crude Light (Globex), Nov 29 | F42: =_xlfn.REGEXEXTRACT(RTD("cqg.rtd", ,"ContractData",B42, "LongDescription",, "T"), "[A-Z][a-z]{2}\s\d{2}") -> Nov 29 | G42: =RTD("cqg.rtd", ,"ContractData",B42, "LastTrade",, "T") ->  | H42: =IF(RTD("cqg.rtd", ,"ContractData",B42, "NetLastTrade",, "T")="",NA(),RTD("cqg.rtd", ,"ContractData",B42, "NetLastTrade",, "T")) ->  | I42: =RTD("cqg.rtd", ,"ContractData",B42, "Bid",, "T") ->  | J42: =RTD("cqg.rtd", ,"ContractData",B42, "Ask",, "T") ->  | K42: =RTD("cqg.rtd", ,"ContractData",B42, "T_CVol",, "T") -> 50 | L42: =RTD("cqg.rtd", ,"ContractData",B42, "TradeorTodaySettlement",, "T") -> 67.36
A43: 43 | B43: CLE?43 | C43: CLE | D43: =RTD("cqg.rtd", ,"ContractData",B43, "ContractMonth",, "T") -> DEC | E43: =RTD("cqg.rtd", ,"ContractData",B43, "LongDescription",, "T") -> Crude Light (Globex), Dec 29 | F43: =_xlfn.REGEXEXTRACT(RTD("cqg.rtd", ,"ContractData",B43, "LongDescription",, "T"), "[A-Z][a-z]{2}\s\d{2}") -> Dec 29 | G43: =RTD("cqg.rtd", ,"ContractData",B43, "LastTrade",, "T") -> 67.57 | H43: =IF(RTD("cqg.rtd", ,"ContractData",B43, "NetLastTrade",, "T")="",NA(),RTD("cqg.rtd", ,"ContractData",B43, "NetLastTrade",, "T")) -> 1.81 | I43: =RTD("cqg.rtd", ,"ContractData",B43, "Bid",, "T") -> 67.3 | J43: =RTD("cqg.rtd", ,"ContractData",B43, "Ask",, "T") -> 67.63 | K43: =RTD("cqg.rtd", ,"ContractData",B43, "T_CVol",, "T") -> 5954 | L43: =RTD("cqg.rtd", ,"ContractData",B43, "TradeorTodaySettlement",, "T") -> 67.57
A44: 44 | B44: CLE?44 | C44: CLE | D44: =RTD("cqg.rtd", ,"ContractData",B44, "ContractMonth",, "T") -> JAN | E44: =RTD("cqg.rtd", ,"ContractData",B44, "LongDescription",, "T") -> Crude Light (Globex), Jan 30 | F44: =_xlfn.REGEXEXTRACT(RTD("cqg.rtd", ,"ContractData",B44, "LongDescription",, "T"), "[A-Z][a-z]{2}\s\d{2}") -> Jan 30 | G44: =RTD("cqg.rtd", ,"ContractData",B44, "LastTrade",, "T") ->  | H44: =IF(RTD("cqg.rtd", ,"ContractData",B44, "NetLastTrade",, "T")="",NA(),RTD("cqg.rtd", ,"ContractData",B44, "NetLastTrade",, "T")) ->  | I44: =RTD("cqg.rtd", ,"ContractData",B44, "Bid",, "T") ->  | J44: =RTD("cqg.rtd", ,"ContractData",B44, "Ask",, "T") ->  | K44: =RTD("cqg.rtd", ,"ContractData",B44, "T_CVol",, "T") -> 50 | L44: =RTD("cqg.rtd", ,"ContractData",B44, "TradeorTodaySettlement",, "T") -> 66.91
A45: 45 | B45: CLE?45 | C45: CLE | D45: =RTD("cqg.rtd", ,"ContractData",B45, "ContractMonth",, "T") -> FEB | E45: =RTD("cqg.rtd", ,"ContractData",B45, "LongDescription",, "T") -> Crude Light (Globex), Feb 30 | F45: =_xlfn.REGEXEXTRACT(RTD("cqg.rtd", ,"ContractData",B45, "LongDescription",, "T"), "[A-Z][a-z]{2}\s\d{2}") -> Feb 30 | G45: =RTD("cqg.rtd", ,"ContractData",B45, "LastTrade",, "T") ->  | H45: =IF(RTD("cqg.rtd", ,"ContractData",B45, "NetLastTrade",, "T")="",NA(),RTD("cqg.rtd", ,"ContractData",B45, "NetLastTrade",, "T")) ->  | I45: =RTD("cqg.rtd", ,"ContractData",B45, "Bid",, "T") ->  | J45: =RTD("cqg.rtd", ,"ContractData",B45, "Ask",, "T") ->  | K45: =RTD("cqg.rtd", ,"ContractData",B45, "T_CVol",, "T") -> 0 | L45: =RTD("cqg.rtd", ,"ContractData",B45, "TradeorTodaySettlement",, "T") -> 66.69
A46: 46 | B46: CLE?46 | C46: CLE | D46: =RTD("cqg.rtd", ,"ContractData",B46, "ContractMonth",, "T") -> MAR | E46: =RTD("cqg.rtd", ,"ContractData",B46, "LongDescription",, "T") -> Crude Light (Globex), Mar 30 | F46: =_xlfn.REGEXEXTRACT(RTD("cqg.rtd", ,"ContractData",B46, "LongDescription",, "T"), "[A-Z][a-z]{2}\s\d{2}") -> Mar 30 | G46: =RTD("cqg.rtd", ,"ContractData",B46, "LastTrade",, "T") ->  | H46: =IF(RTD("cqg.rtd", ,"ContractData",B46, "NetLastTrade",, "T")="",NA(),RTD("cqg.rtd", ,"ContractData",B46, "NetLastTrade",, "T")) ->  | I46: =RTD("cqg.rtd", ,"ContractData",B46, "Bid",, "T") ->  | J46: =RTD("cqg.rtd", ,"ContractData",B46, "Ask",, "T") ->  | K46: =RTD("cqg.rtd", ,"ContractData",B46, "T_CVol",, "T") -> 0 | L46: =RTD("cqg.rtd", ,"ContractData",B46, "TradeorTodaySettlement",, "T") -> 66.47
A47: 47 | B47: CLE?47 | C47: CLE | D47: =RTD("cqg.rtd", ,"ContractData",B47, "ContractMonth",, "T") -> APR | E47: =RTD("cqg.rtd", ,"ContractData",B47, "LongDescription",, "T") -> Crude Light (Globex), Apr 30 | F47: =_xlfn.REGEXEXTRACT(RTD("cqg.rtd", ,"ContractData",B47, "LongDescription",, "T"), "[A-Z][a-z]{2}\s\d{2}") -> Apr 30 | G47: =RTD("cqg.rtd", ,"ContractData",B47, "LastTrade",, "T") ->  | H47: =IF(RTD("cqg.rtd", ,"ContractData",B47, "NetLastTrade",, "T")="",NA(),RTD("cqg.rtd", ,"ContractData",B47, "NetLastTrade",, "T")) ->  | I47: =RTD("cqg.rtd", ,"ContractData",B47, "Bid",, "T") ->  | J47: =RTD("cqg.rtd", ,"ContractData",B47, "Ask",, "T") ->  | K47: =RTD("cqg.rtd", ,"ContractData",B47, "T_CVol",, "T") -> 0 | L47: =RTD("cqg.rtd", ,"ContractData",B47, "TradeorTodaySettlement",, "T") -> 66.26
A48: 48 | B48: CLE?48 | C48: CLE | D48: =RTD("cqg.rtd", ,"ContractData",B48, "ContractMonth",, "T") -> MAY | E48: =RTD("cqg.rtd", ,"ContractData",B48, "LongDescription",, "T") -> Crude Light (Globex), May 30 | F48: =_xlfn.REGEXEXTRACT(RTD("cqg.rtd", ,"ContractData",B48, "LongDescription",, "T"), "[A-Z][a-z]{2}\s\d{2}") -> May 30 | G48: =RTD("cqg.rtd", ,"ContractData",B48, "LastTrade",, "T") ->  | H48: =IF(RTD("cqg.rtd", ,"ContractData",B48, "NetLastTrade",, "T")="",NA(),RTD("cqg.rtd", ,"ContractData",B48, "NetLastTrade",, "T")) ->  | I48: =RTD("cqg.rtd", ,"ContractData",B48, "Bid",, "T") ->  | J48: =RTD("cqg.rtd", ,"ContractData",B48, "Ask",, "T") ->  | K48: =RTD("cqg.rtd", ,"ContractData",B48, "T_CVol",, "T") -> 25 | L48: =RTD("cqg.rtd", ,"ContractData",B48, "TradeorTodaySettlement",, "T") -> 66.03
A49: 49 | B49: CLE?49 | C49: CLE | D49: =RTD("cqg.rtd", ,"ContractData",B49, "ContractMonth",, "T") -> JUN | E49: =RTD("cqg.rtd", ,"ContractData",B49, "LongDescription",, "T") -> Crude Light (Globex), Jun 30 | F49: =_xlfn.REGEXEXTRACT(RTD("cqg.rtd", ,"ContractData",B49, "LongDescription",, "T"), "[A-Z][a-z]{2}\s\d{2}") -> Jun 30 | G49: =RTD("cqg.rtd", ,"ContractData",B49, "LastTrade",, "T") ->  | H49: =IF(RTD("cqg.rtd", ,"ContractData",B49, "NetLastTrade",, "T")="",NA(),RTD("cqg.rtd", ,"ContractData",B49, "NetLastTrade",, "T")) ->  | I49: =RTD("cqg.rtd", ,"ContractData",B49, "Bid",, "T") ->  | J49: =RTD("cqg.rtd", ,"ContractData",B49, "Ask",, "T") ->  | K49: =RTD("cqg.rtd", ,"ContractData",B49, "T_CVol",, "T") -> 52 | L49: =RTD("cqg.rtd", ,"ContractData",B49, "TradeorTodaySettlement",, "T") -> 65.83
A50: 50 | B50: CLE?50 | C50: CLE | D50: =RTD("cqg.rtd", ,"ContractData",B50, "ContractMonth",, "T") -> JUL | E50: =RTD("cqg.rtd", ,"ContractData",B50, "LongDescription",, "T") -> Crude Light (Globex), Jul 30 | F50: =_xlfn.REGEXEXTRACT(RTD("cqg.rtd", ,"ContractData",B50, "LongDescription",, "T"), "[A-Z][a-z]{2}\s\d{2}") -> Jul 30 | G50: =RTD("cqg.rtd", ,"ContractData",B50, "LastTrade",, "T") ->  | H50: =IF(RTD("cqg.rtd", ,"ContractData",B50, "NetLastTrade",, "T")="",NA(),RTD("cqg.rtd", ,"ContractData",B50, "NetLastTrade",, "T")) ->  | I50: =RTD("cqg.rtd", ,"ContractData",B50, "Bid",, "T") ->  | J50: =RTD("cqg.rtd", ,"ContractData",B50, "Ask",, "T") ->  | K50: =RTD("cqg.rtd", ,"ContractData",B50, "T_CVol",, "T") -> 25 | L50: =RTD("cqg.rtd", ,"ContractData",B50, "TradeorTodaySettlement",, "T") -> 65.6
A51: 51 | B51: CLE?51 | C51: CLE | D51: =RTD("cqg.rtd", ,"ContractData",B51, "ContractMonth",, "T") -> AUG | E51: =RTD("cqg.rtd", ,"ContractData",B51, "LongDescription",, "T") -> Crude Light (Globex), Aug 30 | F51: =_xlfn.REGEXEXTRACT(RTD("cqg.rtd", ,"ContractData",B51, "LongDescription",, "T"), "[A-Z][a-z]{2}\s\d{2}") -> Aug 30 | G51: =RTD("cqg.rtd", ,"ContractData",B51, "LastTrade",, "T") ->  | H51: =IF(RTD("cqg.rtd", ,"ContractData",B51, "NetLastTrade",, "T")="",NA(),RTD("cqg.rtd", ,"ContractData",B51, "NetLastTrade",, "T")) ->  | I51: =RTD("cqg.rtd", ,"ContractData",B51, "Bid",, "T") ->  | J51: =RTD("cqg.rtd", ,"ContractData",B51, "Ask",, "T") ->  | K51: =RTD("cqg.rtd", ,"ContractData",B51, "T_CVol",, "T") -> 0 | L51: =RTD("cqg.rtd", ,"ContractData",B51, "TradeorTodaySettlement",, "T") -> 65.42
A52: 52 | B52: CLE?52 | C52: CLE | D52: =RTD("cqg.rtd", ,"ContractData",B52, "ContractMonth",, "T") -> SEP | E52: =RTD("cqg.rtd", ,"ContractData",B52, "LongDescription",, "T") -> Crude Light (Globex), Sep 30 | F52: =_xlfn.REGEXEXTRACT(RTD("cqg.rtd", ,"ContractData",B52, "LongDescription",, "T"), "[A-Z][a-z]{2}\s\d{2}") -> Sep 30 | G52: =RTD("cqg.rtd", ,"ContractData",B52, "LastTrade",, "T") ->  | H52: =IF(RTD("cqg.rtd", ,"ContractData",B52, "NetLastTrade",, "T")="",NA(),RTD("cqg.rtd", ,"ContractData",B52, "NetLastTrade",, "T")) ->  | I52: =RTD("cqg.rtd", ,"ContractData",B52, "Bid",, "T") ->  | J52: =RTD("cqg.rtd", ,"ContractData",B52, "Ask",, "T") ->  | K52: =RTD("cqg.rtd", ,"ContractData",B52, "T_CVol",, "T") -> 0 | L52: =RTD("cqg.rtd", ,"ContractData",B52, "TradeorTodaySettlement",, "T") -> 65.24
A53: 53 | B53: CLE?53 | C53: CLE | D53: =RTD("cqg.rtd", ,"ContractData",B53, "ContractMonth",, "T") -> OCT | E53: =RTD("cqg.rtd", ,"ContractData",B53, "LongDescription",, "T") -> Crude Light (Globex), Oct 30 | F53: =_xlfn.REGEXEXTRACT(RTD("cqg.rtd", ,"ContractData",B53, "LongDescription",, "T"), "[A-Z][a-z]{2}\s\d{2}") -> Oct 30 | G53: =RTD("cqg.rtd", ,"ContractData",B53, "LastTrade",, "T") ->  | H53: =IF(RTD("cqg.rtd", ,"ContractData",B53, "NetLastTrade",, "T")="",NA(),RTD("cqg.rtd", ,"ContractData",B53, "NetLastTrade",, "T")) ->  | I53: =RTD("cqg.rtd", ,"ContractData",B53, "Bid",, "T") ->  | J53: =RTD("cqg.rtd", ,"ContractData",B53, "Ask",, "T") ->  | K53: =RTD("cqg.rtd", ,"ContractData",B53, "T_CVol",, "T") -> 0 | L53: =RTD("cqg.rtd", ,"ContractData",B53, "TradeorTodaySettlement",, "T") -> 65.06
A54: 54 | B54: CLE?54 | C54: CLE | D54: =RTD("cqg.rtd", ,"ContractData",B54, "ContractMonth",, "T") -> NOV | E54: =RTD("cqg.rtd", ,"ContractData",B54, "LongDescription",, "T") -> Crude Light (Globex), Nov 30 | F54: =_xlfn.REGEXEXTRACT(RTD("cqg.rtd", ,"ContractData",B54, "LongDescription",, "T"), "[A-Z][a-z]{2}\s\d{2}") -> Nov 30 | G54: =RTD("cqg.rtd", ,"ContractData",B54, "LastTrade",, "T") ->  | H54: =IF(RTD("cqg.rtd", ,"ContractData",B54, "NetLastTrade",, "T")="",NA(),RTD("cqg.rtd", ,"ContractData",B54, "NetLastTrade",, "T")) ->  | I54: =RTD("cqg.rtd", ,"ContractData",B54, "Bid",, "T") ->  | J54: =RTD("cqg.rtd", ,"ContractData",B54, "Ask",, "T") ->  | K54: =RTD("cqg.rtd", ,"ContractData",B54, "T_CVol",, "T") -> 0 | L54: =RTD("cqg.rtd", ,"ContractData",B54, "TradeorTodaySettlement",, "T") -> 64.85
A55: 55 | B55: CLE?55 | C55: CLE | D55: =RTD("cqg.rtd", ,"ContractData",B55, "ContractMonth",, "T") -> DEC | E55: =RTD("cqg.rtd", ,"ContractData",B55, "LongDescription",, "T") -> Crude Light (Globex), Dec 30 | F55: =_xlfn.REGEXEXTRACT(RTD("cqg.rtd", ,"ContractData",B55, "LongDescription",, "T"), "[A-Z][a-z]{2}\s\d{2}") -> Dec 30 | G55: =RTD("cqg.rtd", ,"ContractData",B55, "LastTrade",, "T") -> 64.97 | H55: =IF(RTD("cqg.rtd", ,"ContractData",B55, "NetLastTrade",, "T")="",NA(),RTD("cqg.rtd", ,"ContractData",B55, "NetLastTrade",, "T")) -> 1.44 | I55: =RTD("cqg.rtd", ,"ContractData",B55, "Bid",, "T") -> 64.7 | J55: =RTD("cqg.rtd", ,"ContractData",B55, "Ask",, "T") -> 65.08 | K55: =RTD("cqg.rtd", ,"ContractData",B55, "T_CVol",, "T") -> 1971 | L55: =RTD("cqg.rtd", ,"ContractData",B55, "TradeorTodaySettlement",, "T") -> 64.97
A56: 56 | B56: CLE?56 | C56: CLE | D56: =RTD("cqg.rtd", ,"ContractData",B56, "ContractMonth",, "T") -> JAN | E56: =RTD("cqg.rtd", ,"ContractData",B56, "LongDescription",, "T") -> Crude Light (Globex), Jan 31 | F56: =_xlfn.REGEXEXTRACT(RTD("cqg.rtd", ,"ContractData",B56, "LongDescription",, "T"), "[A-Z][a-z]{2}\s\d{2}") -> Jan 31 | G56: =RTD("cqg.rtd", ,"ContractData",B56, "LastTrade",, "T") ->  | H56: =IF(RTD("cqg.rtd", ,"ContractData",B56, "NetLastTrade",, "T")="",NA(),RTD("cqg.rtd", ,"ContractData",B56, "NetLastTrade",, "T")) ->  | I56: =RTD("cqg.rtd", ,"ContractData",B56, "Bid",, "T") ->  | J56: =RTD("cqg.rtd", ,"ContractData",B56, "Ask",, "T") ->  | K56: =RTD("cqg.rtd", ,"ContractData",B56, "T_CVol",, "T") -> 0 | L56: =RTD("cqg.rtd", ,"ContractData",B56, "TradeorTodaySettlement",, "T") -> 64.39
A57: 57 | B57: CLE?57 | C57: CLE | D57: =RTD("cqg.rtd", ,"ContractData",B57, "ContractMonth",, "T") -> FEB | E57: =RTD("cqg.rtd", ,"ContractData",B57, "LongDescription",, "T") -> Crude Light (Globex), Feb 31 | F57: =_xlfn.REGEXEXTRACT(RTD("cqg.rtd", ,"ContractData",B57, "LongDescription",, "T"), "[A-Z][a-z]{2}\s\d{2}") -> Feb 31 | G57: =RTD("cqg.rtd", ,"ContractData",B57, "LastTrade",, "T") ->  | H57: =IF(RTD("cqg.rtd", ,"ContractData",B57, "NetLastTrade",, "T")="",NA(),RTD("cqg.rtd", ,"ContractData",B57, "NetLastTrade",, "T")) ->  | I57: =RTD("cqg.rtd", ,"ContractData",B57, "Bid",, "T") ->  | J57: =RTD("cqg.rtd", ,"ContractData",B57, "Ask",, "T") ->  | K57: =RTD("cqg.rtd", ,"ContractData",B57, "T_CVol",, "T") -> 0 | L57: =RTD("cqg.rtd", ,"ContractData",B57, "TradeorTodaySettlement",, "T") -> 64.21
A58: 58 | B58: CLE?58 | C58: CLE | D58: =RTD("cqg.rtd", ,"ContractData",B58, "ContractMonth",, "T") -> MAR | E58: =RTD("cqg.rtd", ,"ContractData",B58, "LongDescription",, "T") -> Crude Light (Globex), Mar 31 | F58: =_xlfn.REGEXEXTRACT(RTD("cqg.rtd", ,"ContractData",B58, "LongDescription",, "T"), "[A-Z][a-z]{2}\s\d{2}") -> Mar 31 | G58: =RTD("cqg.rtd", ,"ContractData",B58, "LastTrade",, "T") ->  | H58: =IF(RTD("cqg.rtd", ,"ContractData",B58, "NetLastTrade",, "T")="",NA(),RTD("cqg.rtd", ,"ContractData",B58, "NetLastTrade",, "T")) ->  | I58: =RTD("cqg.rtd", ,"ContractData",B58, "Bid",, "T") ->  | J58: =RTD("cqg.rtd", ,"ContractData",B58, "Ask",, "T") ->  | K58: =RTD("cqg.rtd", ,"ContractData",B58, "T_CVol",, "T") -> 0 | L58: =RTD("cqg.rtd", ,"ContractData",B58, "TradeorTodaySettlement",, "T") -> 64.07
A59: 59 | B59: CLE?59 | C59: CLE | D59: =RTD("cqg.rtd", ,"ContractData",B59, "ContractMonth",, "T") -> APR | E59: =RTD("cqg.rtd", ,"ContractData",B59, "LongDescription",, "T") -> Crude Light (Globex), Apr 31 | F59: =_xlfn.REGEXEXTRACT(RTD("cqg.rtd", ,"ContractData",B59, "LongDescription",, "T"), "[A-Z][a-z]{2}\s\d{2}") -> Apr 31 | G59: =RTD("cqg.rtd", ,"ContractData",B59, "LastTrade",, "T") ->  | H59: =IF(RTD("cqg.rtd", ,"ContractData",B59, "NetLastTrade",, "T")="",NA(),RTD("cqg.rtd", ,"ContractData",B59, "NetLastTrade",, "T")) ->  | I59: =RTD("cqg.rtd", ,"ContractData",B59, "Bid",, "T") ->  | J59: =RTD("cqg.rtd", ,"ContractData",B59, "Ask",, "T") ->  | K59: =RTD("cqg.rtd", ,"ContractData",B59, "T_CVol",, "T") -> 0 | L59: =RTD("cqg.rtd", ,"ContractData",B59, "TradeorTodaySettlement",, "T") -> 63.88
A60: 60 | B60: CLE?60 | C60: CLE | D60: =RTD("cqg.rtd", ,"ContractData",B60, "ContractMonth",, "T") -> MAY | E60: =RTD("cqg.rtd", ,"ContractData",B60, "LongDescription",, "T") -> Crude Light (Globex), May 31 | F60: =_xlfn.REGEXEXTRACT(RTD("cqg.rtd", ,"ContractData",B60, "LongDescription",, "T"), "[A-Z][a-z]{2}\s\d{2}") -> May 31 | G60: =RTD("cqg.rtd", ,"ContractData",B60, "LastTrade",, "T") ->  | H60: =IF(RTD("cqg.rtd", ,"ContractData",B60, "NetLastTrade",, "T")="",NA(),RTD("cqg.rtd", ,"ContractData",B60, "NetLastTrade",, "T")) ->  | I60: =RTD("cqg.rtd", ,"ContractData",B60, "Bid",, "T") ->  | J60: =RTD("cqg.rtd", ,"ContractData",B60, "Ask",, "T") ->  | K60: =RTD("cqg.rtd", ,"ContractData",B60, "T_CVol",, "T") -> 0 | L60: =RTD("cqg.rtd", ,"ContractData",B60, "TradeorTodaySettlement",, "T") -> 63.69
A61: 61 | B61: CLE?61 | C61: CLE | D61: =RTD("cqg.rtd", ,"ContractData",B61, "ContractMonth",, "T") -> JUN | E61: =RTD("cqg.rtd", ,"ContractData",B61, "LongDescription",, "T") -> Crude Light (Globex), Jun 31 | F61: =_xlfn.REGEXEXTRACT(RTD("cqg.rtd", ,"ContractData",B61, "LongDescription",, "T"), "[A-Z][a-z]{2}\s\d{2}") -> Jun 31 | G61: =RTD("cqg.rtd", ,"ContractData",B61, "LastTrade",, "T") ->  | H61: =IF(RTD("cqg.rtd", ,"ContractData",B61, "NetLastTrade",, "T")="",NA(),RTD("cqg.rtd", ,"ContractData",B61, "NetLastTrade",, "T")) ->  | I61: =RTD("cqg.rtd", ,"ContractData",B61, "Bid",, "T") ->  | J61: =RTD("cqg.rtd", ,"ContractData",B61, "Ask",, "T") ->  | K61: =RTD("cqg.rtd", ,"ContractData",B61, "T_CVol",, "T") -> 0 | L61: =RTD("cqg.rtd", ,"ContractData",B61, "TradeorTodaySettlement",, "T") -> 63.52
A62: 62 | B62: CLE?62 | C62: CLE | D62: =RTD("cqg.rtd", ,"ContractData",B62, "ContractMonth",, "T") -> JUL | E62: =RTD("cqg.rtd", ,"ContractData",B62, "LongDescription",, "T") -> Crude Light (Globex), Jul 31 | F62: =_xlfn.REGEXEXTRACT(RTD("cqg.rtd", ,"ContractData",B62, "LongDescription",, "T"), "[A-Z][a-z]{2}\s\d{2}") -> Jul 31 | G62: =RTD("cqg.rtd", ,"ContractData",B62, "LastTrade",, "T") ->  | H62: =IF(RTD("cqg.rtd", ,"ContractData",B62, "NetLastTrade",, "T")="",NA(),RTD("cqg.rtd", ,"ContractData",B62, "NetLastTrade",, "T")) ->  | I62: =RTD("cqg.rtd", ,"ContractData",B62, "Bid",, "T") ->  | J62: =RTD("cqg.rtd", ,"ContractData",B62, "Ask",, "T") ->  | K62: =RTD("cqg.rtd", ,"ContractData",B62, "T_CVol",, "T") -> 0 | L62: =RTD("cqg.rtd", ,"ContractData",B62, "TradeorTodaySettlement",, "T") -> 63.35
A63: 63 | B63: CLE?63 | C63: CLE | D63: =RTD("cqg.rtd", ,"ContractData",B63, "ContractMonth",, "T") -> AUG | E63: =RTD("cqg.rtd", ,"ContractData",B63, "LongDescription",, "T") -> Crude Light (Globex), Aug 31 | F63: =_xlfn.REGEXEXTRACT(RTD("cqg.rtd", ,"ContractData",B63, "LongDescription",, "T"), "[A-Z][a-z]{2}\s\d{2}") -> Aug 31 | G63: =RTD("cqg.rtd", ,"ContractData",B63, "LastTrade",, "T") ->  | H63: =IF(RTD("cqg.rtd", ,"ContractData",B63, "NetLastTrade",, "T")="",NA(),RTD("cqg.rtd", ,"ContractData",B63, "NetLastTrade",, "T")) ->  | I63: =RTD("cqg.rtd", ,"ContractData",B63, "Bid",, "T") ->  | J63: =RTD("cqg.rtd", ,"ContractData",B63, "Ask",, "T") ->  | K63: =RTD("cqg.rtd", ,"ContractData",B63, "T_CVol",, "T") -> 0 | L63: =RTD("cqg.rtd", ,"ContractData",B63, "TradeorTodaySettlement",, "T") -> 63.2
A64: 64 | B64: CLE?64 | C64: CLE | D64: =RTD("cqg.rtd", ,"ContractData",B64, "ContractMonth",, "T") -> SEP | E64: =RTD("cqg.rtd", ,"ContractData",B64, "LongDescription",, "T") -> Crude Light (Globex), Sep 31 | F64: =_xlfn.REGEXEXTRACT(RTD("cqg.rtd", ,"ContractData",B64, "LongDescription",, "T"), "[A-Z][a-z]{2}\s\d{2}") -> Sep 31 | G64: =RTD("cqg.rtd", ,"ContractData",B64, "LastTrade",, "T") ->  | H64: =IF(RTD("cqg.rtd", ,"ContractData",B64, "NetLastTrade",, "T")="",NA(),RTD("cqg.rtd", ,"ContractData",B64, "NetLastTrade",, "T")) ->  | I64: =RTD("cqg.rtd", ,"ContractData",B64, "Bid",, "T") ->  | J64: =RTD("cqg.rtd", ,"ContractData",B64, "Ask",, "T") -> 65 | K64: =RTD("cqg.rtd", ,"ContractData",B64, "T_CVol",, "T") -> 0 | L64: =RTD("cqg.rtd", ,"ContractData",B64, "TradeorTodaySettlement",, "T") -> 63.05
A65: 65 | B65: CLE?65 | C65: CLE | D65: =RTD("cqg.rtd", ,"ContractData",B65, "ContractMonth",, "T") -> OCT | E65: =RTD("cqg.rtd", ,"ContractData",B65, "LongDescription",, "T") -> Crude Light (Globex), Oct 31 | F65: =_xlfn.REGEXEXTRACT(RTD("cqg.rtd", ,"ContractData",B65, "LongDescription",, "T"), "[A-Z][a-z]{2}\s\d{2}") -> Oct 31 | G65: =RTD("cqg.rtd", ,"ContractData",B65, "LastTrade",, "T") ->  | H65: =IF(RTD("cqg.rtd", ,"ContractData",B65, "NetLastTrade",, "T")="",NA(),RTD("cqg.rtd", ,"ContractData",B65, "NetLastTrade",, "T")) ->  | I65: =RTD("cqg.rtd", ,"ContractData",B65, "Bid",, "T") ->  | J65: =RTD("cqg.rtd", ,"ContractData",B65, "Ask",, "T") ->  | K65: =RTD("cqg.rtd", ,"ContractData",B65, "T_CVol",, "T") -> 0 | L65: =RTD("cqg.rtd", ,"ContractData",B65, "TradeorTodaySettlement",, "T") -> 62.86
A66: 66 | B66: CLE?66 | C66: CLE | D66: =RTD("cqg.rtd", ,"ContractData",B66, "ContractMonth",, "T") -> NOV | E66: =RTD("cqg.rtd", ,"ContractData",B66, "LongDescription",, "T") -> Crude Light (Globex), Nov 31 | F66: =_xlfn.REGEXEXTRACT(RTD("cqg.rtd", ,"ContractData",B66, "LongDescription",, "T"), "[A-Z][a-z]{2}\s\d{2}") -> Nov 31 | G66: =RTD("cqg.rtd", ,"ContractData",B66, "LastTrade",, "T") ->  | H66: =IF(RTD("cqg.rtd", ,"ContractData",B66, "NetLastTrade",, "T")="",NA(),RTD("cqg.rtd", ,"ContractData",B66, "NetLastTrade",, "T")) ->  | I66: =RTD("cqg.rtd", ,"ContractData",B66, "Bid",, "T") ->  | J66: =RTD("cqg.rtd", ,"ContractData",B66, "Ask",, "T") ->  | K66: =RTD("cqg.rtd", ,"ContractData",B66, "T_CVol",, "T") -> 0 | L66: =RTD("cqg.rtd", ,"ContractData",B66, "TradeorTodaySettlement",, "T") -> 62.67
A67: =A66+1 -> 67 | B67: =$N$1&"?"&A67 -> CLE?67 | C67: CLE | D67: =RTD("cqg.rtd", ,"ContractData",B67, "ContractMonth",, "T") -> DEC | E67: =RTD("cqg.rtd", ,"ContractData",B67, "LongDescription",, "T") -> Crude Light (Globex), Dec 31 | F67: =_xlfn.REGEXEXTRACT(RTD("cqg.rtd", ,"ContractData",B67, "LongDescription",, "T"), "[A-Z][a-z]{2}\s\d{2}") -> Dec 31 | G67: =RTD("cqg.rtd", ,"ContractData",B67, "LastTrade",, "T") -> 62.58 | H67: =IF(RTD("cqg.rtd", ,"ContractData",B67, "NetLastTrade",, "T")="",NA(),RTD("cqg.rtd", ,"ContractData",B67, "NetLastTrade",, "T")) -> 1.1 | I67: =RTD("cqg.rtd", ,"ContractData",B67, "Bid",, "T") -> 62.54 | J67: =RTD("cqg.rtd", ,"ContractData",B67, "Ask",, "T") -> 62.92 | K67: =RTD("cqg.rtd", ,"ContractData",B67, "T_CVol",, "T") -> 359 | L67: =RTD("cqg.rtd", ,"ContractData",B67, "TradeorTodaySettlement",, "T") -> 62.58
A68: 68 | B68: CLE?68 | C68: CLE | D68: =RTD("cqg.rtd", ,"ContractData",B68, "ContractMonth",, "T") -> JAN | E68: =RTD("cqg.rtd", ,"ContractData",B68, "LongDescription",, "T") -> Crude Light (Globex), Jan 32 | F68: =_xlfn.REGEXEXTRACT(RTD("cqg.rtd", ,"ContractData",B68, "LongDescription",, "T"), "[A-Z][a-z]{2}\s\d{2}") -> Jan 32 | G68: =RTD("cqg.rtd", ,"ContractData",B68, "LastTrade",, "T") ->  | H68: =IF(RTD("cqg.rtd", ,"ContractData",B68, "NetLastTrade",, "T")="",NA(),RTD("cqg.rtd", ,"ContractData",B68, "NetLastTrade",, "T")) ->  | I68: =RTD("cqg.rtd", ,"ContractData",B68, "Bid",, "T") ->  | J68: =RTD("cqg.rtd", ,"ContractData",B68, "Ask",, "T") ->  | K68: =RTD("cqg.rtd", ,"ContractData",B68, "T_CVol",, "T") -> 0 | L68: =RTD("cqg.rtd", ,"ContractData",B68, "TradeorTodaySettlement",, "T") -> 62.26
A69: 69 | B69: CLE?69 | C69: CLE | D69: =RTD("cqg.rtd", ,"ContractData",B69, "ContractMonth",, "T") -> FEB | E69: =RTD("cqg.rtd", ,"ContractData",B69, "LongDescription",, "T") -> Crude Light (Globex), Feb 32 | F69: =_xlfn.REGEXEXTRACT(RTD("cqg.rtd", ,"ContractData",B69, "LongDescription",, "T"), "[A-Z][a-z]{2}\s\d{2}") -> Feb 32 | G69: =RTD("cqg.rtd", ,"ContractData",B69, "LastTrade",, "T") ->  | H69: =IF(RTD("cqg.rtd", ,"ContractData",B69, "NetLastTrade",, "T")="",NA(),RTD("cqg.rtd", ,"ContractData",B69, "NetLastTrade",, "T")) ->  | I69: =RTD("cqg.rtd", ,"ContractData",B69, "Bid",, "T") ->  | J69: =RTD("cqg.rtd", ,"ContractData",B69, "Ask",, "T") ->  | K69: =RTD("cqg.rtd", ,"ContractData",B69, "T_CVol",, "T") -> 0 | L69: =RTD("cqg.rtd", ,"ContractData",B69, "TradeorTodaySettlement",, "T") -> 62.09
A70: 70 | B70: CLE?70 | C70: CLE | D70: =RTD("cqg.rtd", ,"ContractData",B70, "ContractMonth",, "T") -> MAR | E70: =RTD("cqg.rtd", ,"ContractData",B70, "LongDescription",, "T") -> Crude Light (Globex), Mar 32 | F70: =_xlfn.REGEXEXTRACT(RTD("cqg.rtd", ,"ContractData",B70, "LongDescription",, "T"), "[A-Z][a-z]{2}\s\d{2}") -> Mar 32 | G70: =RTD("cqg.rtd", ,"ContractData",B70, "LastTrade",, "T") ->  | H70: =IF(RTD("cqg.rtd", ,"ContractData",B70, "NetLastTrade",, "T")="",NA(),RTD("cqg.rtd", ,"ContractData",B70, "NetLastTrade",, "T")) ->  | I70: =RTD("cqg.rtd", ,"ContractData",B70, "Bid",, "T") ->  | J70: =RTD("cqg.rtd", ,"ContractData",B70, "Ask",, "T") ->  | K70: =RTD("cqg.rtd", ,"ContractData",B70, "T_CVol",, "T") -> 0 | L70: =RTD("cqg.rtd", ,"ContractData",B70, "TradeorTodaySettlement",, "T") -> 61.91
A71: 71 | B71: CLE?71 | C71: CLE | D71: =RTD("cqg.rtd", ,"ContractData",B71, "ContractMonth",, "T") -> APR | E71: =RTD("cqg.rtd", ,"ContractData",B71, "LongDescription",, "T") -> Crude Light (Globex), Apr 32 | F71: =_xlfn.REGEXEXTRACT(RTD("cqg.rtd", ,"ContractData",B71, "LongDescription",, "T"), "[A-Z][a-z]{2}\s\d{2}") -> Apr 32 | G71: =RTD("cqg.rtd", ,"ContractData",B71, "LastTrade",, "T") ->  | H71: =IF(RTD("cqg.rtd", ,"ContractData",B71, "NetLastTrade",, "T")="",NA(),RTD("cqg.rtd", ,"ContractData",B71, "NetLastTrade",, "T")) ->  | I71: =RTD("cqg.rtd", ,"ContractData",B71, "Bid",, "T") ->  | J71: =RTD("cqg.rtd", ,"ContractData",B71, "Ask",, "T") ->  | K71: =RTD("cqg.rtd", ,"ContractData",B71, "T_CVol",, "T") -> 0 | L71: =RTD("cqg.rtd", ,"ContractData",B71, "TradeorTodaySettlement",, "T") -> 61.76
A72: 72 | B72: CLE?72 | C72: CLE | D72: =RTD("cqg.rtd", ,"ContractData",B72, "ContractMonth",, "T") -> MAY | E72: =RTD("cqg.rtd", ,"ContractData",B72, "LongDescription",, "T") -> Crude Light (Globex), May 32 | F72: =_xlfn.REGEXEXTRACT(RTD("cqg.rtd", ,"ContractData",B72, "LongDescription",, "T"), "[A-Z][a-z]{2}\s\d{2}") -> May 32 | G72: =RTD("cqg.rtd", ,"ContractData",B72, "LastTrade",, "T") ->  | H72: =IF(RTD("cqg.rtd", ,"ContractData",B72, "NetLastTrade",, "T")="",NA(),RTD("cqg.rtd", ,"ContractData",B72, "NetLastTrade",, "T")) ->  | I72: =RTD("cqg.rtd", ,"ContractData",B72, "Bid",, "T") ->  | J72: =RTD("cqg.rtd", ,"ContractData",B72, "Ask",, "T") ->  | K72: =RTD("cqg.rtd", ,"ContractData",B72, "T_CVol",, "T") -> 0 | L72: =RTD("cqg.rtd", ,"ContractData",B72, "TradeorTodaySettlement",, "T") -> 61.6
A73: 73 | B73: CLE?73 | C73: CLE | D73: =RTD("cqg.rtd", ,"ContractData",B73, "ContractMonth",, "T") -> JUN | E73: =RTD("cqg.rtd", ,"ContractData",B73, "LongDescription",, "T") -> Crude Light (Globex), Jun 32 | F73: =_xlfn.REGEXEXTRACT(RTD("cqg.rtd", ,"ContractData",B73, "LongDescription",, "T"), "[A-Z][a-z]{2}\s\d{2}") -> Jun 32 | G73: =RTD("cqg.rtd", ,"ContractData",B73, "LastTrade",, "T") ->  | H73: =IF(RTD("cqg.rtd", ,"ContractData",B73, "NetLastTrade",, "T")="",NA(),RTD("cqg.rtd", ,"ContractData",B73, "NetLastTrade",, "T")) ->  | I73: =RTD("cqg.rtd", ,"ContractData",B73, "Bid",, "T") ->  | J73: =RTD("cqg.rtd", ,"ContractData",B73, "Ask",, "T") ->  | K73: =RTD("cqg.rtd", ,"ContractData",B73, "T_CVol",, "T") -> 0 | L73: =RTD("cqg.rtd", ,"ContractData",B73, "TradeorTodaySettlement",, "T") -> 61.44
A74: 74 | B74: CLE?74 | C74: CLE | D74: =RTD("cqg.rtd", ,"ContractData",B74, "ContractMonth",, "T") -> JUL | E74: =RTD("cqg.rtd", ,"ContractData",B74, "LongDescription",, "T") -> Crude Light (Globex), Jul 32 | F74: =_xlfn.REGEXEXTRACT(RTD("cqg.rtd", ,"ContractData",B74, "LongDescription",, "T"), "[A-Z][a-z]{2}\s\d{2}") -> Jul 32 | G74: =RTD("cqg.rtd", ,"ContractData",B74, "LastTrade",, "T") ->  | H74: =IF(RTD("cqg.rtd", ,"ContractData",B74, "NetLastTrade",, "T")="",NA(),RTD("cqg.rtd", ,"ContractData",B74, "NetLastTrade",, "T")) ->  | I74: =RTD("cqg.rtd", ,"ContractData",B74, "Bid",, "T") ->  | J74: =RTD("cqg.rtd", ,"ContractData",B74, "Ask",, "T") ->  | K74: =RTD("cqg.rtd", ,"ContractData",B74, "T_CVol",, "T") -> 0 | L74: =RTD("cqg.rtd", ,"ContractData",B74, "TradeorTodaySettlement",, "T") -> 61.27
A75: 75 | B75: CLE?75 | C75: CLE | D75: =RTD("cqg.rtd", ,"ContractData",B75, "ContractMonth",, "T") -> AUG | E75: =RTD("cqg.rtd", ,"ContractData",B75, "LongDescription",, "T") -> Crude Light (Globex), Aug 32 | F75: =_xlfn.REGEXEXTRACT(RTD("cqg.rtd", ,"ContractData",B75, "LongDescription",, "T"), "[A-Z][a-z]{2}\s\d{2}") -> Aug 32 | G75: =RTD("cqg.rtd", ,"ContractData",B75, "LastTrade",, "T") ->  | H75: =IF(RTD("cqg.rtd", ,"ContractData",B75, "NetLastTrade",, "T")="",NA(),RTD("cqg.rtd", ,"ContractData",B75, "NetLastTrade",, "T")) ->  | I75: =RTD("cqg.rtd", ,"ContractData",B75, "Bid",, "T") ->  | J75: =RTD("cqg.rtd", ,"ContractData",B75, "Ask",, "T") -> 80 | K75: =RTD("cqg.rtd", ,"ContractData",B75, "T_CVol",, "T") -> 0 | L75: =RTD("cqg.rtd", ,"ContractData",B75, "TradeorTodaySettlement",, "T") -> 61.12
A76: 76 | B76: CLE?76 | C76: CLE | D76: =RTD("cqg.rtd", ,"ContractData",B76, "ContractMonth",, "T") -> SEP | E76: =RTD("cqg.rtd", ,"ContractData",B76, "LongDescription",, "T") -> Crude Light (Globex), Sep 32 | F76: =_xlfn.REGEXEXTRACT(RTD("cqg.rtd", ,"ContractData",B76, "LongDescription",, "T"), "[A-Z][a-z]{2}\s\d{2}") -> Sep 32 | G76: =RTD("cqg.rtd", ,"ContractData",B76, "LastTrade",, "T") ->  | H76: =IF(RTD("cqg.rtd", ,"ContractData",B76, "NetLastTrade",, "T")="",NA(),RTD("cqg.rtd", ,"ContractData",B76, "NetLastTrade",, "T")) ->  | I76: =RTD("cqg.rtd", ,"ContractData",B76, "Bid",, "T") ->  | J76: =RTD("cqg.rtd", ,"ContractData",B76, "Ask",, "T") ->  | K76: =RTD("cqg.rtd", ,"ContractData",B76, "T_CVol",, "T") -> 0 | L76: =RTD("cqg.rtd", ,"ContractData",B76, "TradeorTodaySettlement",, "T") -> 60.96
A77: 77 | B77: CLE?77 | C77: CLE | D77: =RTD("cqg.rtd", ,"ContractData",B77, "ContractMonth",, "T") -> OCT | E77: =RTD("cqg.rtd", ,"ContractData",B77, "LongDescription",, "T") -> Crude Light (Globex), Oct 32 | F77: =_xlfn.REGEXEXTRACT(RTD("cqg.rtd", ,"ContractData",B77, "LongDescription",, "T"), "[A-Z][a-z]{2}\s\d{2}") -> Oct 32 | G77: =RTD("cqg.rtd", ,"ContractData",B77, "LastTrade",, "T") ->  | H77: =IF(RTD("cqg.rtd", ,"ContractData",B77, "NetLastTrade",, "T")="",NA(),RTD("cqg.rtd", ,"ContractData",B77, "NetLastTrade",, "T")) ->  | I77: =RTD("cqg.rtd", ,"ContractData",B77, "Bid",, "T") ->  | J77: =RTD("cqg.rtd", ,"ContractData",B77, "Ask",, "T") ->  | K77: =RTD("cqg.rtd", ,"ContractData",B77, "T_CVol",, "T") -> 0 | L77: =RTD("cqg.rtd", ,"ContractData",B77, "TradeorTodaySettlement",, "T") -> 60.78
A78: 78 | B78: CLE?78 | C78: CLE | D78: =RTD("cqg.rtd", ,"ContractData",B78, "ContractMonth",, "T") -> NOV | E78: =RTD("cqg.rtd", ,"ContractData",B78, "LongDescription",, "T") -> Crude Light (Globex), Nov 32 | F78: =_xlfn.REGEXEXTRACT(RTD("cqg.rtd", ,"ContractData",B78, "LongDescription",, "T"), "[A-Z][a-z]{2}\s\d{2}") -> Nov 32 | G78: =RTD("cqg.rtd", ,"ContractData",B78, "LastTrade",, "T") ->  | H78: =IF(RTD("cqg.rtd", ,"ContractData",B78, "NetLastTrade",, "T")="",NA(),RTD("cqg.rtd", ,"ContractData",B78, "NetLastTrade",, "T")) ->  | I78: =RTD("cqg.rtd", ,"ContractData",B78, "Bid",, "T") ->  | J78: =RTD("cqg.rtd", ,"ContractData",B78, "Ask",, "T") ->  | K78: =RTD("cqg.rtd", ,"ContractData",B78, "T_CVol",, "T") -> 0 | L78: =RTD("cqg.rtd", ,"ContractData",B78, "TradeorTodaySettlement",, "T") -> 60.66
A79: 79 | B79: CLE?79 | C79: CLE | D79: =RTD("cqg.rtd", ,"ContractData",B79, "ContractMonth",, "T") -> DEC | E79: =RTD("cqg.rtd", ,"ContractData",B79, "LongDescription",, "T") -> Crude Light (Globex), Dec 32 | F79: =_xlfn.REGEXEXTRACT(RTD("cqg.rtd", ,"ContractData",B79, "LongDescription",, "T"), "[A-Z][a-z]{2}\s\d{2}") -> Dec 32 | G79: =RTD("cqg.rtd", ,"ContractData",B79, "LastTrade",, "T") -> 60.75 | H79: =IF(RTD("cqg.rtd", ,"ContractData",B79, "NetLastTrade",, "T")="",NA(),RTD("cqg.rtd", ,"ContractData",B79, "NetLastTrade",, "T")) -> 1.11 | I79: =RTD("cqg.rtd", ,"ContractData",B79, "Bid",, "T") -> 59.9 | J79: =RTD("cqg.rtd", ,"ContractData",B79, "Ask",, "T") -> 60.8 | K79: =RTD("cqg.rtd", ,"ContractData",B79, "T_CVol",, "T") -> 40 | L79: =RTD("cqg.rtd", ,"ContractData",B79, "TradeorTodaySettlement",, "T") -> 60.75
A80: 80 | B80: CLE?80 | C80: CLE | D80: =RTD("cqg.rtd", ,"ContractData",B80, "ContractMonth",, "T") -> JAN | E80: =RTD("cqg.rtd", ,"ContractData",B80, "LongDescription",, "T") -> Crude Light (Globex), Jan 33 | F80: =_xlfn.REGEXEXTRACT(RTD("cqg.rtd", ,"ContractData",B80, "LongDescription",, "T"), "[A-Z][a-z]{2}\s\d{2}") -> Jan 33 | G80: =RTD("cqg.rtd", ,"ContractData",B80, "LastTrade",, "T") ->  | H80: =IF(RTD("cqg.rtd", ,"ContractData",B80, "NetLastTrade",, "T")="",NA(),RTD("cqg.rtd", ,"ContractData",B80, "NetLastTrade",, "T")) ->  | I80: =RTD("cqg.rtd", ,"ContractData",B80, "Bid",, "T") ->  | J80: =RTD("cqg.rtd", ,"ContractData",B80, "Ask",, "T") ->  | K80: =RTD("cqg.rtd", ,"ContractData",B80, "T_CVol",, "T") -> 0 | L80: =RTD("cqg.rtd", ,"ContractData",B80, "TradeorTodaySettlement",, "T") -> 60.36
A81: 81 | B81: CLE?81 | C81: CLE | D81: =RTD("cqg.rtd", ,"ContractData",B81, "ContractMonth",, "T") -> FEB | E81: =RTD("cqg.rtd", ,"ContractData",B81, "LongDescription",, "T") -> Crude Light (Globex), Feb 33 | F81: =_xlfn.REGEXEXTRACT(RTD("cqg.rtd", ,"ContractData",B81, "LongDescription",, "T"), "[A-Z][a-z]{2}\s\d{2}") -> Feb 33 | G81: =RTD("cqg.rtd", ,"ContractData",B81, "LastTrade",, "T") ->  | H81: =IF(RTD("cqg.rtd", ,"ContractData",B81, "NetLastTrade",, "T")="",NA(),RTD("cqg.rtd", ,"ContractData",B81, "NetLastTrade",, "T")) ->  | I81: =RTD("cqg.rtd", ,"ContractData",B81, "Bid",, "T") ->  | J81: =RTD("cqg.rtd", ,"ContractData",B81, "Ask",, "T") ->  | K81: =RTD("cqg.rtd", ,"ContractData",B81, "T_CVol",, "T") -> 0 | L81: =RTD("cqg.rtd", ,"ContractData",B81, "TradeorTodaySettlement",, "T") -> 60.23
A82: 82 | B82: CLE?82 | C82: CLE | D82: =RTD("cqg.rtd", ,"ContractData",B82, "ContractMonth",, "T") -> MAR | E82: =RTD("cqg.rtd", ,"ContractData",B82, "LongDescription",, "T") -> Crude Light (Globex), Mar 33 | F82: =_xlfn.REGEXEXTRACT(RTD("cqg.rtd", ,"ContractData",B82, "LongDescription",, "T"), "[A-Z][a-z]{2}\s\d{2}") -> Mar 33 | G82: =RTD("cqg.rtd", ,"ContractData",B82, "LastTrade",, "T") ->  | H82: =IF(RTD("cqg.rtd", ,"ContractData",B82, "NetLastTrade",, "T")="",NA(),RTD("cqg.rtd", ,"ContractData",B82, "NetLastTrade",, "T")) ->  | I82: =RTD("cqg.rtd", ,"ContractData",B82, "Bid",, "T") ->  | J82: =RTD("cqg.rtd", ,"ContractData",B82, "Ask",, "T") ->  | K82: =RTD("cqg.rtd", ,"ContractData",B82, "T_CVol",, "T") -> 0 | L82: =RTD("cqg.rtd", ,"ContractData",B82, "TradeorTodaySettlement",, "T") -> 60.11
A83: 83 | B83: CLE?83 | C83: CLE | D83: =RTD("cqg.rtd", ,"ContractData",B83, "ContractMonth",, "T") -> APR | E83: =RTD("cqg.rtd", ,"ContractData",B83, "LongDescription",, "T") -> Crude Light (Globex), Apr 33 | F83: =_xlfn.REGEXEXTRACT(RTD("cqg.rtd", ,"ContractData",B83, "LongDescription",, "T"), "[A-Z][a-z]{2}\s\d{2}") -> Apr 33 | G83: =RTD("cqg.rtd", ,"ContractData",B83, "LastTrade",, "T") ->  | H83: =IF(RTD("cqg.rtd", ,"ContractData",B83, "NetLastTrade",, "T")="",NA(),RTD("cqg.rtd", ,"ContractData",B83, "NetLastTrade",, "T")) ->  | I83: =RTD("cqg.rtd", ,"ContractData",B83, "Bid",, "T") ->  | J83: =RTD("cqg.rtd", ,"ContractData",B83, "Ask",, "T") ->  | K83: =RTD("cqg.rtd", ,"ContractData",B83, "T_CVol",, "T") -> 0 | L83: =RTD("cqg.rtd", ,"ContractData",B83, "TradeorTodaySettlement",, "T") -> 59.93
A84: 84 | B84: CLE?84 | C84: CLE | D84: =RTD("cqg.rtd", ,"ContractData",B84, "ContractMonth",, "T") -> MAY | E84: =RTD("cqg.rtd", ,"ContractData",B84, "LongDescription",, "T") -> Crude Light (Globex), May 33 | F84: =_xlfn.REGEXEXTRACT(RTD("cqg.rtd", ,"ContractData",B84, "LongDescription",, "T"), "[A-Z][a-z]{2}\s\d{2}") -> May 33 | G84: =RTD("cqg.rtd", ,"ContractData",B84, "LastTrade",, "T") ->  | H84: =IF(RTD("cqg.rtd", ,"ContractData",B84, "NetLastTrade",, "T")="",NA(),RTD("cqg.rtd", ,"ContractData",B84, "NetLastTrade",, "T")) ->  | I84: =RTD("cqg.rtd", ,"ContractData",B84, "Bid",, "T") -> 56.2 | J84: =RTD("cqg.rtd", ,"ContractData",B84, "Ask",, "T") ->  | K84: =RTD("cqg.rtd", ,"ContractData",B84, "T_CVol",, "T") -> 0 | L84: =RTD("cqg.rtd", ,"ContractData",B84, "TradeorTodaySettlement",, "T") -> 59.79
A85: 85 | B85: CLE?85 | C85: CLE | D85: =RTD("cqg.rtd", ,"ContractData",B85, "ContractMonth",, "T") -> JUN | E85: =RTD("cqg.rtd", ,"ContractData",B85, "LongDescription",, "T") -> Crude Light (Globex), Jun 33 | F85: =_xlfn.REGEXEXTRACT(RTD("cqg.rtd", ,"ContractData",B85, "LongDescription",, "T"), "[A-Z][a-z]{2}\s\d{2}") -> Jun 33 | G85: =RTD("cqg.rtd", ,"ContractData",B85, "LastTrade",, "T") ->  | H85: =IF(RTD("cqg.rtd", ,"ContractData",B85, "NetLastTrade",, "T")="",NA(),RTD("cqg.rtd", ,"ContractData",B85, "NetLastTrade",, "T")) ->  | I85: =RTD("cqg.rtd", ,"ContractData",B85, "Bid",, "T") ->  | J85: =RTD("cqg.rtd", ,"ContractData",B85, "Ask",, "T") ->  | K85: =RTD("cqg.rtd", ,"ContractData",B85, "T_CVol",, "T") -> 0 | L85: =RTD("cqg.rtd", ,"ContractData",B85, "TradeorTodaySettlement",, "T") -> 59.63
A86: 86 | B86: CLE?86 | C86: =LEFT(B86,FIND("?",B86)-1) -> CLE | D86: =RTD("cqg.rtd", ,"ContractData",B86, "ContractMonth",, "T") -> JUL | E86: =RTD("cqg.rtd", ,"ContractData",B86, "LongDescription",, "T") -> Crude Light (Globex), Jul 33 | F86: =_xlfn.REGEXEXTRACT(RTD("cqg.rtd", ,"ContractData",B86, "LongDescription",, "T"), "[A-Z][a-z]{2}\s\d{2}") -> Jul 33 | G86: =RTD("cqg.rtd", ,"ContractData",B86, "LastTrade",, "T") ->  | H86: =IF(RTD("cqg.rtd", ,"ContractData",B86, "NetLastTrade",, "T")="",NA(),RTD("cqg.rtd", ,"ContractData",B86, "NetLastTrade",, "T")) ->  | I86: =RTD("cqg.rtd", ,"ContractData",B86, "Bid",, "T") -> 56 | J86: =RTD("cqg.rtd", ,"ContractData",B86, "Ask",, "T") ->  | K86: =RTD("cqg.rtd", ,"ContractData",B86, "T_CVol",, "T") -> 0 | L86: =RTD("cqg.rtd", ,"ContractData",B86, "TradeorTodaySettlement",, "T") -> 59.46
A87: 87 | B87: CLE?87 | C87: CLE | D87: =RTD("cqg.rtd", ,"ContractData",B87, "ContractMonth",, "T") -> AUG | E87: =RTD("cqg.rtd", ,"ContractData",B87, "LongDescription",, "T") -> Crude Light (Globex), Aug 33 | F87: =_xlfn.REGEXEXTRACT(RTD("cqg.rtd", ,"ContractData",B87, "LongDescription",, "T"), "[A-Z][a-z]{2}\s\d{2}") -> Aug 33 | G87: =RTD("cqg.rtd", ,"ContractData",B87, "LastTrade",, "T") ->  | H87: =IF(RTD("cqg.rtd", ,"ContractData",B87, "NetLastTrade",, "T")="",NA(),RTD("cqg.rtd", ,"ContractData",B87, "NetLastTrade",, "T")) ->  | I87: =RTD("cqg.rtd", ,"ContractData",B87, "Bid",, "T") ->  | J87: =RTD("cqg.rtd", ,"ContractData",B87, "Ask",, "T") ->  | K87: =RTD("cqg.rtd", ,"ContractData",B87, "T_CVol",, "T") -> 0 | L87: =RTD("cqg.rtd", ,"ContractData",B87, "TradeorTodaySettlement",, "T") -> 59.22
A88: 88 | B88: CLE?88 | C88: CLE | D88: =RTD("cqg.rtd", ,"ContractData",B88, "ContractMonth",, "T") -> SEP | E88: =RTD("cqg.rtd", ,"ContractData",B88, "LongDescription",, "T") -> Crude Light (Globex), Sep 33 | F88: =_xlfn.REGEXEXTRACT(RTD("cqg.rtd", ,"ContractData",B88, "LongDescription",, "T"), "[A-Z][a-z]{2}\s\d{2}") -> Sep 33 | G88: =RTD("cqg.rtd", ,"ContractData",B88, "LastTrade",, "T") ->  | H88: =IF(RTD("cqg.rtd", ,"ContractData",B88, "NetLastTrade",, "T")="",NA(),RTD("cqg.rtd", ,"ContractData",B88, "NetLastTrade",, "T")) ->  | I88: =RTD("cqg.rtd", ,"ContractData",B88, "Bid",, "T") ->  | J88: =RTD("cqg.rtd", ,"ContractData",B88, "Ask",, "T") ->  | K88: =RTD("cqg.rtd", ,"ContractData",B88, "T_CVol",, "T") -> 0 | L88: =RTD("cqg.rtd", ,"ContractData",B88, "TradeorTodaySettlement",, "T") -> 59.04
A89: 89 | B89: CLE?89 | C89: CLE | D89: =RTD("cqg.rtd", ,"ContractData",B89, "ContractMonth",, "T") -> OCT | E89: =RTD("cqg.rtd", ,"ContractData",B89, "LongDescription",, "T") -> Crude Light (Globex), Oct 33 | F89: =_xlfn.REGEXEXTRACT(RTD("cqg.rtd", ,"ContractData",B89, "LongDescription",, "T"), "[A-Z][a-z]{2}\s\d{2}") -> Oct 33 | G89: =RTD("cqg.rtd", ,"ContractData",B89, "LastTrade",, "T") ->  | H89: =IF(RTD("cqg.rtd", ,"ContractData",B89, "NetLastTrade",, "T")="",NA(),RTD("cqg.rtd", ,"ContractData",B89, "NetLastTrade",, "T")) ->  | I89: =RTD("cqg.rtd", ,"ContractData",B89, "Bid",, "T") ->  | J89: =RTD("cqg.rtd", ,"ContractData",B89, "Ask",, "T") ->  | K89: =RTD("cqg.rtd", ,"ContractData",B89, "T_CVol",, "T") -> 0 | L89: =RTD("cqg.rtd", ,"ContractData",B89, "TradeorTodaySettlement",, "T") -> 58.91
A90: 90 | B90: CLE?90 | C90: CLE | D90: =RTD("cqg.rtd", ,"ContractData",B90, "ContractMonth",, "T") -> NOV | E90: =RTD("cqg.rtd", ,"ContractData",B90, "LongDescription",, "T") -> Crude Light (Globex), Nov 33 | F90: =_xlfn.REGEXEXTRACT(RTD("cqg.rtd", ,"ContractData",B90, "LongDescription",, "T"), "[A-Z][a-z]{2}\s\d{2}") -> Nov 33 | G90: =RTD("cqg.rtd", ,"ContractData",B90, "LastTrade",, "T") ->  | H90: =IF(RTD("cqg.rtd", ,"ContractData",B90, "NetLastTrade",, "T")="",NA(),RTD("cqg.rtd", ,"ContractData",B90, "NetLastTrade",, "T")) ->  | I90: =RTD("cqg.rtd", ,"ContractData",B90, "Bid",, "T") ->  | J90: =RTD("cqg.rtd", ,"ContractData",B90, "Ask",, "T") ->  | K90: =RTD("cqg.rtd", ,"ContractData",B90, "T_CVol",, "T") -> 0 | L90: =RTD("cqg.rtd", ,"ContractData",B90, "TradeorTodaySettlement",, "T") -> 58.74
A91: 91 | B91: CLE?91 | C91: CLE | D91: =RTD("cqg.rtd", ,"ContractData",B91, "ContractMonth",, "T") -> DEC | E91: =RTD("cqg.rtd", ,"ContractData",B91, "LongDescription",, "T") -> Crude Light (Globex), Dec 33 | F91: =_xlfn.REGEXEXTRACT(RTD("cqg.rtd", ,"ContractData",B91, "LongDescription",, "T"), "[A-Z][a-z]{2}\s\d{2}") -> Dec 33 | G91: =RTD("cqg.rtd", ,"ContractData",B91, "LastTrade",, "T") -> 59.05 | H91: =IF(RTD("cqg.rtd", ,"ContractData",B91, "NetLastTrade",, "T")="",NA(),RTD("cqg.rtd", ,"ContractData",B91, "NetLastTrade",, "T")) -> 1.05 | I91: =RTD("cqg.rtd", ,"ContractData",B91, "Bid",, "T") -> 57 | J91: =RTD("cqg.rtd", ,"ContractData",B91, "Ask",, "T") ->  | K91: =RTD("cqg.rtd", ,"ContractData",B91, "T_CVol",, "T") -> 6 | L91: =RTD("cqg.rtd", ,"ContractData",B91, "TradeorTodaySettlement",, "T") -> 59.05
A92: 92 | B92: CLE?92 | C92: CLE | D92: =RTD("cqg.rtd", ,"ContractData",B92, "ContractMonth",, "T") -> JAN | E92: =RTD("cqg.rtd", ,"ContractData",B92, "LongDescription",, "T") -> Crude Light (Globex), Jan 34 | F92: =_xlfn.REGEXEXTRACT(RTD("cqg.rtd", ,"ContractData",B92, "LongDescription",, "T"), "[A-Z][a-z]{2}\s\d{2}") -> Jan 34 | G92: =RTD("cqg.rtd", ,"ContractData",B92, "LastTrade",, "T") ->  | H92: =IF(RTD("cqg.rtd", ,"ContractData",B92, "NetLastTrade",, "T")="",NA(),RTD("cqg.rtd", ,"ContractData",B92, "NetLastTrade",, "T")) ->  | I92: =RTD("cqg.rtd", ,"ContractData",B92, "Bid",, "T") ->  | J92: =RTD("cqg.rtd", ,"ContractData",B92, "Ask",, "T") ->  | K92: =RTD("cqg.rtd", ,"ContractData",B92, "T_CVol",, "T") -> 0 | L92: =RTD("cqg.rtd", ,"ContractData",B92, "TradeorTodaySettlement",, "T") -> 58.58
A93: 93 | B93: CLE?93 | C93: CLE | D93: =RTD("cqg.rtd", ,"ContractData",B93, "ContractMonth",, "T") -> FEB | E93: =RTD("cqg.rtd", ,"ContractData",B93, "LongDescription",, "T") -> Crude Light (Globex), Feb 34 | F93: =_xlfn.REGEXEXTRACT(RTD("cqg.rtd", ,"ContractData",B93, "LongDescription",, "T"), "[A-Z][a-z]{2}\s\d{2}") -> Feb 34 | G93: =RTD("cqg.rtd", ,"ContractData",B93, "LastTrade",, "T") ->  | H93: =IF(RTD("cqg.rtd", ,"ContractData",B93, "NetLastTrade",, "T")="",NA(),RTD("cqg.rtd", ,"ContractData",B93, "NetLastTrade",, "T")) ->  | I93: =RTD("cqg.rtd", ,"ContractData",B93, "Bid",, "T") ->  | J93: =RTD("cqg.rtd", ,"ContractData",B93, "Ask",, "T") ->  | K93: =RTD("cqg.rtd", ,"ContractData",B93, "T_CVol",, "T") -> 0 | L93: =RTD("cqg.rtd", ,"ContractData",B93, "TradeorTodaySettlement",, "T") -> 58.41
A94: 94 | B94: CLE?94 | C94: CLE | D94: =RTD("cqg.rtd", ,"ContractData",B94, "ContractMonth",, "T") -> MAR | E94: =RTD("cqg.rtd", ,"ContractData",B94, "LongDescription",, "T") -> Crude Light (Globex), Mar 34 | F94: =_xlfn.REGEXEXTRACT(RTD("cqg.rtd", ,"ContractData",B94, "LongDescription",, "T"), "[A-Z][a-z]{2}\s\d{2}") -> Mar 34 | G94: =RTD("cqg.rtd", ,"ContractData",B94, "LastTrade",, "T") ->  | H94: =IF(RTD("cqg.rtd", ,"ContractData",B94, "NetLastTrade",, "T")="",NA(),RTD("cqg.rtd", ,"ContractData",B94, "NetLastTrade",, "T")) ->  | I94: =RTD("cqg.rtd", ,"ContractData",B94, "Bid",, "T") ->  | J94: =RTD("cqg.rtd", ,"ContractData",B94, "Ask",, "T") ->  | K94: =RTD("cqg.rtd", ,"ContractData",B94, "T_CVol",, "T") -> 0 | L94: =RTD("cqg.rtd", ,"ContractData",B94, "TradeorTodaySettlement",, "T") -> 58.22
A95: 95 | B95: CLE?95 | C95: CLE | D95: =RTD("cqg.rtd", ,"ContractData",B95, "ContractMonth",, "T") -> APR | E95: =RTD("cqg.rtd", ,"ContractData",B95, "LongDescription",, "T") -> Crude Light (Globex), Apr 34 | F95: =_xlfn.REGEXEXTRACT(RTD("cqg.rtd", ,"ContractData",B95, "LongDescription",, "T"), "[A-Z][a-z]{2}\s\d{2}") -> Apr 34 | G95: =RTD("cqg.rtd", ,"ContractData",B95, "LastTrade",, "T") ->  | H95: =IF(RTD("cqg.rtd", ,"ContractData",B95, "NetLastTrade",, "T")="",NA(),RTD("cqg.rtd", ,"ContractData",B95, "NetLastTrade",, "T")) ->  | I95: =RTD("cqg.rtd", ,"ContractData",B95, "Bid",, "T") -> 56 | J95: =RTD("cqg.rtd", ,"ContractData",B95, "Ask",, "T") ->  | K95: =RTD("cqg.rtd", ,"ContractData",B95, "T_CVol",, "T") -> 0 | L95: =RTD("cqg.rtd", ,"ContractData",B95, "TradeorTodaySettlement",, "T") -> 58.07
A96: =A95+1 -> 96 | B96: CLE?96 | C96: =LEFT(B96,FIND("?",B96)-1) -> CLE | D96: =RTD("cqg.rtd", ,"ContractData",B96, "ContractMonth",, "T") -> MAY | E96: =RTD("cqg.rtd", ,"ContractData",B96, "LongDescription",, "T") -> Crude Light (Globex), May 34 | F96: =_xlfn.REGEXEXTRACT(RTD("cqg.rtd", ,"ContractData",B96, "LongDescription",, "T"), "[A-Z][a-z]{2}\s\d{2}") -> May 34 | G96: =RTD("cqg.rtd", ,"ContractData",B96, "LastTrade",, "T") ->  | H96: =IF(RTD("cqg.rtd", ,"ContractData",B96, "NetLastTrade",, "T")="",NA(),RTD("cqg.rtd", ,"ContractData",B96, "NetLastTrade",, "T")) ->  | I96: =RTD("cqg.rtd", ,"ContractData",B96, "Bid",, "T") ->  | J96: =RTD("cqg.rtd", ,"ContractData",B96, "Ask",, "T") ->  | K96: =RTD("cqg.rtd", ,"ContractData",B96, "T_CVol",, "T") -> 0 | L96: =RTD("cqg.rtd", ,"ContractData",B96, "TradeorTodaySettlement",, "T") -> 57.94
A97: 97 | B97: CLE?97 | C97: CLE | D97: =RTD("cqg.rtd", ,"ContractData",B97, "ContractMonth",, "T") -> JUN | E97: =RTD("cqg.rtd", ,"ContractData",B97, "LongDescription",, "T") -> Crude Light (Globex), Jun 34 | F97: =_xlfn.REGEXEXTRACT(RTD("cqg.rtd", ,"ContractData",B97, "LongDescription",, "T"), "[A-Z][a-z]{2}\s\d{2}") -> Jun 34 | G97: =RTD("cqg.rtd", ,"ContractData",B97, "LastTrade",, "T") ->  | H97: =IF(RTD("cqg.rtd", ,"ContractData",B97, "NetLastTrade",, "T")="",NA(),RTD("cqg.rtd", ,"ContractData",B97, "NetLastTrade",, "T")) ->  | I97: =RTD("cqg.rtd", ,"ContractData",B97, "Bid",, "T") -> 56.2 | J97: =RTD("cqg.rtd", ,"ContractData",B97, "Ask",, "T") ->  | K97: =RTD("cqg.rtd", ,"ContractData",B97, "T_CVol",, "T") -> 0 | L97: =RTD("cqg.rtd", ,"ContractData",B97, "TradeorTodaySettlement",, "T") -> 57.81
A98: 98 | B98: CLE?98 | C98: CLE | D98: =RTD("cqg.rtd", ,"ContractData",B98, "ContractMonth",, "T") -> JUL | E98: =RTD("cqg.rtd", ,"ContractData",B98, "LongDescription",, "T") -> Crude Light (Globex), Jul 34 | F98: =_xlfn.REGEXEXTRACT(RTD("cqg.rtd", ,"ContractData",B98, "LongDescription",, "T"), "[A-Z][a-z]{2}\s\d{2}") -> Jul 34 | G98: =RTD("cqg.rtd", ,"ContractData",B98, "LastTrade",, "T") ->  | H98: =IF(RTD("cqg.rtd", ,"ContractData",B98, "NetLastTrade",, "T")="",NA(),RTD("cqg.rtd", ,"ContractData",B98, "NetLastTrade",, "T")) ->  | I98: =RTD("cqg.rtd", ,"ContractData",B98, "Bid",, "T") -> 56 | J98: =RTD("cqg.rtd", ,"ContractData",B98, "Ask",, "T") ->  | K98: =RTD("cqg.rtd", ,"ContractData",B98, "T_CVol",, "T") -> 0 | L98: =RTD("cqg.rtd", ,"ContractData",B98, "TradeorTodaySettlement",, "T") -> 57.7
A99: 99 | B99: =$N$1&"?"&A99 -> CLE?99 | C99: CLE | D99: =RTD("cqg.rtd", ,"ContractData",B99, "ContractMonth",, "T") -> AUG | E99: =RTD("cqg.rtd", ,"ContractData",B99, "LongDescription",, "T") -> Crude Light (Globex), Aug 34 | F99: =_xlfn.REGEXEXTRACT(RTD("cqg.rtd", ,"ContractData",B99, "LongDescription",, "T"), "[A-Z][a-z]{2}\s\d{2}") -> Aug 34 | G99: =RTD("cqg.rtd", ,"ContractData",B99, "LastTrade",, "T") ->  | H99: =IF(RTD("cqg.rtd", ,"ContractData",B99, "NetLastTrade",, "T")="",NA(),RTD("cqg.rtd", ,"ContractData",B99, "NetLastTrade",, "T")) ->  | I99: =RTD("cqg.rtd", ,"ContractData",B99, "Bid",, "T") -> 56 | J99: =RTD("cqg.rtd", ,"ContractData",B99, "Ask",, "T") ->  | K99: =RTD("cqg.rtd", ,"ContractData",B99, "T_CVol",, "T") -> 0 | L99: =RTD("cqg.rtd", ,"ContractData",B99, "TradeorTodaySettlement",, "T") -> 57.57
A100: 100 | B100: CLE?100 | C100: CLE | D100: =RTD("cqg.rtd", ,"ContractData",B100, "ContractMonth",, "T") -> SEP | E100: =RTD("cqg.rtd", ,"ContractData",B100, "LongDescription",, "T") -> Crude Light (Globex), Sep 34 | F100: =_xlfn.REGEXEXTRACT(RTD("cqg.rtd", ,"ContractData",B100, "LongDescription",, "T"), "[A-Z][a-z]{2}\s\d{2}") -> Sep 34 | G100: =RTD("cqg.rtd", ,"ContractData",B100, "LastTrade",, "T") ->  | H100: =IF(RTD("cqg.rtd", ,"ContractData",B100, "NetLastTrade",, "T")="",NA(),RTD("cqg.rtd", ,"ContractData",B100, "NetLastTrade",, "T")) ->  | I100: =RTD("cqg.rtd", ,"ContractData",B100, "Bid",, "T") ->  | J100: =RTD("cqg.rtd", ,"ContractData",B100, "Ask",, "T") ->  | K100: =RTD("cqg.rtd", ,"ContractData",B100, "T_CVol",, "T") -> 0 | L100: =RTD("cqg.rtd", ,"ContractData",B100, "TradeorTodaySettlement",, "T") -> 57.42
A101: 101 | B101: CLE?101 | C101: CLE | D101: =RTD("cqg.rtd", ,"ContractData",B101, "ContractMonth",, "T") -> OCT | E101: =RTD("cqg.rtd", ,"ContractData",B101, "LongDescription",, "T") -> Crude Light (Globex), Oct 34 | F101: =_xlfn.REGEXEXTRACT(RTD("cqg.rtd", ,"ContractData",B101, "LongDescription",, "T"), "[A-Z][a-z]{2}\s\d{2}") -> Oct 34 | G101: =RTD("cqg.rtd", ,"ContractData",B101, "LastTrade",, "T") ->  | H101: =IF(RTD("cqg.rtd", ,"ContractData",B101, "NetLastTrade",, "T")="",NA(),RTD("cqg.rtd", ,"ContractData",B101, "NetLastTrade",, "T")) ->  | I101: =RTD("cqg.rtd", ,"ContractData",B101, "Bid",, "T") -> 55.9 | J101: =RTD("cqg.rtd", ,"ContractData",B101, "Ask",, "T") ->  | K101: =RTD("cqg.rtd", ,"ContractData",B101, "T_CVol",, "T") -> 0 | L101: =RTD("cqg.rtd", ,"ContractData",B101, "TradeorTodaySettlement",, "T") -> 57.27
A102: 102 | B102: CLE?102 | C102: CLE | D102: =RTD("cqg.rtd", ,"ContractData",B102, "ContractMonth",, "T") -> NOV | E102: =RTD("cqg.rtd", ,"ContractData",B102, "LongDescription",, "T") -> Crude Light (Globex), Nov 34 | F102: =_xlfn.REGEXEXTRACT(RTD("cqg.rtd", ,"ContractData",B102, "LongDescription",, "T"), "[A-Z][a-z]{2}\s\d{2}") -> Nov 34 | G102: =RTD("cqg.rtd", ,"ContractData",B102, "LastTrade",, "T") ->  | H102: =IF(RTD("cqg.rtd", ,"ContractData",B102, "NetLastTrade",, "T")="",NA(),RTD("cqg.rtd", ,"ContractData",B102, "NetLastTrade",, "T")) ->  | I102: =RTD("cqg.rtd", ,"ContractData",B102, "Bid",, "T") ->  | J102: =RTD("cqg.rtd", ,"ContractData",B102, "Ask",, "T") ->  | K102: =RTD("cqg.rtd", ,"ContractData",B102, "T_CVol",, "T") -> 0 | L102: =RTD("cqg.rtd", ,"ContractData",B102, "TradeorTodaySettlement",, "T") -> 57.11
A103: 103 | B103: CLE?103 | C103: CLE | D103: =RTD("cqg.rtd", ,"ContractData",B103, "ContractMonth",, "T") -> DEC | E103: =RTD("cqg.rtd", ,"ContractData",B103, "LongDescription",, "T") -> Crude Light (Globex), Dec 34 | F103: =_xlfn.REGEXEXTRACT(RTD("cqg.rtd", ,"ContractData",B103, "LongDescription",, "T"), "[A-Z][a-z]{2}\s\d{2}") -> Dec 34 | G103: =RTD("cqg.rtd", ,"ContractData",B103, "LastTrade",, "T") -> 56.2 | H103: =IF(RTD("cqg.rtd", ,"ContractData",B103, "NetLastTrade",, "T")="",NA(),RTD("cqg.rtd", ,"ContractData",B103, "NetLastTrade",, "T")) -> -0.06 | I103: =RTD("cqg.rtd", ,"ContractData",B103, "Bid",, "T") -> 56.2 | J103: =RTD("cqg.rtd", ,"ContractData",B103, "Ask",, "T") ->  | K103: =RTD("cqg.rtd", ,"ContractData",B103, "T_CVol",, "T") -> 0 | L103: =RTD("cqg.rtd", ,"ContractData",B103, "TradeorTodaySettlement",, "T") -> 56.96
A104: 104 | B104: CLE?104 | C104: CLE | D104: =RTD("cqg.rtd", ,"ContractData",B104, "ContractMonth",, "T") -> JAN | E104: =RTD("cqg.rtd", ,"ContractData",B104, "LongDescription",, "T") -> Crude Light (Globex), Jan 35 | F104: =_xlfn.REGEXEXTRACT(RTD("cqg.rtd", ,"ContractData",B104, "LongDescription",, "T"), "[A-Z][a-z]{2}\s\d{2}") -> Jan 35 | G104: =RTD("cqg.rtd", ,"ContractData",B104, "LastTrade",, "T") ->  | H104: =IF(RTD("cqg.rtd", ,"ContractData",B104, "NetLastTrade",, "T")="",NA(),RTD("cqg.rtd", ,"ContractData",B104, "NetLastTrade",, "T")) ->  | I104: =RTD("cqg.rtd", ,"ContractData",B104, "Bid",, "T") ->  | J104: =RTD("cqg.rtd", ,"ContractData",B104, "Ask",, "T") ->  | K104: =RTD("cqg.rtd", ,"ContractData",B104, "T_CVol",, "T") -> 0 | L104: =RTD("cqg.rtd", ,"ContractData",B104, "TradeorTodaySettlement",, "T") -> 56.8
A105: 105 | B105: CLE?105 | C105: CLE | D105: =RTD("cqg.rtd", ,"ContractData",B105, "ContractMonth",, "T") -> FEB | E105: =RTD("cqg.rtd", ,"ContractData",B105, "LongDescription",, "T") -> Crude Light (Globex), Feb 35 | F105: =_xlfn.REGEXEXTRACT(RTD("cqg.rtd", ,"ContractData",B105, "LongDescription",, "T"), "[A-Z][a-z]{2}\s\d{2}") -> Feb 35 | G105: =RTD("cqg.rtd", ,"ContractData",B105, "LastTrade",, "T") ->  | H105: =IF(RTD("cqg.rtd", ,"ContractData",B105, "NetLastTrade",, "T")="",NA(),RTD("cqg.rtd", ,"ContractData",B105, "NetLastTrade",, "T")) ->  | I105: =RTD("cqg.rtd", ,"ContractData",B105, "Bid",, "T") ->  | J105: =RTD("cqg.rtd", ,"ContractData",B105, "Ask",, "T") ->  | K105: =RTD("cqg.rtd", ,"ContractData",B105, "T_CVol",, "T") -> 0 | L105: =RTD("cqg.rtd", ,"ContractData",B105, "TradeorTodaySettlement",, "T") -> 56.64
A106: 106 | B106: CLE?106 | C106: CLE | D106: =RTD("cqg.rtd", ,"ContractData",B106, "ContractMonth",, "T") -> MAR | E106: =RTD("cqg.rtd", ,"ContractData",B106, "LongDescription",, "T") -> Crude Light (Globex), Mar 35 | F106: =_xlfn.REGEXEXTRACT(RTD("cqg.rtd", ,"ContractData",B106, "LongDescription",, "T"), "[A-Z][a-z]{2}\s\d{2}") -> Mar 35 | G106: =RTD("cqg.rtd", ,"ContractData",B106, "LastTrade",, "T") ->  | H106: =IF(RTD("cqg.rtd", ,"ContractData",B106, "NetLastTrade",, "T")="",NA(),RTD("cqg.rtd", ,"ContractData",B106, "NetLastTrade",, "T")) ->  | I106: =RTD("cqg.rtd", ,"ContractData",B106, "Bid",, "T") ->  | J106: =RTD("cqg.rtd", ,"ContractData",B106, "Ask",, "T") ->  | K106: =RTD("cqg.rtd", ,"ContractData",B106, "T_CVol",, "T") -> 0 | L106: =RTD("cqg.rtd", ,"ContractData",B106, "TradeorTodaySettlement",, "T") -> 56.49
A107: 107 | B107: CLE?107 | C107: CLE | D107: =RTD("cqg.rtd", ,"ContractData",B107, "ContractMonth",, "T") -> APR | E107: =RTD("cqg.rtd", ,"ContractData",B107, "LongDescription",, "T") -> Crude Light (Globex), Apr 35 | F107: =_xlfn.REGEXEXTRACT(RTD("cqg.rtd", ,"ContractData",B107, "LongDescription",, "T"), "[A-Z][a-z]{2}\s\d{2}") -> Apr 35 | G107: =RTD("cqg.rtd", ,"ContractData",B107, "LastTrade",, "T") ->  | H107: =IF(RTD("cqg.rtd", ,"ContractData",B107, "NetLastTrade",, "T")="",NA(),RTD("cqg.rtd", ,"ContractData",B107, "NetLastTrade",, "T")) ->  | I107: =RTD("cqg.rtd", ,"ContractData",B107, "Bid",, "T") ->  | J107: =RTD("cqg.rtd", ,"ContractData",B107, "Ask",, "T") ->  | K107: =RTD("cqg.rtd", ,"ContractData",B107, "T_CVol",, "T") -> 0 | L107: =RTD("cqg.rtd", ,"ContractData",B107, "TradeorTodaySettlement",, "T") -> 56.39
A108: 108 | B108: CLE?108 | C108: CLE | D108: =RTD("cqg.rtd", ,"ContractData",B108, "ContractMonth",, "T") -> MAY | E108: =RTD("cqg.rtd", ,"ContractData",B108, "LongDescription",, "T") -> Crude Light (Globex), May 35 | F108: =_xlfn.REGEXEXTRACT(RTD("cqg.rtd", ,"ContractData",B108, "LongDescription",, "T"), "[A-Z][a-z]{2}\s\d{2}") -> May 35 | G108: =RTD("cqg.rtd", ,"ContractData",B108, "LastTrade",, "T") ->  | H108: =IF(RTD("cqg.rtd", ,"ContractData",B108, "NetLastTrade",, "T")="",NA(),RTD("cqg.rtd", ,"ContractData",B108, "NetLastTrade",, "T")) ->  | I108: =RTD("cqg.rtd", ,"ContractData",B108, "Bid",, "T") ->  | J108: =RTD("cqg.rtd", ,"ContractData",B108, "Ask",, "T") ->  | K108: =RTD("cqg.rtd", ,"ContractData",B108, "T_CVol",, "T") -> 0 | L108: =RTD("cqg.rtd", ,"ContractData",B108, "TradeorTodaySettlement",, "T") -> 56.23
A109: 109 | B109: CLE?109 | C109: CLE | D109: =RTD("cqg.rtd", ,"ContractData",B109, "ContractMonth",, "T") -> JUN | E109: =RTD("cqg.rtd", ,"ContractData",B109, "LongDescription",, "T") -> Crude Light (Globex), Jun 35 | F109: =_xlfn.REGEXEXTRACT(RTD("cqg.rtd", ,"ContractData",B109, "LongDescription",, "T"), "[A-Z][a-z]{2}\s\d{2}") -> Jun 35 | G109: =RTD("cqg.rtd", ,"ContractData",B109, "LastTrade",, "T") ->  | H109: =IF(RTD("cqg.rtd", ,"ContractData",B109, "NetLastTrade",, "T")="",NA(),RTD("cqg.rtd", ,"ContractData",B109, "NetLastTrade",, "T")) ->  | I109: =RTD("cqg.rtd", ,"ContractData",B109, "Bid",, "T") ->  | J109: =RTD("cqg.rtd", ,"ContractData",B109, "Ask",, "T") ->  | K109: =RTD("cqg.rtd", ,"ContractData",B109, "T_CVol",, "T") -> 0 | L109: =RTD("cqg.rtd", ,"ContractData",B109, "TradeorTodaySettlement",, "T") -> 56.02
A110: 110 | B110: CLE?110 | C110: CLE | D110: =RTD("cqg.rtd", ,"ContractData",B110, "ContractMonth",, "T") -> JUL | E110: =RTD("cqg.rtd", ,"ContractData",B110, "LongDescription",, "T") -> Crude Light (Globex), Jul 35 | F110: =_xlfn.REGEXEXTRACT(RTD("cqg.rtd", ,"ContractData",B110, "LongDescription",, "T"), "[A-Z][a-z]{2}\s\d{2}") -> Jul 35 | G110: =RTD("cqg.rtd", ,"ContractData",B110, "LastTrade",, "T") ->  | H110: =IF(RTD("cqg.rtd", ,"ContractData",B110, "NetLastTrade",, "T")="",NA(),RTD("cqg.rtd", ,"ContractData",B110, "NetLastTrade",, "T")) ->  | I110: =RTD("cqg.rtd", ,"ContractData",B110, "Bid",, "T") -> 54.8 | J110: =RTD("cqg.rtd", ,"ContractData",B110, "Ask",, "T") ->  | K110: =RTD("cqg.rtd", ,"ContractData",B110, "T_CVol",, "T") -> 0 | L110: =RTD("cqg.rtd", ,"ContractData",B110, "TradeorTodaySettlement",, "T") -> 55.87
A111: 111 | B111: CLE?111 | C111: CLE | D111: =RTD("cqg.rtd", ,"ContractData",B111, "ContractMonth",, "T") -> AUG | E111: =RTD("cqg.rtd", ,"ContractData",B111, "LongDescription",, "T") -> Crude Light (Globex), Aug 35 | F111: =_xlfn.REGEXEXTRACT(RTD("cqg.rtd", ,"ContractData",B111, "LongDescription",, "T"), "[A-Z][a-z]{2}\s\d{2}") -> Aug 35 | G111: =RTD("cqg.rtd", ,"ContractData",B111, "LastTrade",, "T") ->  | H111: =IF(RTD("cqg.rtd", ,"ContractData",B111, "NetLastTrade",, "T")="",NA(),RTD("cqg.rtd", ,"ContractData",B111, "NetLastTrade",, "T")) ->  | I111: =RTD("cqg.rtd", ,"ContractData",B111, "Bid",, "T") -> 53.8 | J111: =RTD("cqg.rtd", ,"ContractData",B111, "Ask",, "T") ->  | K111: =RTD("cqg.rtd", ,"ContractData",B111, "T_CVol",, "T") -> 0 | L111: =RTD("cqg.rtd", ,"ContractData",B111, "TradeorTodaySettlement",, "T") -> 55.69
A112: 112 | B112: CLE?112 | C112: CLE | D112: =RTD("cqg.rtd", ,"ContractData",B112, "ContractMonth",, "T") -> SEP | E112: =RTD("cqg.rtd", ,"ContractData",B112, "LongDescription",, "T") -> Crude Light (Globex), Sep 35 | F112: =_xlfn.REGEXEXTRACT(RTD("cqg.rtd", ,"ContractData",B112, "LongDescription",, "T"), "[A-Z][a-z]{2}\s\d{2}") -> Sep 35 | G112: =RTD("cqg.rtd", ,"ContractData",B112, "LastTrade",, "T") ->  | H112: =IF(RTD("cqg.rtd", ,"ContractData",B112, "NetLastTrade",, "T")="",NA(),RTD("cqg.rtd", ,"ContractData",B112, "NetLastTrade",, "T")) ->  | I112: =RTD("cqg.rtd", ,"ContractData",B112, "Bid",, "T") ->  | J112: =RTD("cqg.rtd", ,"ContractData",B112, "Ask",, "T") ->  | K112: =RTD("cqg.rtd", ,"ContractData",B112, "T_CVol",, "T") -> 0 | L112: =RTD("cqg.rtd", ,"ContractData",B112, "TradeorTodaySettlement",, "T") -> 55.55
A113: 113 | B113: CLE?113 | C113: CLE | D113: =RTD("cqg.rtd", ,"ContractData",B113, "ContractMonth",, "T") -> OCT | E113: =RTD("cqg.rtd", ,"ContractData",B113, "LongDescription",, "T") -> Crude Light (Globex), Oct 35 | F113: =_xlfn.REGEXEXTRACT(RTD("cqg.rtd", ,"ContractData",B113, "LongDescription",, "T"), "[A-Z][a-z]{2}\s\d{2}") -> Oct 35 | G113: =RTD("cqg.rtd", ,"ContractData",B113, "LastTrade",, "T") ->  | H113: =IF(RTD("cqg.rtd", ,"ContractData",B113, "NetLastTrade",, "T")="",NA(),RTD("cqg.rtd", ,"ContractData",B113, "NetLastTrade",, "T")) ->  | I113: =RTD("cqg.rtd", ,"ContractData",B113, "Bid",, "T") ->  | J113: =RTD("cqg.rtd", ,"ContractData",B113, "Ask",, "T") ->  | K113: =RTD("cqg.rtd", ,"ContractData",B113, "T_CVol",, "T") -> 0 | L113: =RTD("cqg.rtd", ,"ContractData",B113, "TradeorTodaySettlement",, "T") -> 55.41
A114: 114 | B114: CLE?114 | C114: CLE | D114: =RTD("cqg.rtd", ,"ContractData",B114, "ContractMonth",, "T") -> NOV | E114: =RTD("cqg.rtd", ,"ContractData",B114, "LongDescription",, "T") -> Crude Light (Globex), Nov 35 | F114: =_xlfn.REGEXEXTRACT(RTD("cqg.rtd", ,"ContractData",B114, "LongDescription",, "T"), "[A-Z][a-z]{2}\s\d{2}") -> Nov 35 | G114: =RTD("cqg.rtd", ,"ContractData",B114, "LastTrade",, "T") ->  | H114: =IF(RTD("cqg.rtd", ,"ContractData",B114, "NetLastTrade",, "T")="",NA(),RTD("cqg.rtd", ,"ContractData",B114, "NetLastTrade",, "T")) ->  | I114: =RTD("cqg.rtd", ,"ContractData",B114, "Bid",, "T") ->  | J114: =RTD("cqg.rtd", ,"ContractData",B114, "Ask",, "T") ->  | K114: =RTD("cqg.rtd", ,"ContractData",B114, "T_CVol",, "T") -> 0 | L114: =RTD("cqg.rtd", ,"ContractData",B114, "TradeorTodaySettlement",, "T") -> 55.31
A115: 115 | B115: CLE?115 | C115: CLE | D115: =RTD("cqg.rtd", ,"ContractData",B115, "ContractMonth",, "T") -> DEC | E115: =RTD("cqg.rtd", ,"ContractData",B115, "LongDescription",, "T") -> Crude Light (Globex), Dec 35 | F115: =_xlfn.REGEXEXTRACT(RTD("cqg.rtd", ,"ContractData",B115, "LongDescription",, "T"), "[A-Z][a-z]{2}\s\d{2}") -> Dec 35 | G115: =RTD("cqg.rtd", ,"ContractData",B115, "LastTrade",, "T") -> 55.05 | H115: =IF(RTD("cqg.rtd", ,"ContractData",B115, "NetLastTrade",, "T")="",NA(),RTD("cqg.rtd", ,"ContractData",B115, "NetLastTrade",, "T")) -> 0.63 | I115: =RTD("cqg.rtd", ,"ContractData",B115, "Bid",, "T") -> 55.05 | J115: =RTD("cqg.rtd", ,"ContractData",B115, "Ask",, "T") ->  | K115: =RTD("cqg.rtd", ,"ContractData",B115, "T_CVol",, "T") -> 0 | L115: =RTD("cqg.rtd", ,"ContractData",B115, "TradeorTodaySettlement",, "T") -> 55.12
A116: 116 | B116: CLE?116 | C116: CLE | D116: =RTD("cqg.rtd", ,"ContractData",B116, "ContractMonth",, "T") -> JAN | E116: =RTD("cqg.rtd", ,"ContractData",B116, "LongDescription",, "T") -> Crude Light (Globex), Jan 36 | F116: =_xlfn.REGEXEXTRACT(RTD("cqg.rtd", ,"ContractData",B116, "LongDescription",, "T"), "[A-Z][a-z]{2}\s\d{2}") -> Jan 36 | G116: =RTD("cqg.rtd", ,"ContractData",B116, "LastTrade",, "T") ->  | H116: =IF(RTD("cqg.rtd", ,"ContractData",B116, "NetLastTrade",, "T")="",NA(),RTD("cqg.rtd", ,"ContractData",B116, "NetLastTrade",, "T")) ->  | I116: =RTD("cqg.rtd", ,"ContractData",B116, "Bid",, "T") ->  | J116: =RTD("cqg.rtd", ,"ContractData",B116, "Ask",, "T") ->  | K116: =RTD("cqg.rtd", ,"ContractData",B116, "T_CVol",, "T") -> 0 | L116: =RTD("cqg.rtd", ,"ContractData",B116, "TradeorTodaySettlement",, "T") -> 54.98
A117: 117 | B117: CLE?117 | C117: CLE | D117: =RTD("cqg.rtd", ,"ContractData",B117, "ContractMonth",, "T") -> FEB | E117: =RTD("cqg.rtd", ,"ContractData",B117, "LongDescription",, "T") -> Crude Light (Globex), Feb 36 | F117: =_xlfn.REGEXEXTRACT(RTD("cqg.rtd", ,"ContractData",B117, "LongDescription",, "T"), "[A-Z][a-z]{2}\s\d{2}") -> Feb 36 | G117: =RTD("cqg.rtd", ,"ContractData",B117, "LastTrade",, "T") ->  | H117: =IF(RTD("cqg.rtd", ,"ContractData",B117, "NetLastTrade",, "T")="",NA(),RTD("cqg.rtd", ,"ContractData",B117, "NetLastTrade",, "T")) ->  | I117: =RTD("cqg.rtd", ,"ContractData",B117, "Bid",, "T") ->  | J117: =RTD("cqg.rtd", ,"ContractData",B117, "Ask",, "T") ->  | K117: =RTD("cqg.rtd", ,"ContractData",B117, "T_CVol",, "T") -> 0 | L117: =RTD("cqg.rtd", ,"ContractData",B117, "TradeorTodaySettlement",, "T") -> 54.81
A118: 118 | B118: CLE?118 | C118: CLE | D118: =RTD("cqg.rtd", ,"ContractData",B118, "ContractMonth",, "T") -> MAR | E118: =RTD("cqg.rtd", ,"ContractData",B118, "LongDescription",, "T") -> Crude Light (Globex), Mar 36 | F118: =_xlfn.REGEXEXTRACT(RTD("cqg.rtd", ,"ContractData",B118, "LongDescription",, "T"), "[A-Z][a-z]{2}\s\d{2}") -> Mar 36 | G118: =RTD("cqg.rtd", ,"ContractData",B118, "LastTrade",, "T") ->  | H118: =IF(RTD("cqg.rtd", ,"ContractData",B118, "NetLastTrade",, "T")="",NA(),RTD("cqg.rtd", ,"ContractData",B118, "NetLastTrade",, "T")) ->  | I118: =RTD("cqg.rtd", ,"ContractData",B118, "Bid",, "T") ->  | J118: =RTD("cqg.rtd", ,"ContractData",B118, "Ask",, "T") ->  | K118: =RTD("cqg.rtd", ,"ContractData",B118, "T_CVol",, "T") -> 0 | L118: =RTD("cqg.rtd", ,"ContractData",B118, "TradeorTodaySettlement",, "T") -> 54.65
A119: 119 | B119: CLE?119 | C119: CLE | D119: =RTD("cqg.rtd", ,"ContractData",B119, "ContractMonth",, "T") -> APR | E119: =RTD("cqg.rtd", ,"ContractData",B119, "LongDescription",, "T") -> Crude Light (Globex), Apr 36 | F119: =_xlfn.REGEXEXTRACT(RTD("cqg.rtd", ,"ContractData",B119, "LongDescription",, "T"), "[A-Z][a-z]{2}\s\d{2}") -> Apr 36 | G119: =RTD("cqg.rtd", ,"ContractData",B119, "LastTrade",, "T") ->  | H119: =IF(RTD("cqg.rtd", ,"ContractData",B119, "NetLastTrade",, "T")="",NA(),RTD("cqg.rtd", ,"ContractData",B119, "NetLastTrade",, "T")) ->  | I119: =RTD("cqg.rtd", ,"ContractData",B119, "Bid",, "T") ->  | J119: =RTD("cqg.rtd", ,"ContractData",B119, "Ask",, "T") ->  | K119: =RTD("cqg.rtd", ,"ContractData",B119, "T_CVol",, "T") -> 0 | L119: =RTD("cqg.rtd", ,"ContractData",B119, "TradeorTodaySettlement",, "T") -> 54.54
A120: 120 | B120: CLE?120 | C120: CLE | D120: =RTD("cqg.rtd", ,"ContractData",B120, "ContractMonth",, "T") -> MAY | E120: =RTD("cqg.rtd", ,"ContractData",B120, "LongDescription",, "T") -> Crude Light (Globex), May 36 | F120: =_xlfn.REGEXEXTRACT(RTD("cqg.rtd", ,"ContractData",B120, "LongDescription",, "T"), "[A-Z][a-z]{2}\s\d{2}") -> May 36 | G120: =RTD("cqg.rtd", ,"ContractData",B120, "LastTrade",, "T") ->  | H120: =IF(RTD("cqg.rtd", ,"ContractData",B120, "NetLastTrade",, "T")="",NA(),RTD("cqg.rtd", ,"ContractData",B120, "NetLastTrade",, "T")) ->  | I120: =RTD("cqg.rtd", ,"ContractData",B120, "Bid",, "T") ->  | J120: =RTD("cqg.rtd", ,"ContractData",B120, "Ask",, "T") ->  | K120: =RTD("cqg.rtd", ,"ContractData",B120, "T_CVol",, "T") -> 0 | L120: =RTD("cqg.rtd", ,"ContractData",B120, "TradeorTodaySettlement",, "T") -> 54.39
A121: 121 | B121: CLE?121 | C121: CLE | D121: =RTD("cqg.rtd", ,"ContractData",B121, "ContractMonth",, "T") -> JUN | E121: =RTD("cqg.rtd", ,"ContractData",B121, "LongDescription",, "T") -> Crude Light (Globex), Jun 36 | F121: =_xlfn.REGEXEXTRACT(RTD("cqg.rtd", ,"ContractData",B121, "LongDescription",, "T"), "[A-Z][a-z]{2}\s\d{2}") -> Jun 36 | G121: =RTD("cqg.rtd", ,"ContractData",B121, "LastTrade",, "T") ->  | H121: =IF(RTD("cqg.rtd", ,"ContractData",B121, "NetLastTrade",, "T")="",NA(),RTD("cqg.rtd", ,"ContractData",B121, "NetLastTrade",, "T")) ->  | I121: =RTD("cqg.rtd", ,"ContractData",B121, "Bid",, "T") ->  | J121: =RTD("cqg.rtd", ,"ContractData",B121, "Ask",, "T") ->  | K121: =RTD("cqg.rtd", ,"ContractData",B121, "T_CVol",, "T") -> 0 | L121: =RTD("cqg.rtd", ,"ContractData",B121, "TradeorTodaySettlement",, "T") -> 54.19
A122: 122 | B122: CLE?122 | C122: CLE | D122: =RTD("cqg.rtd", ,"ContractData",B122, "ContractMonth",, "T") -> JUL | E122: =RTD("cqg.rtd", ,"ContractData",B122, "LongDescription",, "T") -> Crude Light (Globex), Jul 36 | F122: =_xlfn.REGEXEXTRACT(RTD("cqg.rtd", ,"ContractData",B122, "LongDescription",, "T"), "[A-Z][a-z]{2}\s\d{2}") -> Jul 36 | G122: =RTD("cqg.rtd", ,"ContractData",B122, "LastTrade",, "T") ->  | H122: =IF(RTD("cqg.rtd", ,"ContractData",B122, "NetLastTrade",, "T")="",NA(),RTD("cqg.rtd", ,"ContractData",B122, "NetLastTrade",, "T")) ->  | I122: =RTD("cqg.rtd", ,"ContractData",B122, "Bid",, "T") ->  | J122: =RTD("cqg.rtd", ,"ContractData",B122, "Ask",, "T") ->  | K122: =RTD("cqg.rtd", ,"ContractData",B122, "T_CVol",, "T") -> 0 | L122: =RTD("cqg.rtd", ,"ContractData",B122, "TradeorTodaySettlement",, "T") -> 54
A123: 123 | B123: CLE?123 | C123: CLE | D123: =RTD("cqg.rtd", ,"ContractData",B123, "ContractMonth",, "T") -> AUG | E123: =RTD("cqg.rtd", ,"ContractData",B123, "LongDescription",, "T") -> Crude Light (Globex), Aug 36 | F123: =_xlfn.REGEXEXTRACT(RTD("cqg.rtd", ,"ContractData",B123, "LongDescription",, "T"), "[A-Z][a-z]{2}\s\d{2}") -> Aug 36 | G123: =RTD("cqg.rtd", ,"ContractData",B123, "LastTrade",, "T") ->  | H123: =IF(RTD("cqg.rtd", ,"ContractData",B123, "NetLastTrade",, "T")="",NA(),RTD("cqg.rtd", ,"ContractData",B123, "NetLastTrade",, "T")) ->  | I123: =RTD("cqg.rtd", ,"ContractData",B123, "Bid",, "T") ->  | J123: =RTD("cqg.rtd", ,"ContractData",B123, "Ask",, "T") ->  | K123: =RTD("cqg.rtd", ,"ContractData",B123, "T_CVol",, "T") -> 0 | L123: =RTD("cqg.rtd", ,"ContractData",B123, "TradeorTodaySettlement",, "T") -> 53.82
A124: 124 | B124: CLE?124 | C124: CLE | D124: =RTD("cqg.rtd", ,"ContractData",B124, "ContractMonth",, "T") -> SEP | E124: =RTD("cqg.rtd", ,"ContractData",B124, "LongDescription",, "T") -> Crude Light (Globex), Sep 36 | F124: =_xlfn.REGEXEXTRACT(RTD("cqg.rtd", ,"ContractData",B124, "LongDescription",, "T"), "[A-Z][a-z]{2}\s\d{2}") -> Sep 36 | G124: =RTD("cqg.rtd", ,"ContractData",B124, "LastTrade",, "T") ->  | H124: =IF(RTD("cqg.rtd", ,"ContractData",B124, "NetLastTrade",, "T")="",NA(),RTD("cqg.rtd", ,"ContractData",B124, "NetLastTrade",, "T")) ->  | I124: =RTD("cqg.rtd", ,"ContractData",B124, "Bid",, "T") ->  | J124: =RTD("cqg.rtd", ,"ContractData",B124, "Ask",, "T") ->  | K124: =RTD("cqg.rtd", ,"ContractData",B124, "T_CVol",, "T") -> 0 | L124: =RTD("cqg.rtd", ,"ContractData",B124, "TradeorTodaySettlement",, "T") -> 53.68
A125: 125 | B125: CLE?125 | C125: CLE | D125: =RTD("cqg.rtd", ,"ContractData",B125, "ContractMonth",, "T") -> OCT | E125: =RTD("cqg.rtd", ,"ContractData",B125, "LongDescription",, "T") -> Crude Light (Globex), Oct 36 | F125: =_xlfn.REGEXEXTRACT(RTD("cqg.rtd", ,"ContractData",B125, "LongDescription",, "T"), "[A-Z][a-z]{2}\s\d{2}") -> Oct 36 | G125: =RTD("cqg.rtd", ,"ContractData",B125, "LastTrade",, "T") ->  | H125: =IF(RTD("cqg.rtd", ,"ContractData",B125, "NetLastTrade",, "T")="",NA(),RTD("cqg.rtd", ,"ContractData",B125, "NetLastTrade",, "T")) ->  | I125: =RTD("cqg.rtd", ,"ContractData",B125, "Bid",, "T") ->  | J125: =RTD("cqg.rtd", ,"ContractData",B125, "Ask",, "T") ->  | K125: =RTD("cqg.rtd", ,"ContractData",B125, "T_CVol",, "T") -> 0 | L125: =RTD("cqg.rtd", ,"ContractData",B125, "TradeorTodaySettlement",, "T") -> 53.55
A126: 126 | B126: CLE?126 | C126: CLE | D126: =RTD("cqg.rtd", ,"ContractData",B126, "ContractMonth",, "T") -> NOV | E126: =RTD("cqg.rtd", ,"ContractData",B126, "LongDescription",, "T") -> Crude Light (Globex), Nov 36 | F126: =_xlfn.REGEXEXTRACT(RTD("cqg.rtd", ,"ContractData",B126, "LongDescription",, "T"), "[A-Z][a-z]{2}\s\d{2}") -> Nov 36 | G126: =RTD("cqg.rtd", ,"ContractData",B126, "LastTrade",, "T") ->  | H126: =IF(RTD("cqg.rtd", ,"ContractData",B126, "NetLastTrade",, "T")="",NA(),RTD("cqg.rtd", ,"ContractData",B126, "NetLastTrade",, "T")) ->  | I126: =RTD("cqg.rtd", ,"ContractData",B126, "Bid",, "T") ->  | J126: =RTD("cqg.rtd", ,"ContractData",B126, "Ask",, "T") ->  | K126: =RTD("cqg.rtd", ,"ContractData",B126, "T_CVol",, "T") -> 0 | L126: =RTD("cqg.rtd", ,"ContractData",B126, "TradeorTodaySettlement",, "T") -> 53.46
A127: 127 | B127: CLE?127 | C127: CLE | D127: =RTD("cqg.rtd", ,"ContractData",B127, "ContractMonth",, "T") -> DEC | E127: =RTD("cqg.rtd", ,"ContractData",B127, "LongDescription",, "T") -> Crude Light (Globex), Dec 36 | F127: =_xlfn.REGEXEXTRACT(RTD("cqg.rtd", ,"ContractData",B127, "LongDescription",, "T"), "[A-Z][a-z]{2}\s\d{2}") -> Dec 36 | G127: =RTD("cqg.rtd", ,"ContractData",B127, "LastTrade",, "T") ->  | H127: =IF(RTD("cqg.rtd", ,"ContractData",B127, "NetLastTrade",, "T")="",NA(),RTD("cqg.rtd", ,"ContractData",B127, "NetLastTrade",, "T")) ->  | I127: =RTD("cqg.rtd", ,"ContractData",B127, "Bid",, "T") -> 53.05 | J127: =RTD("cqg.rtd", ,"ContractData",B127, "Ask",, "T") ->  | K127: =RTD("cqg.rtd", ,"ContractData",B127, "T_CVol",, "T") -> 0 | L127: =RTD("cqg.rtd", ,"ContractData",B127, "TradeorTodaySettlement",, "T") -> 53.22
A128: 128 | B128: CLE?128 | C128: CLE | D128: =RTD("cqg.rtd", ,"ContractData",B128, "ContractMonth",, "T") -> JAN | E128: =RTD("cqg.rtd", ,"ContractData",B128, "LongDescription",, "T") -> Crude Light (Globex), Jan 37 | F128: =_xlfn.REGEXEXTRACT(RTD("cqg.rtd", ,"ContractData",B128, "LongDescription",, "T"), "[A-Z][a-z]{2}\s\d{2}") -> Jan 37 | G128: =RTD("cqg.rtd", ,"ContractData",B128, "LastTrade",, "T") ->  | H128: =IF(RTD("cqg.rtd", ,"ContractData",B128, "NetLastTrade",, "T")="",NA(),RTD("cqg.rtd", ,"ContractData",B128, "NetLastTrade",, "T")) ->  | I128: =RTD("cqg.rtd", ,"ContractData",B128, "Bid",, "T") ->  | J128: =RTD("cqg.rtd", ,"ContractData",B128, "Ask",, "T") ->  | K128: =RTD("cqg.rtd", ,"ContractData",B128, "T_CVol",, "T") -> 0 | L128: =RTD("cqg.rtd", ,"ContractData",B128, "TradeorTodaySettlement",, "T") -> 53.15
A129: 129 | B129: CLE?129 | C129: CLE | D129: =RTD("cqg.rtd", ,"ContractData",B129, "ContractMonth",, "T") -> FEB | E129: =RTD("cqg.rtd", ,"ContractData",B129, "LongDescription",, "T") -> Crude Light (Globex), Feb 37 | F129: =_xlfn.REGEXEXTRACT(RTD("cqg.rtd", ,"ContractData",B129, "LongDescription",, "T"), "[A-Z][a-z]{2}\s\d{2}") -> Feb 37 | G129: =RTD("cqg.rtd", ,"ContractData",B129, "LastTrade",, "T") ->  | H129: =IF(RTD("cqg.rtd", ,"ContractData",B129, "NetLastTrade",, "T")="",NA(),RTD("cqg.rtd", ,"ContractData",B129, "NetLastTrade",, "T")) ->  | I129: =RTD("cqg.rtd", ,"ContractData",B129, "Bid",, "T") ->  | J129: =RTD("cqg.rtd", ,"ContractData",B129, "Ask",, "T") ->  | K129: =RTD("cqg.rtd", ,"ContractData",B129, "T_CVol",, "T") -> 0 | L129: =RTD("cqg.rtd", ,"ContractData",B129, "TradeorTodaySettlement",, "T") -> 53.09
